Workbook

Sheet Übersicht und Anleitung
A1: Verpflegungsplan Frühling / Plan de la subsistance printemps / Piano di sussistenza primavera | S1: 3003 Bern, 24.01.2023 / SCHOL
A3: Übersicht Verpflegungsabrechnung / Vue ensemble décompte de la subsistance / Visione d'assieme conteggio della sussistenza
A5: Woche Semaine Settimana | B5: Kredit Crédit Credito | C5: Verbrauch Utilisation Utilizzo | D5: Saldo Solde Saldo
A6: KVK, CCV, CQ | B6: ='Verpflegungsplan KVK'!E85 -> 6300 | C6: ='Verpflegungsplan KVK'!E84 -> 5557.9 | D6: =B6-C6 -> 742.1
A8: 1 | B8: ='Woche 1'!E85 -> 6300 | C8: ='Woche 1'!E84 -> 6166.6 | D8: =B8-C8 -> 133.4
A9: 2 | B9: ='Woche 2'!E85 -> 6300 | C9: ='Woche 2'!E84 -> 6268.6 | D9: =B9-C9 -> 31.4
A10: 3 | B10: ='Woche 3'!E85 -> 4500 | C10: ='Woche 3'!E84 -> 5378.3 | D10: -878.3
A11: Total 1-3 | D11: =SUM(D8:D10) -> -713.5
A13: Total Dienst | D13: =D6+D11 -> 28.6
A14: Total service
A15: Total servizio
F16: Wochenbeginn eintragen
C17: Tag | D17: Woche | F17: Ajouter le début de la semaine
A18: Verpflegungskredit pro AdA | C18: 9 | D18: =C18*7 -> 63 | F18: Inserire l'inizio della settimana
A19: Crédit de subsistance par mil | F19: Einheit eintragen
A20: Credito suss | F20: Ajouter l'unité
F21: Inserire l'unità
F22: Besonderheit mit drop down auswählen (Prozentansatz im Register Vpf Art kann angepasst werden)
F23: Particularité: sélectionner avec drop down (pourcentage peut'être adapté en modifiant les besoins sous "genre subs")
F24: Particolarità da selezionare con drop down (percentuale da inserire e/o modificare nel resitro tipo di sussistenza)
F25: Achtung: der Blattschutz kann auf eigenes Risiko ohne Passwort aufgehoben werden
F26: Attention: la protection de la feuille peut'être supprimée sans mot de passe!
F27: Attenzione: la protezione del foglio di calcolo può essere rimossa senza password!

Sheet Verpflegungsplan KVK
A1: Verpflegungsplan | G1: von: | I1: 2018-04-30 | L1: bis: | N1: =A73 -> 2018-05-06 | P1: Einheit
B3: Frühstück | G3: Mittagessen | L3: Nachtessen | Q3: Fleischlos
B4: CCP | C4: Visum | E4: Preis | F4: Rezept | G4: CCP | H4: Visum | J4: Preis | K4: Rezept | L4: CCP | M4: Visum | O4: Preis | P4: Rezept | Q4: CCP | R4: Visum | T4: Rezept
D5: Normalbestand | E5: =VLOOKUP(D5,'Vpf Art Genre Subs Tipi di suss'!$A:$B,2,FALSE) -> 1 | I5: Normalbestand | J5: =VLOOKUP(I5,'Vpf Art Genre Subs Tipi di suss'!$A:$B,2,FALSE) -> 1 | N5: Normalbestand | O5: =VLOOKUP(N5,'Vpf Art Genre Subs Tipi di suss'!$A:$B,2,FALSE) -> 1 | S5: Mittag
A6: Montag | I6: Pastetli mit Fleischfüllung und Pilzen | J6: 2.33 | K6: 923 | N6: Bouillon mit Flädli 50 % | O6: 0.05 | P6: 205 | S6: Pastetli mit Pilzfüllung | T6: 923
A7: =I1 -> 2018-04-30 | N7: Maccaroni mit Butter | O7: 0.27 | P7: 617
I8: Brot 100 g | J8: 0.39 | N8: Sauce Waluca | O8: 0.68 | P8: 311
N9: Rüeblisalat | O9: 0.61 | P9: 812
A10: =SUM(O6:O15)*O5+SUM(J6:J15)*J5+SUM(E6:E15)*E5 -> 7.08 | S10: Abend
S11: Maccaroni mit Butter | T11: 617
S12: Tomatensauce | T12: 311
I13: Süssgetränk 5 dl PET | J13: 0.9 | N13: Schwarztee 200 % | O13: 0.05 | P13: 103
A14: Snack | I14: Militärschokolade 1 St | J14: 0.35 | N14: Traubenzucker 1 St | O14: 0.15
I15: Apfel 1 St | J15: 0.5 | N15: Banane 1 St | O15: 0.8
D16: Normalbestand | E16: =VLOOKUP(D16,'Vpf Art Genre Subs Tipi di suss'!$A:$B,2,FALSE) -> 1 | I16: Normalbestand | J16: =VLOOKUP(I16,'Vpf Art Genre Subs Tipi di suss'!$A:$B,2,FALSE) -> 1 | N16: Normalbestand | O16: =VLOOKUP(N16,'Vpf Art Genre Subs Tipi di suss'!$A:$B,2,FALSE) -> 1 | S16: Mittag
A17: Dienstag | D17: Kaffee in Portionen 50 % | E17: 0.2 | I17: Tomatencremesuppe 50 % | J17: 0.13 | K17: 208 | N17: Bündnergerstensuppe 50 % | O17: 0.23 | P17: 208 | S17: Gemüsecurry
A18: =A7+1 -> 2018-05-01 | D18: Kakao/Malzgetränk in Port 50 % | E18: 0.2 | G18: * | I18: Currygeschnetzeltes Poulet | J18: 1.71 | K18: 403 | N18: Walliserrösti | O18: 2.34 | P18: 903
D19: Brotsorten 100 g | E19: 0.39 | I19: Gemüsereis | J19: 0.42 | K19: 608 | N19: Mischsalat Frühling | O19: 0.46
D20: Butter Port 20 g | E20: 0.44 | N20: Balsamico Salatsauce 30 g | O20: 0.05
A21: =SUM(O17:O26)*O16+SUM(J17:J26)*J16+SUM(E17:E26)*E16 -> 10.14 | D21: Konfitüre/Nussaufstrich 1 | E21: 0.17 | S21: Abend
D22: Orangensaft 1 dl | E22: 0.14 | N22: Schoggicreme | O22: 0.42 | P22: 1107 | S22: Vegirösti mit Spiegelei | T22: 903
D24: Käse divers 30 g | E24: 0.54 | I24: Apfel-Pfirsichtee 200 % | J24: 0.1 | K24: 100 | N24: Apfel-Pfirsichtee 200 % | O24: 0.1 | P24: 100
A25: Snack | I25: Militärbisquit 1 St | J25: 0.55 | N25: Leckerli 1 St | O25: 0.55
I26: Birne 1 St | J26: 0.6 | N26: Orange 1 St | O26: 0.4
D27: Normalbestand | E27: =VLOOKUP(D27,'Vpf Art Genre Subs Tipi di suss'!$A:$B,2,FALSE) -> 1 | I27: Normalbestand | J27: =VLOOKUP(I27,'Vpf Art Genre Subs Tipi di suss'!$A:$B,2,FALSE) -> 1 | N27: Fakultatives Nachtessen | O27: =VLOOKUP(N27,'Vpf Art Genre Subs Tipi di suss'!$A:$B,2,FALSE) -> 0.3 | S27: Mittag
A28: Mittwoch | D28: Kaffee in Portionen 50 % | E28: 0.2 | I28: Bouillon mit Backerbsen 50 % | J28: 0.05 | K28: 205 | N28: Gemüsepüreesuppe 50 % | O28: 0.2 | P28: 208 | S28: Emmentaler Quornvoressen | T28: 427
A29: =A18+1 -> 2018-05-02 | D29: Kakao/Malzgetränk in Port 50 % | E29: 0.2 | G29: * | I29: Emmentaler Pouletvoressen | J29: 2.44 | K29: 427 | N29: Spaghetti mit Butter | O29: 0.27 | P29: 617
D30: Brotsorten 100 g | E30: 0.39 | I30: Kartoffelstock | J30: 0.53 | K30: 606 | N30: Sauce Carbonara | O30: 2.08 | P30: 906
D31: Butter Port 20 g | E31: 0.44 | I31: Bohnen gedünstet | J31: 0.5 | K31: 704
A32: =SUM(O28:O37)*O27+SUM(J28:J37)*J27+SUM(E28:E37)*E27 -> 7.978 | D32: Konfitüre/Nussaufstrich 1 | E32: 0.17 | N32: Mischsalat Frühling | O32: 0.46 | S32: Abend
D33: Orangensaft 1 dl | E33: 0.14 | N33: Franz Salatsauce 30 g | O33: 0.05 | S33: Spaghetti mit Butter | T33: 617
S34: Pesto CF4 20g
D35: Aufschnitt 50 g | E35: 0.6 | I35: Himbeer-Erdbeertee 200 % | J35: 0.1 | K35: 100 | N35: Himbeer-Erdbeertee 200 % | O35: 0.1 | P35: 100
A36: Snack | I36: Getreideriegel Frucht 1 St | J36: 0.2 | N36: Swiss Choco Bits 1 St | O36: 0.4
I37: Banane 1 St | J37: 0.8 | N37: Apfel 1 St | O37: 0.5
D38: Normalbestand | E38: =VLOOKUP(D38,'Vpf Art Genre Subs Tipi di suss'!$A:$B,2,FALSE) -> 1 | I38: Normalbestand | J38: =VLOOKUP(I38,'Vpf Art Genre Subs Tipi di suss'!$A:$B,2,FALSE) -> 1 | N38: Normalbestand | O38: =VLOOKUP(N38,'Vpf Art Genre Subs Tipi di suss'!$A:$B,2,FALSE) -> 1 | S38: Mittag
A39: Donnerstag | D39: Kaffee in Portionen 50 % | E39: 0.2 | I39: Gemüsesuppe Bauernart 50 % | J39: 0.25 | K39: 204 | N39: Bouillon mit Knoblauchcroutons 50 % | O39: 0.05 | P39: 205 | S39: Griessschnitte mit Gemüse | T39: 603
A40: =A29+1 -> 2018-05-03 | D40: Kakao/Malzgetränk in Port 50 % | E40: 0.2 | G40: * | I40: Kalbsrollbraten | J40: 3.2 | K40: 422 | L40: * | N40: Mah-Meh mit Schwein | O40: 3.47 | P40: 919 | S40: und mit Käse überbacken
D41: Brotsorten 100 g | E41: 0.39 | I41: Griessschnitte | J41: 0.73 | K41: 603
D42: Butter Port 20 g | E42: 0.44 | I42: Spinat gedünstet | J42: 0.73 | K42: 704
A43: =SUM(O39:O48)*O38+SUM(J39:J48)*J38+SUM(E39:E48)*E38 -> 13.38 | D43: Konfitüre/Nussaufstrich 1 | E43: 0.17 | S43: Abend
D44: Orangensaft 1 dl | E44: 0.14 | N44: Apfelkuchen | O44: 0.86 | P44: 0 | S44: Gebratene Spaghetti mit
S45: Gemüse und Ei
D46: Birchermüesli 30 % | E46: 0.5 | F46: 904 | I46: Fruchtschalentee 200 % | J46: 0.1 | K46: 100 | N46: Fruchtschalentee 200 % | O46: 0.1 | P46: 100
A47: Snack | I47: Bretzeli 1 St | J47: 0.55 | N47: Getreideriegel Honig 1 St | O47: 0.2
I48: Apfel 1 St | J48: 0.5 | N48: Birne 1 St | O48: 0.6
D49: Normalbestand | E49: =VLOOKUP(D49,'Vpf Art Genre Subs Tipi di suss'!$A:$B,2,FALSE) -> 1 | I49: Normalbestand | J49: =VLOOKUP(I49,'Vpf Art Genre Subs Tipi di suss'!$A:$B,2,FALSE) -> 1 | N49: Leistungsabtreten | O49: =VLOOKUP(N49,'Vpf Art Genre Subs Tipi di suss'!$A:$B,2,FALSE) -> 0.75 | S49: Mittag
A50: Freitag | D50: Kaffee in Portionen 50 % | E50: 0.2 | I50: Bouillon mit Ei 50 % | J50: 0.05 | K50: 205 | N50: Brotsuppe 50 % | O50: 0.12 | P50: 206 | S50: Zucchettipiccata
A51: =A40+1 -> 2018-05-04 | D51: Kakao/Malzgetränk in Port 50 % | E51: 0.2 | G51: * | I51: Pangasiusfilet im Backteig | J51: 2.33 | K51: 501 | N51: Käse-Zwiebelkuchen | O51: 3.09 | P51: 915
D52: Brotsorten 100 g | E52: 0.39 | I52: Remouladensauce | J52: 0.34 | K52: 309 | N52: Weisskabissalat 50 % | O52: 0.27 | P52: 805
D53: Butter Port 20 g | E53: 0.44 | I53: Salzkartoffeln | J53: 0.68 | K53: 613 | N53: Randensalat 50 % | O53: 0.15 | P53: 810
A54: =SUM(O50:O59)*O49+SUM(J50:J59)*J49+SUM(E50:E59)*E49 -> 11.8675 | D54: Konfitüre/Nussaufstrich 1 | E54: 0.17 | I54: Zucchetti gedünstet | J54: 0.75 | K54: 704 | N54: Mischsalat Frühling 30 % | O54: 0.15 | S54: Abend
D55: Orangensaft 1 dl | E55: 0.14 | N55: Franz Salatsauce 30 g | O55: 0.05 | S55: Käse-Zwiebelkuchen | T55: 915
I56: Bananecake | J56: 0.58 | K56: 1105
D57: Joghurt Frucht Port 100 g | E57: 0.5 | I57: Hausgemachter Eisttee 200% | J57: 0.1 | K57: 100 | N57: Hausgemachter Eisttee 200% | O57: 0.1 | P57: 100
A58: Snack | I58: Cracker 1 St | J58: 0.6 | N58: Malzriegel 1 St | O58: 0.6
I59: Orange 1 St | J59: 0.4 | N59: Banane 1 St | O59: 0.8
D60: Leistungsabtreten | E60: =VLOOKUP(D60,'Vpf Art Genre Subs Tipi di suss'!$A:$B,2,FALSE) -> 0.75 | I60: Sonntagswache | J60: =VLOOKUP(I60,'Vpf Art Genre Subs Tipi di suss'!$A:$B,2,FALSE) -> 0.1 | N60: Sonntagswache | O60: =VLOOKUP(N60,'Vpf Art Genre Subs Tipi di suss'!$A:$B,2,FALSE) -> 0.1 | S60: Mittag
A61: Samstag | D61: Kaffee in Portionen 50 % | E61: 0.2 | G61: * | I61: Schweinekotelett gebraten mit | J61: 3.24 | N61: Pizza mit Schinken | O61: 4.14 | P61: 924 | S61: Quornschnitzel mit Gemüse
A62: =A51+1 -> 2018-05-05 | D62: Kakao/Malzgetränk in Port 50 % | E62: 0.2 | I62: Kräuterbutter | N62: Rüeblisalat 50 % | O62: 0.3 | P62: 812
D63: Zopf 100 g | E63: 1.35 | I63: Bratkartoffeln | J63: 0.96 | K63: 600 | N63: Maissalat 50 % | O63: 0.25 | P63: 808
D64: Butter Port 20 g | E64: 0.44 | I64: Broccoli mit Mandeln | J64: 1.27 | K64: 703 | N64: Mischsalat Frühling 30 % | O64: 0.15
A65: =SUM(O61:O70)*O60+SUM(J61:J70)*J60+SUM(E61:E70)*E60 -> 3.4635 | D65: Konfitüre/Nussaufstrich 1 | E65: 0.17 | N65: Balsamico Salatsauce 30 g | O65: 0.05 | S65: Abend
D66: Orangensaft 1 dl | E66: 0.14 | S66: Pizza Calzone mit Ei | T66: 808
D68: Salami 50 g | E68: 0.51 | I68: Himbeer-Erdbeertee 200% | J68: 0.1 | K68: 100 | N68: Himbeer-Erdbeertee 200% | O68: 0.1 | P68: 100
A69: Snack | I69: Militärbiscuit 1 St | J69: 0.35 | N69: Traubenzucker 1 St | O69: 0.15
I70: Birne 1 St | J70: 0.6 | N70: Orange 1 St | O70: 0.4
D71: Sonntagswache | E71: =VLOOKUP(D71,'Vpf Art Genre Subs Tipi di suss'!$A:$B,2,FALSE) -> 0.1 | I71: Sonntagswache | J71: =VLOOKUP(I71,'Vpf Art Genre Subs Tipi di suss'!$A:$B,2,FALSE) -> 0.1 | N71: Sonntagswache | O71: =VLOOKUP(N71,'Vpf Art Genre Subs Tipi di suss'!$A:$B,2,FALSE) -> 0.1 | S71: Mittag
A72: Sonntag | D72: Kaffee in Portionen 50 % | E72: 0.2 | G72: * | I72: Gebratenes halbes Poulet | J72: 4.34 | N72: Café complet | O72: 3.93 | S72: Meditarenes Gemüse aus
A73: =A62+1 -> 2018-05-06 | D73: Kakao/Malzgetränk in Port 50 % | E73: 0.2 | I73: mit Saucen | S73: dem Ofen
D74: Zopf 100 g | E74: 1.35 | I74: Pommes Chips CF4 | J74: 1.18 | S74: mit Mozzarella und Basilikum
D75: Butter Port 20 g | E75: 0.44 | I75: Berliner CF4 1 St | J75: 1.7
A76: =SUM(O72:O81)*O71+SUM(J72:J81)*J71+SUM(E72:E81)*E71 -> 1.67 | D76: Konfitüre/Nussaufstrich 1 | E76: 0.17 | S76: Abend
D77: Orangensaft 1 dl | E77: 0.14 | S77: Café complet
D78: Rösti 50 % | E78: 0.25 | F78: 612
D79: Spiegelei 1 St | E79: 0.5 | I79: Schwarztee 200 % | J79: 0.1 | K79: 103 | N79: Schwarztee 200 % | O79: 0.1 | P79: 103
A80: Snack | I80: Bretzeli 1 St | J80: 0.6 | N80: Getreideriegel Frucht 1 St | O80: 0.2
I81: Apfel 1 St | J81: 0.5 | N81: Banane 1 St | O81: 0.8
A83: Verpflegungsabrechnung | I83: Die Richtigkeit bescheinigt: | N83: Für die fachliche Richtigkeit: | S83: Genehmigung:
A84: Verbrauch gem Vpf Plan | E84: =(A10+A21+A32+A43+A54+A65+A76)*100 -> 5557.9 | I84: Der Rechnungsführer | N84: Quartiermeister | S84: Der Kommandant
A85: Vpf Kredit | E85: ='Übersicht und Anleitung'!D18*100 -> 6300
A86: Saldo | E86: =E85-E84 -> 742.1
A88: Herkunftsdeklaration Fleisch, Milch, Eier: Alle Fleisch /-erzeugnisse, Milch /-Milchprodukte und Eier stammen aus der Schweiz
A89: Herkunftsdeklaration Fisch und Meerestiere: Alle Fische und Meerestiere stammen aus der Schweiz oder sind mit dem Label ASC / MSC oder FOS versehen.
A90: Deklaration von Zutaten / allergenen Stoffen (LKV Art. 8): Bei Fragen betreffend allergenen Zutaten kann der Küchenchef Auskunft geben.
A91: Lenkungspunkte: Diese sind mit * gekennzeichnet. Nach der Umsetzung sind sie mittels Visum zu bestätigen (vgl Regl 06.006 Kochrezepte, Seiten 21 und ff Rezepte).

Sheet Woche 1
A1: Verpflegungsplan | G1: von: | I1: 2018-05-07 | L1: bis: | N1: =A73 -> 2018-05-13 | P1: Einheit
B3: Frühstück | G3: Mittagessen | L3: Nachtessen | Q3: Fleischlos
B4: CCP | C4: Visum | E4: Preis | F4: Rezept | G4: CCP | H4: Visum | J4: Preis | K4: Rezept | L4: CCP | M4: Visum | O4: Preis | P4: Rezept | Q4: CCP | R4: Visum | T4: Rezept
D5: Sonntagswache | E5: =VLOOKUP(D5,'Vpf Art Genre Subs Tipi di suss'!$A:$B,2,FALSE) -> 0.1 | I5: Normalbestand | J5: =VLOOKUP(I5,'Vpf Art Genre Subs Tipi di suss'!$A:$B,2,FALSE) -> 1 | N5: Normalbestand | O5: =VLOOKUP(N5,'Vpf Art Genre Subs Tipi di suss'!$A:$B,2,FALSE) -> 1 | S5: Mittag
A6: Montag | D6: Kaffee in Portionen 50 % | E6: 0.2 | I6: Bouillon mit Backerbsen 50 % | J6: 0.05 | K6: 205 | N6: Curryrahmsuppe 50 % | O6: 0.1 | P6: 212 | S6: Spinatravioli mit Käse | T6: 824
A7: =I1 -> 2018-05-07 | D7: Kakao/Malzgetränk in Port 50 % | E7: 0.2 | I7: Ravioli | J7: 1 | K7: 926 | L7: * | N7: Pouletschenkel geschmort | O7: 2.37
D8: Brotsorten 100 g | E8: 0.39 | I8: Reibkäse 20 g | J8: 0.25 | N8: an Rotweinsauce
D9: Butter Port 20 g | E9: 0.44 | I9: Mischsalat Frühling | J9: 0.46 | N9: Lyoner Kartoffeln | O9: 1 | P9: 600
A10: =SUM(O6:O15)*O5+SUM(J6:J15)*J5+SUM(E6:E15)*E5 -> 8.553 | D10: Konfitüre/Nussaufstrich 1 | E10: 0.17 | I10: Franz Salatsauce 30 g | J10: 0.05 | N10: Blattspinat gedünstet | O10: 0.73 | P10: 704 | S10: Abend
D11: Orangensaft 1 dl | E11: 0.14 | S11: Kartoffel-Gemüseauflauf | T11: 700
D12: Frühstücksmüesli 30 g | E12: 0.25
D13: Käse divers 30 g | E13: 0.54 | I13: Apfel-Pfirsichtee 200 % | J13: 0.13 | N13: Apfel-Pfirsichtee 200 % | O13: 0.13
A14: Snack | I14: Nussmischung assortiert 1 St | J14: 0.6 | N14: Traubenzucker 1 St | O14: 0.15
I15: Apfel 1 St | J15: 0.5 | N15: Banane 1 St | O15: 0.8
D16: Normalbestand | E16: =VLOOKUP(D16,'Vpf Art Genre Subs Tipi di suss'!$A:$B,2,FALSE) -> 1 | I16: Normalbestand | J16: =VLOOKUP(I16,'Vpf Art Genre Subs Tipi di suss'!$A:$B,2,FALSE) -> 1 | N16: Normalbestand | O16: =VLOOKUP(N16,'Vpf Art Genre Subs Tipi di suss'!$A:$B,2,FALSE) -> 1 | S16: Mittag
A17: Dienstag | D17: Kaffee in Portionen 50 % | E17: 0.2 | I17: Gemüsecremesuppe 50 % | J17: 0.2 | K17: 208 | N17: Bouillon mit Flädli 50 % | O17: 0.05 | P17: 205 | S17: Quorngeschnetzeltes mit | T17: 406
A18: =A7+1 -> 2018-05-08 | D18: Kakao/Malzgetränk in Port 50 % | E18: 0.2 | G18: * | I18: Schweinsgeschnetzeltes | J18: 2.05 | K18: 406 | N18: Appenzeller Chäs-Tschoppe | O18: 2.38 | P18: 901 | S18: Peperoni
D19: Brotsorten 100 g | E19: 0.39 | I19: mit Peperoni | N19: Mischsalat Frühling | O19: 0.46
D20: Butter Port 20 g | E20: 0.44 | I20: Risi-Bisi | J20: 0.48 | K20: 608 | N20: Franz Salatsauce 30 g | O20: 0.05
A21: =SUM(O17:O26)*O16+SUM(J17:J26)*J16+SUM(E17:E26)*E16 -> 11.76 | D21: Konfitüre/Nussaufstrich 1 | E21: 0.17 | I21: Kohlraben gedünstet | J21: 1.08 | K21: 704 | S21: Abend
D22: Orangensaft 1 dl | E22: 0.14 | N22: Schokoladencreme | O22: 0.42 | P22: 1007 | S22: Appenzeller Chäs-Tschoppe | T22: 901
D23: Frühstücksmüesli 30 g | E23: 0.25
D24: Joghurt Port 100 g | E24: 0.5 | I24: Apfel-Pfirsichtee 200 % | J24: 0.1 | K24: 100 | N24: Apfel-Pfirsichtee 200 % | O24: 0.1 | P24: 100
A25: Snack | I25: Militärbiscuit 1 | J25: 0.55 | N25: Leckerli 1 St | O25: 0.55
I26: Birne 1 St | J26: 0.6 | N26: Orange 1 St | O26: 0.4
D27: Normalbestand | E27: =VLOOKUP(D27,'Vpf Art Genre Subs Tipi di suss'!$A:$B,2,FALSE) -> 1 | I27: Normalbestand | J27: =VLOOKUP(I27,'Vpf Art Genre Subs Tipi di suss'!$A:$B,2,FALSE) -> 1 | N27: Fakultatives Nachtessen | O27: =VLOOKUP(N27,'Vpf Art Genre Subs Tipi di suss'!$A:$B,2,FALSE) -> 0.3 | S27: Mittag
A28: Mittwoch | D28: Kaffee in Portionen 50 % | E28: 0.2 | I28: Pürierte Selleriesuppe 50 % | J28: 0.24 | K28: 208 | N28: Spaghetti mit Butter | O28: 0.27 | P28: 617 | S28: Kartoffelstock gratiniert | T28: 604
A29: =A18+1 -> 2018-05-09 | D29: Kakao/Malzgetränk in Port 50 % | E29: 0.2 | G29: * | I29: Pouletvoressen | J29: 2.8 | K29: 406 | N29: Tomatensauce mit Thon | O29: 0.29 | P29: 311 | S29: mit Käse
D30: Brotsorten 100 g | E30: 0.39 | I30: mit Kräutern
D31: Butter Port 20 g | E31: 0.44 | I31: Kartoffelstock mit Safran | J31: 0.55 | K31: 606 | N31: Mischsalat Frühling 30 % | O31: 0.15
A32: =SUM(O28:O37)*O27+SUM(J28:J37)*J27+SUM(E28:E37)*E27 -> 9.777 | D32: Konfitüre/Nussaufstrich 1 | E32: 0.17 | I32: Grüner Spargel gedünstet | J32: 2.17 | K32: 604 | N32: Weisskabissalt 30 % | O32: 0.18 | P32: 805 | S32: Abend
D33: Orangensaft 1 dl | E33: 0.14 | N33: Maissalat 30 % | O33: 0.15 | P33: 808 | S33: Spaghetti mit Butter | T33: 617
D34: Frühstücksmüesli 30 g | E34: 0.25 | N34: Balsamico Salatsauce 30 g | O34: 0.05 | S34: Rahm-Käsesauce | T34: 308
D35: Birchermüesli | E35: 0.5 | F35: 804 | I35: Himbeer-Erdbeertee 200 % | J35: 0.1 | K35: 100 | N35: Himbeer-Erdbeertee 200 % | O35: 0.1 | P35: 100
A36: Snack | I36: Getreideriegel Honig 1 St | J36: 0.2 | N36: Swiss Choco Bits 1 St | O36: 0.4
I37: Banane 1 St | J37: 0.8 | N37: Apfel 1 St | O37: 0.5
D38: Normalbestand | E38: =VLOOKUP(D38,'Vpf Art Genre Subs Tipi di suss'!$A:$B,2,FALSE) -> 1 | I38: Normalbestand | J38: =VLOOKUP(I38,'Vpf Art Genre Subs Tipi di suss'!$A:$B,2,FALSE) -> 1 | N38: Normalbestand | O38: =VLOOKUP(N38,'Vpf Art Genre Subs Tipi di suss'!$A:$B,2,FALSE) -> 1 | S38: Mittag
A39: Donnerstag | D39: Kaffee in Portionen 50 % | E39: 0.2 | I39: Spargelcremesuppe 50 % | J39: 0.51 | K39: 208 | N39: Thurgauer Moschtsuppe 50 % | O39: 0.33 | P39: 1107 | S39: Kartoffelstock mit Gemüse
A40: =A29+1 -> 2018-05-10 | D40: Kakao/Malzgetränk in Port 50 % | E40: 0.2 | G40: * | I40: Rindfleischvogel geschmort | J40: 3.28 | L40: * | N40: Chippolata vom Schwein mit | O40: 1.28 | S40: und Käse überbacken
D41: Brotsorten 100 g | E41: 0.39 | I41: Ofentori | J41: 1.16 | K41: 604 | N41: Kräutersauce | O41: 0.19 | P41: 308
D42: Butter Port 20 g | E42: 0.44 | I42: Rüebli gedünstet | J42: 0.49 | K42: 704 | N42: Tomatenrisotto | O42: 0.6 | P42: 611
A43: =SUM(O39:O48)*O38+SUM(J39:J48)*J38+SUM(E39:E48)*E38 -> 14.91 | D43: Konfitüre/Nussaufstrich 1 | E43: 0.17 | N43: Peperoni im Ofen | O43: 0.81 | P43: 706 | S43: Abend
D44: Orangensaft 1 dl | E44: 0.14 | I44: Country Cake | J44: 0.82 | K44: 1105 | S44: Tomatenrisotto | T44: 611
D45: Frühstücksmüesli 30 g | E45: 0.25
D46: Aufschnitt 50 g | E46: 0.6 | I46: Fruchtschalentee 200 % | J46: 0.1 | K46: 100 | N46: Fruchtschalentee 200 % | O46: 0.1 | P46: 100
A47: Snack | I47: Cracker 1 St | J47: 0.6 | N47: Fleischkonserve 1 St | O47: 1.25
I48: Orange 1 St | J48: 0.4 | N48: Birne 1 St | O48: 0.6
D49: Normalbestand | E49: =VLOOKUP(D49,'Vpf Art Genre Subs Tipi di suss'!$A:$B,2,FALSE) -> 1 | I49: Normalbestand | J49: =VLOOKUP(I49,'Vpf Art Genre Subs Tipi di suss'!$A:$B,2,FALSE) -> 1 | N49: Leistungsabtreten | O49: =VLOOKUP(N49,'Vpf Art Genre Subs Tipi di suss'!$A:$B,2,FALSE) -> 0.75 | S49: Mittag
A50: Freitag | D50: Kaffee in Portionen 50 % | E50: 0.2 | I50: Bouillon mit Backerbsen 50 % | J50: 0.05 | K50: 205 | N50: Asiatisch scharf-saure Suppe 50 % | O50: 0.21 | P50: 202 | S50: Gemüsecurry mit
A51: =A40+1 -> 2018-05-11 | D51: Kakao/Malzgetränk in Port 50 % | E51: 0.2 | G51: * | I51: Fischgratin mit Pangasius | J51: 2.64 | K51: 507 | L51: * | N51: Bami Goreng | O51: 4.37 | P51: 922 | S51: Kichererbsen
D52: Brotsorten 100 g | E52: 0.39 | I52: auf Spinat | N52: Mischsalat Frühling | O52: 0.46
D53: Butter Port 20 g | E53: 0.44 | I53: Gemüsereis | J53: 0.42 | K53: 608 | N53: Franz Salatsauce 30 g | O53: 0.05
A54: =SUM(O50:O59)*O49+SUM(J50:J59)*J49+SUM(E50:E59)*E49 -> 12.1475 | D54: Konfitüre/Nussaufstrich 1 | E54: 0.17 | I54: Gratinierter Fenchel | J54: 0.77 | K54: 705 | S54: Abend
D55: Orangensaft 1 dl | E55: 0.14 | N55: Russenzopf | O55: 0.61 | P55: 1114 | S55: Gebratene Spaghetti | T55: 617
D56: Frühstücksmüesli 30 g | E56: 0.25 | S56: mit Quorn und Gemüse
D57: Käse divers 30 g | E57: 0.54 | I57: Hausgemachter Eistee 200% | J57: 0.1 | K57: 100 | N57: Hausgemachter Eistee 200% | O57: 0.1 | P57: 100
A58: Snack | I58: Fruchtmischung ass 1 St | J58: 0.35 | N58: Malzriegel 1 St | O58: 0.45
I59: Apfel 1 St | J59: 0.5 | N59: Orange 1 St | O59: 0.4
D60: Leistungsabtreten | E60: =VLOOKUP(D60,'Vpf Art Genre Subs Tipi di suss'!$A:$B,2,FALSE) -> 0.75 | I60: Sonntagswache | J60: =VLOOKUP(I60,'Vpf Art Genre Subs Tipi di suss'!$A:$B,2,FALSE) -> 0.1 | N60: Sonntagswache | O60: =VLOOKUP(N60,'Vpf Art Genre Subs Tipi di suss'!$A:$B,2,FALSE) -> 0.1 | S60: Mittag
A61: Samstag | D61: Kaffee in Portionen 50 % | E61: 0.2 | G61: * | I61: Schweinshaxen Cremolata | J61: 2.91 | N61: Käse-Zwiebelkuchen | O61: 3.09 | P61: 915 | S61: Kartoffelgocchi mit Zucchetti
A62: =A51+1 -> 2018-05-12 | D62: Kakao/Malzgetränk in Port 50 % | E62: 0.2 | I62: Kartoffelgnocchi | J62: 0.68 | N62: Randensalat 30 % | O62: 0.1 | P62: 812 | S62: und Frischkäse
D63: Brotsorten 100 g | E63: 0.39 | I63: Zucchetti gedünstet | J63: 0.75 | K63: 704 | N63: Rüeblisalat 30 % | O63: 0.12 | P63: 810
D64: Butter Port 20 g | E64: 0.44 | N64: Maissalat 30 % | O64: 0.15 | P64: 808
A65: =SUM(O61:O70)*O60+SUM(J61:J70)*J60+SUM(E61:E70)*E60 -> 2.9125 | D65: Konfitüre/Nussaufstrich 1 | E65: 0.17 | I65: Nussgipfel CF4 1 St | J65: 1.2 | N65: Mischsalat Frühling 30 % | O65: 0.15 | S65: Abend
D66: Orangensaft 1 dl | E66: 0.14 | N66: balsamico Salatsauce 30 g | O66: 0.05 | S66: Käse-Zwiebelkuchen | T66: 915
D67: Frühstücksmüesli 30 g | E67: 0.25
D68: Aufschnitt 50 g | E68: 0.6 | I68: Apfel-Pfirsichttee | J68: 0.1 | K68: 100 | N68: Apfel-Pfirsichttee | O68: 0.1 | P68: 100
A69: Snack | I69: Militärbisquit 1 St | J69: 0.55 | N69: Traubenzucker 1 St | O69: 0.15
I70: Birne 1 St | J70: 0.6 | N70: Apfel 1 St | O70: 0.5
D71: Sonntagswache | E71: =VLOOKUP(D71,'Vpf Art Genre Subs Tipi di suss'!$A:$B,2,FALSE) -> 0.1 | I71: Sonntagswache | J71: =VLOOKUP(I71,'Vpf Art Genre Subs Tipi di suss'!$A:$B,2,FALSE) -> 0.1 | N71: Sonntagswache | O71: =VLOOKUP(N71,'Vpf Art Genre Subs Tipi di suss'!$A:$B,2,FALSE) -> 0.1 | S71: Mittag
A72: Sonntag | D72: Kaffee in Portionen 50 % | E72: 0.2 | G72: * | I72: Lammgigot mit Kräuterkruste | J72: 4.45 | K72: 422 | N72: Café complet | O72: 3.93 | S72: Bäckerinnenkartoffeln | T72: 600
A73: =A62+1 -> 2018-05-13 | D73: Kakao/Malzgetränk in Port 50 % | E73: 0.2 | I73: Thymianjus | S73: mit Spiegelei
D74: Zopf 100 g | E74: 1.35 | I74: Bäckerinnenkartoffeln | J74: 1 | K74: 600
D75: Butter Port 20 g | E75: 0.44 | I75: Bohnen geschmort | J75: 0.54 | K75: 604
A76: =SUM(O72:O81)*O71+SUM(J72:J81)*J71+SUM(E72:E81)*E71 -> 1.606 | D76: Konfitüre/Nussaufstrich 1 | E76: 0.17 | I76: Vanilleglace 50 g | J76: 0.49 | S76: Abend
D77: Orangensaft 1 dl | E77: 0.14 | I77: Schoggisauce 30 g | J77: 0.1 | S77: Café complet
D78: Rösti 50 % | E78: 0.25 | F78: 612
D79: Spiegelei 1 St | E79: 0.5 | I79: Schwarztee 200 % | J79: 0.1 | K79: 103 | N79: Schwarztee 200 % | O79: 0.1 | P79: 103
A80: Snack | I80: Bretzeli 1 St | J80: 0.6 | N80: Getreideriegel Frucht 1 St | O80: 0.2
I81: Apfel 1 St | J81: 0.5 | N81: Banane 1 St | O81: 0.8
A83: Verpflegungsabrechnung | I83: Die Richtigkeit bescheinigt: | N83: Für die fachliche Richtigkeit: | S83: Genehmigung:
A84: Verbrauch gem Vpf Plan | E84: =(A10+A21+A32+A43+A54+A65+A76)*100 -> 6166.6 | I84: Der Rechnungsführer | N84: Quartiermeister | S84: Der Kommandant
A85: Vpf Kredit | E85: ='Übersicht und Anleitung'!D18*100 -> 6300
A86: Saldo | E86: =E85-E84 -> 133.4
A88: Herkunftsdeklaration Fleisch, Milch, Eier: Alle Fleisch /-erzeugnisse, Milch /-Milchprodukte und Eier stammen aus der Schweiz
A89: Herkunftsdeklaration Fisch und Meerestiere: Alle Fische und Meerestiere stammen aus der Schweiz oder sind mit dem Label ASC / MSC oder FOS versehen.
A90: Deklaration von Zutaten / allergenen Stoffen (LKV Art. 8): Bei Fragen betreffend allergenen Zutaten kann der Küchenchef Auskunft geben.
A91: Lenkungspunkte: Diese sind mit * gekennzeichnet. Nach der Umsetzung sind sie mittels Visum zu bestätigen (vgl Regl 06.006 Kochrezepte, Seiten 21 und ff Rezepte).

Sheet Woche 2
A1: Verpflegungsplan | G1: von: | I1: 2018-05-14 | L1: bis: | N1: =A73 -> 2018-05-20 | P1: Einheit
B3: Frühstück | G3: Mittagessen | L3: Nachtessen | Q3: Fleischlos
B4: CCP | C4: Visum | E4: Preis | F4: Rezept | G4: CCP | H4: Visum | J4: Preis | K4: Rezept | L4: CCP | M4: Visum | O4: Preis | P4: Rezept | Q4: CCP | R4: Visum | T4: Rezept
D5: Normalbestand | E5: =VLOOKUP(D5,'Vpf Art Genre Subs Tipi di suss'!$A:$B,2,FALSE) -> 1 | I5: Normalbestand | J5: =VLOOKUP(I5,'Vpf Art Genre Subs Tipi di suss'!$A:$B,2,FALSE) -> 1 | N5: Normalbestand | O5: =VLOOKUP(N5,'Vpf Art Genre Subs Tipi di suss'!$A:$B,2,FALSE) -> 1 | S5: Mittag
A6: Montag | D6: Kaffee in Portionen 50 % | E6: 0.2 | I6: Bouillon mit Fideli 50% | J6: 0.05 | K6: 205 | N6: Gemüsesuppe Bauernart 50 % | O6: 0.25 | P6: 204 | S6: Älplermakkaronen | T6: 900
A7: =I1 -> 2018-05-14 | D7: Kakao/Malzgetränk in Port 50 % | E7: 0.2 | I7: Älplermakkaraonen | J7: 1.94 | K7: 900 | L7: * | N7: Schweinsbratwurst mit | O7: 2.52
D8: Brotsorten 100 g | E8: 0.39 | I8: Apfelkompott | J8: 0.58 | K8: 1109 | N8: Zwiebelsauce 50 % | O8: 0.2 | P8: 301
D9: Butter Port 20 g | E9: 0.44 | I9: Mischsalat Frühling | J9: 0.46 | N9: Rösti | O9: 0.49 | P9: 612
A10: =SUM(O6:O15)*O5+SUM(J6:J15)*J5+SUM(E6:E15)*E5 -> 11.99 | D10: Konfitüre/Nussaufstrich 1 | E10: 0.17 | I10: Balsamico Salatsauce 30 g | J10: 0.05 | N10: Kräutertomate | O10: 0.5 | P10: 707 | S10: Abend
D11: Orangensaft 1 dl | E11: 0.14 | N11: Leckerlicreme | O11: 0.56 | P11: 1107 | S11: Rösti mit Spiegelei | T11: 612
D12: Frühstücksmüesli 30 g | E12: 0.25
D13: Käse divers 30 g | E13: 0.54 | I13: Apfel-Pfirsichtee 200 % | J13: 0.13 | N13: Apfel-Pfirsichtee 200 % | O13: 0.13
A14: Snack | I14: Militärschokolade 1 St | J14: 0.35 | N14: Traubenzucker 1 St | O14: 0.15
I15: Apfel 1 St | J15: 0.5 | N15: Banane 1 St | O15: 0.8
D16: Normalbestand | E16: =VLOOKUP(D16,'Vpf Art Genre Subs Tipi di suss'!$A:$B,2,FALSE) -> 1 | I16: Normalbestand | J16: =VLOOKUP(I16,'Vpf Art Genre Subs Tipi di suss'!$A:$B,2,FALSE) -> 1 | N16: Normalbestand | O16: =VLOOKUP(N16,'Vpf Art Genre Subs Tipi di suss'!$A:$B,2,FALSE) -> 1 | S16: Mittag
A17: Dienstag | D17: Kaffee in Portionen 50 % | E17: 0.2 | I17: Zucchetticremesuppe 50 % | J17: 0.2 | K17: 208 | N17: Bouillon mit Croutons 50 % | O17: 0.05 | P17: 205 | S17: Kartoffelstock gratiniert | T17: 606
A18: =A7+1 -> 2018-05-15 | D18: Kakao/Malzgetränk in Port 50 % | E18: 0.2 | G18: * | I18: Schweinshalsbraten | J18: 2.67 | K18: 422 | L18: * | N18: Nasi Goreng | O18: 4.26 | P18: 922
D19: Brotsorten 100 g | E19: 0.39 | I19: Kartoffelstock | J19: 0.53 | K19: 606 | N19: Mischsalat Frühling 30 % | O19: 0.15
D20: Butter Port 20 g | E20: 0.44 | I20: Blumenkohl nach | J20: 0.8 | K20: 703 | N20: Rüeblisalat 30 % | O20: 0.2 | P20: 812
A21: =SUM(O17:O26)*O16+SUM(J17:J26)*J16+SUM(E17:E26)*E16 -> 13.7 | D21: Konfitüre/Nussaufstrich 1 | E21: 0.17 | I21: polnischer Art | N21: Maissalat 30 % | O21: 0.15 | P21: 808 | S21: Abend
D22: Orangensaft 1 dl | E22: 0.14 | N22: Balsamico Salatsauce 30 g | O22: 0.05 | S22: Gebratener Reis mit | T22: 608
D23: Frühstücksmüesli 30 g | E23: 0.25 | S23: Gemüse und Ei
D24: Joghurt Port 100 g | E24: 0.5 | I24: Apfel-Pfirsichtee 200 % | J24: 0.1 | K24: 100 | N24: Apfel-Pfirsichtee 200 % | O24: 0.1 | P24: 100
A25: Snack | I25: Nussmischung assortiert 1 St | J25: 0.6 | N25: Leckerli 1 St | O25: 0.55
I26: Birne 1 St | J26: 0.6 | N26: Orange 1 St | O26: 0.4
D27: Normalbestand | E27: =VLOOKUP(D27,'Vpf Art Genre Subs Tipi di suss'!$A:$B,2,FALSE) -> 1 | I27: Normalbestand | J27: =VLOOKUP(I27,'Vpf Art Genre Subs Tipi di suss'!$A:$B,2,FALSE) -> 1 | N27: Fakultatives Nachtessen | O27: =VLOOKUP(N27,'Vpf Art Genre Subs Tipi di suss'!$A:$B,2,FALSE) -> 0.3 | S27: Mittag
A28: Mittwoch | D28: Kaffee in Portionen 50 % | E28: 0.2 | I28: Gemüsecremesuppe 50 % | J28: 0.2 | K28: 208 | N28: Teigwarenauflauf | O28: 3.02 | P28: 928 | S28: Quornvoressen | T28: 427
A29: =A18+1 -> 2018-05-16 | D29: Kakao/Malzgetränk in Port 50 % | E29: 0.2 | G29: * | I29: Pouletvoressen nach | J29: 2.81 | K29: 427 | N29: Randensalat 30 % | O29: 0.1 | P29: 810 | S29: nach alter Art
D30: Brotsorten 100 g | E30: 0.39 | I30: alter Art | N30: Weisskabissalat 30 % | O30: 0.18 | P30: 805
D31: Butter Port 20 g | E31: 0.44 | I31: Ebly | J31: 0.65 | K31: 602 | N31: Maissalat 30 % | O31: 0.15 | P31: 808
A32: =SUM(O28:O37)*O27+SUM(J28:J37)*J27+SUM(E28:E37)*E27 -> 9.03 | D32: Konfitüre/Nussaufstrich 1 | E32: 0.17 | I32: Bohnen geschmort | J32: 0.54 | K32: 704 | N32: Mischsalat Frühling 30 % | O32: 0.15 | S32: Abend
D33: Orangensaft 1 dl | E33: 0.14 | N33: Franz Salatsauce 30 g | O33: 0.05 | S33: Teigwarenauflauf | T33: 928
D34: Frühstücksmüesli 30 g | E34: 0.25
D35: Birchermüesli | E35: 0.5 | F35: 904 | I35: Hausgemachter Eistee 200% | J35: 0.1 | K35: 100 | N35: Hausgemachter Eistee 200% | O35: 0.1 | P35: 100
A36: Snack | I36: Getreideriegel Honig 1 St | J36: 0.2 | N36: Bretzeli 1 St | O36: 0.55
I37: Banane 1 St | J37: 0.8 | N37: Apfel 1 St | O37: 0.5
D38: Normalbestand | E38: =VLOOKUP(D38,'Vpf Art Genre Subs Tipi di suss'!$A:$B,2,FALSE) -> 1 | I38: Normalbestand | J38: =VLOOKUP(I38,'Vpf Art Genre Subs Tipi di suss'!$A:$B,2,FALSE) -> 1 | N38: Normalbestand | O38: =VLOOKUP(N38,'Vpf Art Genre Subs Tipi di suss'!$A:$B,2,FALSE) -> 1 | S38: Mittag
A39: Donnerstag | D39: Kaffee in Portionen 50 % | E39: 0.2 | I39: Bouillon mit Backerbsen | J39: 0.04 | K39: 205 | N39: Tomatensuppe 50 % | O39: 0.13 | P39: 208 | S39: Auberginenpiccata
A40: =A29+1 -> 2018-05-17 | D40: Kakao/Malzgetränk in Port 50 % | E40: 0.2 | G40: * | I40: Piccata vom Schwein | J40: 3.39 | K40: 413 | L40: * | N40: Chipolataspiessli | O40: 1.28
D41: Brotsorten 100 g | E41: 0.39 | I41: Tomatensauce 50 % | J41: 0.13 | K41: 311 | N41: Kräuterbutter CF4 | O41: 0.1
D42: Butter Port 20 g | E42: 0.44 | I42: Polenta | J42: 0.55 | K42: 610 | N42: Weissweinrisotto | O42: 0.57 | P42: 611
A43: =SUM(O39:O48)*O38+SUM(J39:J48)*J38+SUM(E39:E48)*E38 -> 12.14 | D43: Konfitüre/Nussaufstrich 1 | E43: 0.17 | I43: Ratatouille | J43: 0.61 | K43: 709 | N43: Mischsalat Frühling | O43: 0.46 | S43: Abend
D44: Orangensaft 1 dl | E44: 0.14 | I44: Bananencake | J44: 0.58 | K44: 1105 | N44: Thousend Island dressing 30 g | O44: 0.11 | P44: 303 | S44: Gemüsespiessli
D45: Frühstücksmüesli 30 g | E45: 0.25
D46: Trutenschinken 50 g | E46: 0.5 | I46: Fruchtschalentee 200 % | J46: 0.1 | K46: 100 | N46: Fruchtschalentee 200 % | O46: 0.1 | P46: 100
A47: Snack | I47: Swiss Choco Bits 1 St | J47: 0.4 | N47: Getreideriegel Frucht 1 St | O47: 0.2
I48: Apfel 1 St | J48: 0.5 | N48: Birne 1 St | O48: 0.6
D49: Normalbestand | E49: =VLOOKUP(D49,'Vpf Art Genre Subs Tipi di suss'!$A:$B,2,FALSE) -> 1 | I49: Normalbestand | J49: =VLOOKUP(I49,'Vpf Art Genre Subs Tipi di suss'!$A:$B,2,FALSE) -> 1 | N49: Leistungsabtreten | O49: =VLOOKUP(N49,'Vpf Art Genre Subs Tipi di suss'!$A:$B,2,FALSE) -> 0.75 | S49: Mittag
A50: Freitag | D50: Kaffee in Portionen 50 % | E50: 0.2 | I50: Minestrone 50 % | J50: 0.31 | K50: 218 | L50: * | N50: Hörnlipilaf | O50: 2.59 | P50: 1002 | S50: Vollkorngemüseburger
A51: =A40+1 -> 2018-05-18 | D51: Kakao/Malzgetränk in Port 50 % | E51: 0.2 | G51: * | I51: Paniertes Seelachsfilet | J51: 1.88 | K51: 505 | N51: Mischsalat Frühling | O51: 0.46
D52: Brotsorten 100 g | E52: 0.39 | I52: Remouladensauce | J52: 0.34 | K52: 309 | N52: Franz Salatsauce 30 g | O52: 0.05
D53: Butter Port 20 g | E53: 0.44 | I53: Salzkartoffeln | J53: 0.68 | K53: 613
A54: =SUM(O50:O59)*O49+SUM(J50:J59)*J49+SUM(E50:E59)*E49 -> 11.215 | D54: Konfitüre/Nussaufstrich 1 | E54: 0.17 | I54: Spinat gedünstet | J54: 0.73 | K54: 704 | N54: Studentenschnitte | O54: 1.21 | P54: 1115 | S54: Abend
D55: Orangensaft 1 dl | E55: 0.14 | S55: Hörnli Pilaf | T55: 1002
D56: Frühstücksmüesli 30 g | E56: 0.25 | S56: mit Quornbolognaise
D57: Käse divers 30 g | E57: 0.54 | I57: Apfel-Pfirsichttee 200% | J57: 0.1 | K57: 100 | N57: Apfel-Pfirsichttee 200% | O57: 0.1 | P57: 100
A58: Snack | I58: Getreideriegel Frucht 1 St | J58: 0.2 | N58: Malzriegel 1 St | O58: 0.45
I59: Orange 1 St | J59: 0.4 | N59: Banane 1 St | O59: 0.8
D60: Leistungsabtreten | E60: =VLOOKUP(D60,'Vpf Art Genre Subs Tipi di suss'!$A:$B,2,FALSE) -> 0.75 | I60: Sonntagswache | J60: =VLOOKUP(I60,'Vpf Art Genre Subs Tipi di suss'!$A:$B,2,FALSE) -> 0.1 | N60: Sonntagswache | O60: =VLOOKUP(N60,'Vpf Art Genre Subs Tipi di suss'!$A:$B,2,FALSE) -> 0.1 | S60: Mittag
A61: Samstag | D61: Kaffee in Portionen 50 % | E61: 0.2 | G61: * | I61: Schweins-Sparerips | J61: 5.27 | K61: 426 | N61: Flammkuchen | O61: 3 | P61: 909 | S61: Ofenkartoffel mit Sauerrahm
A62: =A51+1 -> 2018-05-19 | D62: Kakao/Malzgetränk in Port 50 % | E62: 0.2 | I62: Ofenkartoffeln mit Sauerrahm | J62: 0.94 | N62: Mischsalat Frühling 30 % | O62: 0.15
D63: Brotsorten 100 g | E63: 0.39 | I63: Maiskolben | J63: 1.37 | N63: Randensalat 30 % | O63: 0.1 | P63: 810
D64: Butter Port 20 g | E64: 0.44 | I64: Mischsalat Frühling | J64: 0.46 | N64: Maissalat 30 % | O64: 0.15 | P64: 808
A65: =SUM(O61:O70)*O60+SUM(J61:J70)*J60+SUM(E61:E70)*E60 -> 3.059 | D65: Konfitüre/Nussaufstrich 1 | E65: 0.17 | I65: Balsamico Salatsauce 30 g | J65: 0.05 | N65: Franz Salatsauce 30 g | O65: 0.05 | S65: Abend
D66: Orangensaft 1 dl | E66: 0.14 | S66: Flammkuchen ohne Speck | T66: 909
D67: Frühstücksmüesli 30 g | E67: 0.25
D68: Salami 50 g | E68: 0.51 | I68: Himbeer-Erdbeertee 200% | J68: 0.1 | K68: 100 | N68: Himbeer-Erdbeertee 200% | O68: 0.1 | P68: 100
A69: Snack | I69: Militärbisquits 1 St | J69: 0.35 | N69: Traubenzucker 1 St | O69: 0.15
I70: Birne 1 St | J70: 0.6 | N70: Apfel 1 St | O70: 0.5
D71: Sonntagswache | E71: =VLOOKUP(D71,'Vpf Art Genre Subs Tipi di suss'!$A:$B,2,FALSE) -> 0.1 | I71: Sonntagswache | J71: =VLOOKUP(I71,'Vpf Art Genre Subs Tipi di suss'!$A:$B,2,FALSE) -> 0.1 | N71: Sonntagswache | O71: =VLOOKUP(N71,'Vpf Art Genre Subs Tipi di suss'!$A:$B,2,FALSE) -> 0.1 | S71: Mittag
A72: Sonntag | D72: Kaffee in Portionen 50 % | E72: 0.2 | G72: * | I72: Kalbsbrustrollbraten an | J72: 3.2 | K72: 422 | N72: Café complet | O72: 3.93 | S72: Kartoffelgratin | T72: 605
A73: =A62+1 -> 2018-05-20 | D73: Kakao/Malzgetränk in Port 50 % | E73: 0.2 | I73: Rosmarinjus
D74: Zopf 100 g | E74: 1.35 | I74: Kartoffelgratin | J74: 0.93 | K74: 605
D75: Butter Port 20 g | E75: 0.44 | I75: Kefen gedünstet | J75: 0.79 | K75: 704
A76: =SUM(O72:O81)*O71+SUM(J72:J81)*J71+SUM(E72:E81)*E71 -> 1.552 | D76: Konfitüre/Nussaufstrich 1 | E76: 0.17 | S76: Abend
D77: Orangensaft 1 dl | E77: 0.14 | I77: Tirami su | J77: 1.22 | K77: 1118 | S77: Café complet
D78: Rösti 50 % | E78: 0.25 | F78: 612
D79: Spiegelei 1 St | E79: 0.5 | I79: Schwarztee 200 % | J79: 0.1 | K79: 103 | N79: Schwarztee 200 % | O79: 0.1 | P79: 103
A80: Snack | I80: Bretzeli 1 St | J80: 0.6 | N80: Getreideriegel Frucht 1 St | O80: 0.2
I81: Banane 1 St | J81: 0.8 | N81: Orange 1 St | O81: 0.4
A83: Verpflegungsabrechnung | I83: Die Richtigkeit bescheinigt: | N83: Für die fachliche Richtigkeit: | S83: Genehmigung:
A84: Verbrauch gem Vpf Plan | E84: =(A10+A21+A32+A43+A54+A65+A76)*100 -> 6268.6 | I84: Der Rechnungsführer | N84: Quartiermeister | S84: Der Kommandant
A85: Vpf Kredit | E85: ='Übersicht und Anleitung'!D18*100 -> 6300
A86: Saldo | E86: =E85-E84 -> 31.4
A88: Herkunftsdeklaration Fleisch, Milch, Eier: Alle Fleisch /-erzeugnisse, Milch /-Milchprodukte und Eier stammen aus der Schweiz
A89: Herkunftsdeklaration Fisch und Meerestiere: Alle Fische und Meerestiere stammen aus der Schweiz oder sind mit dem Label ASC / MSC oder FOS versehen.
A90: Deklaration von Zutaten / allergenen Stoffen (LKV Art. 8): Bei Fragen betreffend allergenen Zutaten kann der Küchenchef Auskunft geben.
A91: Lenkungspunkte: Diese sind mit * gekennzeichnet. Nach der Umsetzung sind sie mittels Visum zu bestätigen (vgl Regl 06.006 Kochrezepte, Seiten 21 und ff Rezepte).

Sheet Woche 3
A1: Verpflegungsplan | G1: von: | I1: 2018-05-21 | L1: bis: | N1: =A73 -> 2018-05-27 | P1: Einheit
B3: Frühstück | G3: Mittagessen | L3: Nachtessen | Q3: Fleischlos
B4: CCP | C4: Visum | E4: Preis | F4: Rezept | G4: CCP | H4: Visum | J4: Preis | K4: Rezept | L4: CCP | M4: Visum | O4: Preis | P4: Rezept | Q4: CCP | R4: Visum | T4: Rezept
D5: Normalbestand | E5: =VLOOKUP(D5,'Vpf Art Genre Subs Tipi di suss'!$A:$B,2,FALSE) -> 1 | I5: Normalbestand | J5: =VLOOKUP(I5,'Vpf Art Genre Subs Tipi di suss'!$A:$B,2,FALSE) -> 1 | N5: Normalbestand | O5: =VLOOKUP(N5,'Vpf Art Genre Subs Tipi di suss'!$A:$B,2,FALSE) -> 1 | S5: Mittag
A6: Montag | D6: Kaffee in Portionen 50 % | E6: 0.2 | I6: Bouillon mit Flädli 50 % | J6: 0.05 | K6: 205 | N6: Kressecremesuppe 50 % | O6: 0.14 | P6: 208 | S6: Spaghetti mit Butter | T6: 617
A7: =I1 -> 2018-05-21 | D7: Kakao/Malzgetränk in Port 50 % | E7: 0.2 | I7: Spaghetti | J7: 0.25 | K7: 617 | L7: * | N7: Hausgemachter Hackbraten | O7: 1.92 | S7: Tomatensauce | T7: 311
D8: Brotsorten 100 g | E8: 0.39 | I8: Tomatensauce | J8: 0.16 | K8: 311 | N8: Senfsauce | O8: 0.07 | P8: 301 | S8: Pesto CF4 20 g
D9: Butter Port 20 g | E9: 0.44 | I9: Pesto CF4 20 g | J9: 0.07 | N9: Neue Bratkartoffeln | O9: 0.96 | P9: 600
A10: =SUM(O6:O15)*O5+SUM(J6:J15)*J5+SUM(E6:E15)*E5 -> 9.15 | D10: Konfitüre/Nussaufstrich 1 | E10: 0.17 | I10: Mischsalat Frühling | J10: 0.46 | N10: Rüebli gedünstet | O10: 0.49 | P10: 704 | S10: Abend
D11: Orangensaft 1 dl | E11: 0.14 | I11: Franz Salatsauce 30 g | J11: 0.05 | S11: Vollkorngemüseburger
D12: Frühstücksmüesli 30 g | E12: 0.25 | S12: mit Käse
D13: Käse divers 30 g | E13: 0.54 | I13: Apfel-Pfirsichtee 200 % | J13: 0.1 | K13: 100 | N13: Apfel-Pfirsichtee 200 % | O13: 0.1 | P13: 100
A14: Snack | I14: Militärbisquit 1 St | J14: 0.35 | N14: Leckerli 1 St | O14: 0.55
I15: Birne 1 St | J15: 0.6 | N15: Apfel 1 St | O15: 0.5
D16: Normalbestand | E16: =VLOOKUP(D16,'Vpf Art Genre Subs Tipi di suss'!$A:$B,2,FALSE) -> 1 | I16: Normalbestand | J16: =VLOOKUP(I16,'Vpf Art Genre Subs Tipi di suss'!$A:$B,2,FALSE) -> 1 | N16: Normalbestand | O16: =VLOOKUP(N16,'Vpf Art Genre Subs Tipi di suss'!$A:$B,2,FALSE) -> 1 | S16: Mittag
A17: Dienstag | D17: Kaffee in Portionen 50 % | E17: 0.2 | I17: Gemüsecremesuppe 50 % | J17: 0.2 | K17: 208 | N17: Bouillon mit Ei 50 % | O17: 0.05 | P17: 205 | S17: Omelette mit Käse
A18: =A7+1 -> 2018-05-22 | D18: Kakao/Malzgetränk in Port 50 % | E18: 0.2 | G18: * | I18: Schweinskotelett sautiert | J18: 3.24 | N18: Lasagne mit Spinat und Ricotta | O18: 2.45 | P18: 915
D19: Brotsorten 100 g | E19: 0.39 | I19: Kräuterbutter | J19: 0.35 | N19: Mischsalat Frühling 30 % | O19: 0.15
D20: Butter Port 20 g | E20: 0.44 | I20: Weissweinrisotto | J20: 0.57 | K20: 611 | N20: Randensalat 30 % | O20: 0.1 | P20: 810
A21: =SUM(O17:O26)*O16+SUM(J17:J26)*J16+SUM(E17:E26)*E16 -> 13.4 | D21: Konfitüre/Nussaufstrich 1 | E21: 0.17 | I21: Zucchetti provenzialische Art | J21: 0.68 | K21: 704 | N21: Maissalat 30 % | O21: 0.15 | P21: 808 | S21: Abend
D22: Orangensaft 1 dl | E22: 0.14 | N22: Balsamico Salatsauce 30 g | O22: 0.05 | S22: Lasagne mit Spinat und Ricotta | T22: 915
D23: Frühstücksmüesli 30 g | E23: 0.25 | N23: Mokkacreme | O23: 0.42 | P23: 1107
D24: Aufschnitt 50 g | E24: 0.6 | I24: Erdbeer-Himbeertee 200% | J24: 0.1 | K24: 100 | N24: Erdbeer-Himbeertee 200% | O24: 0.1 | P24: 100
A25: Snack | I25: Nussmischung assortiert 1 St | J25: 0.6 | N25: Crackers 1 St | O25: 0.6
I26: Banane 1 St | J26: 0.8 | N26: Orange 1 St | O26: 0.4
D27: Normalbestand | E27: =VLOOKUP(D27,'Vpf Art Genre Subs Tipi di suss'!$A:$B,2,FALSE) -> 1 | I27: Normalbestand | J27: =VLOOKUP(I27,'Vpf Art Genre Subs Tipi di suss'!$A:$B,2,FALSE) -> 1 | N27: Fakultatives Nachtessen | O27: =VLOOKUP(N27,'Vpf Art Genre Subs Tipi di suss'!$A:$B,2,FALSE) -> 0.3 | S27: Mittag
A28: Mittwoch | D28: Kaffee in Portionen 50 % | E28: 0.2 | I28: Ingwerrüeblisuppe 50 % | J28: 0.22 | K28: 219 | N28: Walliser Käseschnitte | O28: 3.61 | P28: 902 | S28: Linsen-Gemüse Eintopf | T28: 213
A29: =A18+1 -> 2018-05-23 | D29: Kakao/Malzgetränk in Port 50 % | E29: 0.2 | G29: * | I29: Pouletvoressen nach Emmentalerart | J29: 2.44 | K29: 427 | N29: Rüeblisalat 30 % | O29: 0.1 | P29: 812
D30: Brotsorten 100 g | E30: 0.39 | I30: Kartoffelstock | J30: 0.53 | K30: 606 | N30: Maissalat 30 % | O30: 0.15 | P30: 808
D31: Butter Port 20 g | E31: 0.44 | I31: Peperonata | J31: 0.59 | K31: 709 | N31: Mischsalat Frühling 30 % | O31: 0.15
A32: =SUM(O28:O37)*O27+SUM(J28:J37)*J27+SUM(E28:E37)*E27 -> 8.473 | D32: Konfitüre/Nussaufstrich 1 | E32: 0.17 | N32: Balsamico Salatsauce 30 g | O32: 0.05 | S32: Abend
D33: Orangensaft 1 dl | E33: 0.14 | S33: Walliser-Käseschnitte | T33: 902
D34: Frühstücksmüesli 30 g | E34: 0.25
D35: Birchermüesli | E35: 0.5 | F35: 904 | I35: Fruchtschalentee 200 % | J35: 0.1 | K35: 100 | N35: Fruchtschalentee 200 % | O35: 0.1 | P35: 100
A36: Snack | I36: Getreideriegel Honig 1 St | J36: 0.2 | N36: Fruchtmischung ass 1 St | O36: 0.35
I37: Birne 1 St | J37: 0.6 | N37: Apfel 1 St | O37: 0.5
D38: Normalbestand | E38: =VLOOKUP(D38,'Vpf Art Genre Subs Tipi di suss'!$A:$B,2,FALSE) -> 1 | I38: Normalbestand | J38: =VLOOKUP(I38,'Vpf Art Genre Subs Tipi di suss'!$A:$B,2,FALSE) -> 1 | N38: Normalbestand | O38: =VLOOKUP(N38,'Vpf Art Genre Subs Tipi di suss'!$A:$B,2,FALSE) -> 1 | S38: Mittag
A39: Donnerstag | D39: Kaffee in Portionen 50 % | E39: 0.2 | I39: Pürierte Gemüsesuppe 50 % | J39: 0.2 | K39: 219 | L39: * | N39: Gebratenes halbes Poulet | O39: 4.34 | S39: Gemüseauflauf | T39: 700
A40: =A29+1 -> 2018-05-24 | D40: Kakao/Malzgetränk in Port 50 % | E40: 0.2 | G40: * | I40: Pangasiusfilet im Backteig | J40: 2.33 | K40: 501 | N40: mit Saucen
D41: Brotsorten 100 g | E41: 0.39 | I41: Remouladensauce | J41: 0.34 | K41: 309 | N41: Pommes Chips CF4 | O41: 1.18
D42: Butter Port 20 g | E42: 0.44 | I42: Schnittlauchkartoffeln | J42: 0.7 | K42: 600
A43: =SUM(O39:O48)*O38+SUM(J39:J48)*J38+SUM(E39:E48)*E38 -> 14.69 | D43: Konfitüre/Nussaufstrich 1 | E43: 0.17 | I43: Spinat gedünstet | J43: 0.73 | K43: 704 | N43: Rüeblicake | O43: 0.47 | P43: 1105 | S43: Abend
D44: Orangensaft 1 dl | E44: 0.14 | S44: Gemüseburger CF4
D45: Frühstücksmüesli 30 g | E45: 0.25
D46: Joghurt Port 100 g | E46: 0.5 | I46: Apfel-Pfirsichtee 200 % | J46: 0.13 | N46: Apfel-Pfirsichtee 200 % | O46: 0.13
A47: Snack | I47: Getreideriegel Frucht 1 St | J47: 0.2 | N47: Malzriegel 1 St | O47: 0.45
I48: Orange 1 St | J48: 0.4 | N48: Banane 1 St | O48: 0.8
D49: Normalbestand | E49: =VLOOKUP(D49,'Vpf Art Genre Subs Tipi di suss'!$A:$B,2,FALSE) -> 1 | I49: Normalbestand | J49: =VLOOKUP(I49,'Vpf Art Genre Subs Tipi di suss'!$A:$B,2,FALSE) -> 1 | N49: Normalbestand | O49: =VLOOKUP(N49,'Vpf Art Genre Subs Tipi di suss'!$A:$B,2,FALSE) -> 1 | S49: Mittag
A50: Freitag | D50: Comella 5 dl CF4 | E50: 3.8 | I50: Thonsandwich 1 St | J50: 1.17 | S50: Käse Sandwich 1 St
A51: =A40+1 -> 2018-05-25 | D51: Gipfeli 1St | E51: 1.15 | I51: Getreideriegel 1 St | J51: 0.2
I52: Militärschokolade 1 St | J52: 0.35
I53: Apfel 1 St | J53: 0.5
A54: =SUM(O50:O59)*O49+SUM(J50:J59)*J49+SUM(E50:E59)*E49 -> 8.07 | I54: Süssgetränk 5 dl PET | J54: 0.9 | S54: Abend
A58: Snack
D60: Normalbestand | E60: =VLOOKUP(D60,'Vpf Art Genre Subs Tipi di suss'!$A:$B,2,FALSE) -> 1 | I60: Normalbestand | J60: =VLOOKUP(I60,'Vpf Art Genre Subs Tipi di suss'!$A:$B,2,FALSE) -> 1 | N60: Normalbestand | O60: =VLOOKUP(N60,'Vpf Art Genre Subs Tipi di suss'!$A:$B,2,FALSE) -> 1 | S60: Mittag
A61: Samstag
A62: =A51+1 -> 2018-05-26
A65: =SUM(O61:O70)*O60+SUM(J61:J70)*J60+SUM(E61:E70)*E60 -> 0 | S65: Abend
A69: Snack
D71: Normalbestand | E71: =VLOOKUP(D71,'Vpf Art Genre Subs Tipi di suss'!$A:$B,2,FALSE) -> 1 | I71: Normalbestand | J71: =VLOOKUP(I71,'Vpf Art Genre Subs Tipi di suss'!$A:$B,2,FALSE) -> 1 | N71: Normalbestand | O71: =VLOOKUP(N71,'Vpf Art Genre Subs Tipi di suss'!$A:$B,2,FALSE) -> 1 | S71: Mittag
A72: Sonntag
A73: =A62+1 -> 2018-05-27
A76: =SUM(O72:O81)*O71+SUM(J72:J81)*J71+SUM(E72:E81)*E71 -> 0 | S76: Abend
A80: Snack
A83: Verpflegungsabrechnung | I83: Die Richtigkeit bescheinigt: | N83: Für die fachliche Richtigkeit: | S83: Genehmigung:
A84: Verbrauch gem Vpf Plan | E84: =(A10+A21+A32+A43+A54+A65+A76)*100 -> 5378.3 | I84: Der Rechnungsführer | N84: Quartiermeister | S84: Der Kommandant
A85: Vpf Kredit | E85: ='Übersicht und Anleitung'!D18*100-('Übersicht und Anleitung'!C18*100*2) -> 4500
A86: Saldo | E86: =E85-E84 -> -878.3
A88: Herkunftsdeklaration Fleisch, Milch, Eier: Alle Fleisch /-erzeugnisse, Milch /-Milchprodukte und Eier stammen aus der Schweiz
A89: Herkunftsdeklaration Fisch und Meerestiere: Alle Fische und Meerestiere stammen aus der Schweiz oder sind mit dem Label ASC / MSC oder FOS versehen.
A90: Deklaration von Zutaten / allergenen Stoffen (LKV Art. 8): Bei Fragen betreffend allergenen Zutaten kann der Küchenchef Auskunft geben.
A91: Lenkungspunkte: Diese sind mit * gekennzeichnet. Nach der Umsetzung sind sie mittels Visum zu bestätigen (vgl Regl 06.006 Kochrezepte, Seiten 21 und ff Rezepte).

Sheet Plan subs CC
A1: Plan de la subsistance | G1: du: | I1: 2018-04-30 | L1: à: | N1: =A73 -> 2018-05-06 | P1: Unité:
B3: Petit déjeuner | G3: Dîner | L3: Souper | Q3: Sans viande
B4: PCC | C4: Visa | E4: Prix | F4: Recette | G4: PCC | H4: Visa | J4: Prix | K4: Recette | L4: PCC | M4: Visa | O4: Prix | P4: Recette | Q4: PCC | R4: Visa | T4: Recette
D5: Effectif normal | E5: 1 | I5: Effectif normal | J5: 1 | N5: Effectif normal | O5: 1 | S5: Dîner
A6: Lundi | I6: Vol-au-vent avec sauce viande et champignons | J6: 2.33 | K6: 923 | N6: Bouillon aux célestines 50 % | O6: 0.05 | P6: 205 | S6: Vol-au-vent aux champignons | T6: 821
A7: =I1 -> 2018-04-30 | N7: Maccaroni au beurre | O7: 0.27 | P7: 617
I8: Pain 100 g | J8: 0.39 | N8: Sauce Waluca | O8: 0.68 | P8: 311
N9: Salade de carottes | O9: 0.61 | P9: 812
A10: =SUM(O6:O15)*O5+SUM(J6:J15)*J5+SUM(E6:E15)*E5 -> 7.08 | S10: Souper
S11: Maccaroni au beurre | T11: 512
S12: Sauce tomates | T12: 308
I13: Boisson doux PET 5 dl | J13: 0.9 | N13: Thé noir 200 % | O13: 0.05 | P13: 103
A14: Snack | I14: Chocolat militarie 1 pc | J14: 0.35 | N14: Sucre de raisin 1 pc | O14: 0.15
I15: Pomme 1 pc | J15: 0.5 | N15: Banane 1 pc | O15: 0.8
D16: Effectif normal | E16: 1 | I16: Effectif normal | J16: 1 | N16: Effectif normal | O16: 1 | S16: Dîner
A17: Mardi | D17: Café en portion 50 % | E17: 0.2 | I17: Crème de tomates 50 % | J17: 0.13 | K17: 208 | N17: Potage de Grison 50 % | O17: 0.23 | P17: 208 | S17: Curry aux légumes
A18: =A7+1 -> 2018-05-01 | D18: Boisson cacao/malt en port 50 % | E18: 0.2 | G18: * | I18: Emincé de poulet au curryt | J18: 1.71 | K18: 403 | N18: Roesti valaisanne | O18: 2.34 | P18: 903
D19: Assortiment pains 100 g | E19: 0.39 | I19: Riz pilaf aux lègumes | J19: 0.42 | K19: 608 | N19: Salades printemps | O19: 0.46
D20: Beurre portion 20 g | E20: 0.44 | N20: Salade sauce balsamico 30 g | O20: 0.05
A21: =SUM(O17:O26)*O16+SUM(J17:J26)*J16+SUM(E17:E26)*E16 -> 10.14 | D21: Confiture/Crème noisettes 1 | E21: 0.17 | S21: Souper
D22: Jus d'orange 1 dl | E22: 0.14 | N22: Crème au chocolat | O22: 0.42 | P22: 1107 | S22: Roesti végétarien avec | T22: 803
S23: oeuf au plat
D24: Fromage divers 30 g | E24: 0.54 | I24: Thé pomme-pêche 200 % | J24: 0.1 | K24: 100 | N24: Thé pomme-pêche 200 % | O24: 0.1 | P24: 100
A25: Snack | I25: Bisquit militarie 1 pc | J25: 0.55 | N25: Leckerli 1 pc | O25: 0.55
I26: Poire 1 pc | J26: 0.6 | N26: Orange 1 pc | O26: 0.4
D27: Effectif normal | E27: 1 | I27: Effectif normal | J27: 1 | N27: Souper facultatif | O27: 0.3 | S27: Dîner
A28: Mercredi | D28: Café en portion 50 % | E28: 0.2 | I28: Bouillon aux pois frites 50 % | J28: 0.05 | K28: 205 | N28: Purée de légumes 50 % | O28: 0.2 | P28: 208 | S28: Blanquette de quorn à l'emmentaloise | T28: 420
A29: =A18+1 -> 2018-05-02 | D29: Boisson cacao/malt en port 50 % | E29: 0.2 | G29: * | I29: Blanquette de poulet à l'emmentaloise | J29: 2.44 | K29: 427 | N29: Spaghetti au beurre | O29: 0.27 | P29: 617
D30: Assortiment pains 100 g | E30: 0.39 | I30: Pommes purée | J30: 0.53 | K30: 606 | N30: Sauce carbonara | O30: 2.08 | P30: 906
D31: Beurre portion 20 g | E31: 0.44 | I31: Haricots verts étuvés | J31: 0.5 | K31: 704
A32: =SUM(O28:O37)*O27+SUM(J28:J37)*J27+SUM(E28:E37)*E27 -> 7.978 | D32: Confiture/Crème noisettes 1 | E32: 0.17 | N32: Salades printemps | O32: 0.46 | S32: Souper
D33: Jus d'orange 1 dl | E33: 0.14 | N33: Salade sauce à la française 30 g | O33: 0.05 | S33: Spaghetti au beurre | T33: 512
S34: Pesto CF4 20g
D35: Charcuterie 50 g | E35: 0.6 | I35: Thé framboise-fraise 200 % | J35: 0.1 | K35: 100 | N35: Thé framboise-fraise 200 % | O35: 0.1 | P35: 100
A36: Snack | I36: Bâton aux céréales fruits 1 pc | J36: 0.2 | N36: Swiss Choco Bits 1 pc | O36: 0.4
I37: Banane 1 pc | J37: 0.8 | N37: Pomme 1 pc | O37: 0.5
D38: Effectif normal | E38: 1 | I38: Effectif normal | J38: 1 | N38: Effectif normal | O38: 1 | S38: Dîner
A39: Jeudi | D39: Café en portion 50 % | E39: 0.2 | I39: Potage paysanne 50 % | J39: 0.25 | K39: 204 | N39: Bouillon aux croûtons d'ail 50 % | O39: 0.05 | P39: 205 | S39: Tranche de semoule | T39: 501
A40: =A29+1 -> 2018-05-03 | D40: Boisson cacao/malt en port 50 % | E40: 0.2 | G40: * | I40: Poitrine de veau roulée glacée | J40: 3.2 | K40: 422 | L40: * | N40: Mah-Meh au porc | O40: 3.47 | P40: 919 | S40: aux lègumes gratinée
D41: Assortiment pains 100 g | E41: 0.39 | I41: Tranche de semoule gratinée | J41: 0.73 | K41: 603
D42: Beurre portion 20 g | E42: 0.44 | I42: Epinards étuvées | J42: 0.73 | K42: 704
A43: =SUM(O39:O48)*O38+SUM(J39:J48)*J38+SUM(E39:E48)*E38 -> 13.38 | D43: Confiture/Crème noisettes 1 | E43: 0.17 | S43: Souper
D44: Jus d'orange 1 dl | E44: 0.14 | N44: Gâteau aux pommes | O44: 0.86 | P44: 0 | S44: Spaghettis sautées aux lègumes
S45: et oeufs
D46: Bircher muesli 30 % | E46: 0.5 | F46: 904 | I46: Thé ecorce de fruits 200 % | J46: 0.1 | K46: 100 | N46: Thé ecorce de fruits 200 % | O46: 0.1 | P46: 100
A47: Snack | I47: Bretzeli 1 pc | J47: 0.55 | N47: Bâton aux céréales fruits 1 pc | O47: 0.2
I48: Pomme 1 pc | J48: 0.5 | N48: Poire 1 pc | O48: 0.6
D49: Effectif normal | E49: 1 | I49: Effectif normal | J49: 1 | N49: Licenciement selon performance | O49: 0.75 | S49: Dîner
A50: Vendredi | D50: Café en portion 50 % | E50: 0.2 | I50: Bouillon à l' oeuf 50 % | J50: 0.05 | K50: 205 | N50: Potage au pain 50 % | O50: 0.12 | P50: 206 | S50: Piccata d'aubergine | T50: 414
A51: =A40+1 -> 2018-05-04 | D51: Boisson cacao/malt en port 50 % | E51: 0.2 | G51: * | I51: Filet de pangasius à pâte à frire | J51: 2.33 | K51: 501 | N51: Quiche aux oignons et fromage | O51: 3.09 | P51: 915
D52: Assortiment pains 100 g | E52: 0.39 | I52: Sauce rémoulade | J52: 0.34 | K52: 309 | N52: Salade de choux-blanc 50 % | O52: 0.27 | P52: 805
D53: Beurre portion 20 g | E53: 0.44 | I53: Pommes natures | J53: 0.68 | K53: 613 | N53: Salade de betteraves 50 % | O53: 0.15 | P53: 810
A54: =SUM(O50:O59)*O49+SUM(J50:J59)*J49+SUM(E50:E59)*E49 -> 11.8675 | D54: Confiture/Crème noisettes 1 | E54: 0.17 | I54: Courgettes étuvées | J54: 0.75 | K54: 704 | N54: Salades printemps 30 % | O54: 0.15 | S54: Souper
D55: Jus d'orange 1 dl | E55: 0.14 | N55: Salade sauce à la française 30 g | O55: 0.05 | S55: Quiche aux oignons et fromage | T55: 813
I56: Cake aux bananes | J56: 0.58 | K56: 1105
D57: Joghurt aux fruits portion 100 g | E57: 0.5 | I57: Thé froid maison 200 % | J57: 0.1 | K57: 100 | N57: Thé froid maison 200 % | O57: 0.1 | P57: 100
A58: Snack | I58: Cracker 1 pc | J58: 0.6 | N58: Bâton de malt 1 pc | O58: 0.6
I59: Orange 1 pc | J59: 0.4 | N59: Banane 1 pc | O59: 0.8
D60: Licenciement selon performance | E60: 0.75 | I60: Garde weekend | J60: 0.1 | N60: Garde weekend | O60: 0.1 | S60: Dîner
A61: Samedi | D61: Café en portion 50 % | E61: 0.2 | G61: * | I61: Côtelette de porc sauté | J61: 3.24 | N61: Pizza au jambon | O61: 4.14 | P61: 924 | S61: Escalope de quorn aux lègumes
A62: =A51+1 -> 2018-05-05 | D62: Boisson cacao/malt en port 50 % | E62: 0.2 | I62: Beurre aux fines herbes | N62: Salade de carottes 50 % | O62: 0.3 | P62: 812
D63: Tresse 100 g | E63: 1.35 | I63: Pommes sautées | J63: 0.96 | K63: 600 | N63: Salade de mais 50 % | O63: 0.25 | P63: 808
D64: Beurre portion 20 g | E64: 0.44 | I64: Brocoli aux amandes | J64: 1.27 | K64: 703 | N64: Salades printemps 30 % | O64: 0.15
A65: =SUM(O61:O70)*O60+SUM(J61:J70)*J60+SUM(E61:E70)*E60 -> 3.4635 | D65: Confiture/Crème noisettes 1 | E65: 0.17 | N65: Salade sauce balsamico 30 g | O65: 0.05 | S65: Souper
D66: Jus d'orange 1 dl | E66: 0.14 | S66: Pizza Calzone à l' oeuf | T66: 808
D68: Salami 50 g | E68: 0.51 | I68: Thé pomme-pêche 200 % | J68: 0.1 | K68: 100 | N68: Thé pomme-pêche 200 % | O68: 0.1 | P68: 100
A69: Snack | I69: Bisquit militarie 1 pc | J69: 0.35 | N69: Sucre de raisin 1 pc | O69: 0.15
I70: Poire 1 pc | J70: 0.6 | N70: Orange 1 pc | O70: 0.4
D71: Garde weekend | E71: 0.1 | I71: Garde weekend | J71: 0.1 | N71: Garde weekend | O71: 0.1 | S71: Dîner
A72: Dimanche | D72: Café en portion 50 % | E72: 0.2 | G72: * | I72: Demi poulet rôti | J72: 4.34 | N72: Café complet | O72: 3.93 | S72: Lègumes méditerranée
A73: =A62+1 -> 2018-05-06 | D73: Boisson cacao/malt en port 50 % | E73: 0.2 | I73: avec sauces | S73: au four
D74: Tresse 100 g | E74: 1.35 | I74: Pommes Chips CF4 | J74: 1.18
D75: Beurre portion 20 g | E75: 0.44 | I75: Boule de Berlin CF4 1 pc | J75: 1.7
A76: =SUM(O72:O81)*O71+SUM(J72:J81)*J71+SUM(E72:E81)*E71 -> 1.67 | D76: Confiture/Crème noisettes 1 | E76: 0.17 | S76: Souper
D77: Jus d'orange 1 dl | E77: 0.14 | S77: Café complet
D78: Roesti 50 % | E78: 0.25 | F78: 612
D79: Œuf au plat 1 pc | E79: 0.5 | I79: Thé noir 200 % | J79: 0.1 | K79: 103 | N79: Thé noir 200 % | O79: 0.1 | P79: 103
A80: Snack | I80: Bretzeli 1 pc | J80: 0.6 | N80: Bâton aux céréales fruit 1 pc | O80: 0.2
I81: Pomme 1 pc | J81: 0.5 | N81: Banane 1 pc | O81: 0.8
A83: Décompte de la subsistance | I83: Certifié exact | N83: Pour l'exactitude technique | S83: Approuvé
A84: Utilisation selon plan de la subsistance | E84: =(A10+A21+A32+A43+A54+A65+A76)*100 -> 5557.9 | I84: Fourier | N84: Quartier-maitre | S84: Le commandant
A85: Crédit subsistance | E85: ='Übersicht und Anleitung'!D18*100 -> 6300
A86: Solde | E86: =E85-E84 -> 742.1
A88: Déclaration d'origine de la viande, du lait, et des œufs: toutes les viandes et succédanés/lait et produits laitiers/œufs proviennent uniquement de Suisse
A89: Déclaration d'origine des poissons et produits marins: tous les poissons et crustacés proviennent de Suisse ou sont définis par le label ASC / MSC / FOS.
A90: Déclaration des ingrédients / substances allergènes (LDAI Art. 8): le chef de cuisine peut répondre aux questions concernant les composantes allergènes.
A91: Point de contrôle critique: l'emblème* déclare l'analyse du risque. Une signature confirme la bonne pratique de fabrication (selon Regl 60.006 recettes de cuisine, page 21 et suivante).

Sheet Semaine 1
A1: Plan de la subsistance | G1: du: | I1: 2018-05-07 | L1: à: | N1: =A73 -> 2018-05-13 | P1: Unité:
B3: Petit déjeuner | G3: Dîner | L3: Souper | Q3: Sans viande
B4: PCC | C4: Visa | E4: Prix | F4: Recette | G4: PCC | H4: Visa | J4: Prix | K4: Recette | L4: PCC | M4: Visa | O4: Prix | P4: Recette | Q4: PCC | R4: Visa | T4: Recette
D5: Garde weekend | E5: 0.1 | I5: Effectif normal | J5: 1 | N5: Effectif normal | O5: 1 | S5: Dîner
A6: Lundi | D6: Café en portion 50 % | E6: 0.2 | I6: Bouillon aux pois frits | J6: 0.05 | K6: 205 | N6: Velouté épicé | O6: 0.1 | P6: 212 | S6: Ravioli aux épinards | T6: 824
A7: =I1 -> 2018-05-07 | D7: Boisson cacao/malt en port 50 % | E7: 0.2 | I7: Ravioli | J7: 1 | K7: 926 | L7: * | N7: Cuisse de poulet étuvées | O7: 2.37
D8: Assortiment pains 100 g | E8: 0.39 | I8: Fromage râpé 20 g | J8: 0.25 | N8: à la sauce au vin rouge
D9: Beurre portion 20 g | E9: 0.44 | I9: Salade Mêlée de printemps | J9: 0.46 | N9: Pommes aux oignons | O9: 1 | P9: 600
A10: =SUM(O6:O15)*O5+SUM(J6:J15)*J5+SUM(E6:E15)*E5 -> 8.553 | D10: Confiture/Crème noisettes 1 | E10: 0.17 | I10: Sauce salade française 30 g | J10: 0.05 | N10: Épinards à l'étouffée | O10: 0.73 | P10: 704 | S10: Souper
D11: Jus d'orange 1 dl | E11: 0.14 | S11: Gratin légumes et pommes de terre | T11: 600
D12: Müesli-déjeuner 30 g | E12: 0.25
D13: Fromages divers 30 g | E13: 0.54 | I13: Thé froid 200 % | J13: 0.13 | N13: Thé froid 200 % | O13: 0.13
A14: Snack | I14: Mélange de noix salé | J14: 0.6 | N14: Sucre de raisin 1 pc | O14: 0.15
I15: Pomme 1 pc | J15: 0.5 | N15: Banane 1 pc | O15: 0.8
D16: Effectif normal | E16: 1 | I16: Effectif normal | J16: 1 | N16: Effectif normal | O16: 1 | S16: Dîner
A17: Mardi | D17: Café en portion 50 % | E17: 0.2 | I17: Velouté à la crème 50 % | J17: 0.2 | K17: 208 | N17: Bouillon célestine 50 % | O17: 0.05 | P17: 205 | S17: Emincé de quorn | T17: 404
A18: =A7+1 -> 2018-05-08 | D18: Boisson cacao/malt en port 50 % | E18: 0.2 | G18: * | I18: Emincé de porc | J18: 2.05 | K18: 406 | N18: Soufflé au pain et fromage de l'Appenzell | O18: 2.38 | P18: 901 | S18: aux poivrons
D19: Assortiment pains 100 g | E19: 0.39 | I19: aux poivrons | N19: Salade Mêlée de printemps | O19: 0.46
D20: Beurre portion 20 g | E20: 0.44 | I20: Risi-bisi | J20: 0.48 | K20: 608 | N20: Sauce salade française 30 g | O20: 0.05
A21: =SUM(O17:O26)*O16+SUM(J17:J26)*J16+SUM(E17:E26)*E16 -> 11.76 | D21: Confiture/Crème noisettes 1 | E21: 0.17 | I21: Chou-rave à l'étouffée | J21: 1.08 | K21: 704 | S21: Souper
D22: Jus d'orange 1 dl | E22: 0.14 | N22: Crème au chocolat | O22: 0.42 | P22: 1107 | S22: Soufflé au pain et fromage | T22: 800
D23: Müesli-déjeuner 30 g | E23: 0.25 | S23: de l'Appenzell
D24: Yogurt portion 100 g | E24: 0.5 | I24: Thé pomme-pêche 200 % | J24: 0.1 | K24: 100 | N24: Thé pomme-pêche 200 % | O24: 0.1 | P24: 100
A25: Snack | I25: Biscuit militaire 1 pc | J25: 0.55 | N25: Leckerli 1 pc | O25: 0.55
I26: Poire 1 pc | J26: 0.6 | N26: Orange 1 pc | O26: 0.4
D27: Effectif normal | E27: 1 | I27: Effectif normal | J27: 1 | N27: Souper facultatif | O27: 0.3 | S27: Dîner
A28: Mercredi | D28: Café en portion 50 % | E28: 0.2 | I28: Purée de céleri 50 % | J28: 0.24 | K28: 208 | N28: Spaghetti au beurre | O28: 0.27 | P28: 617 | S28: Purée de pommes de terre | T28: 503
A29: =A18+1 -> 2018-05-09 | D29: Boisson cacao/malt en port 50 % | E29: 0.2 | G29: * | I29: Blanquette de poulet | J29: 2.8 | K29: 406 | N29: Sauce tomates à thon | O29: 0.29 | P29: 311 | S29: gratinée au fromage
D30: Assortiment pains 100 g | E30: 0.39 | I30: aux fines herbes
D31: Beurre portion 20 g | E31: 0.44 | I31: Purée de pommes de terre aux safran | J31: 0.55 | K31: 606 | N31: Salade Mêlée de printemps 30 % | O31: 0.15 | P31: 709
A32: =SUM(O28:O37)*O27+SUM(J28:J37)*J27+SUM(E28:E37)*E27 -> 9.777 | D32: Confiture/Crème noisettes 1 | E32: 0.17 | I32: Asperges verte étuvées | J32: 2.17 | K32: 604 | N32: Salade de choux-blanc 30 % | O32: 0.18 | P32: 805 | S32: Souper
D33: Jus d'orange 1 dl | E33: 0.14 | N33: Salade de mais 30 % | O33: 0.15 | P33: 808 | S33: Spaghetti au beurre | T33: 512
D34: Müesli-déjeuner 30 g | E34: 0.25 | N34: Sauce salade balsamico 30 g | O34: 0.05 | S34: Sauce à la crème et fromage | T34: 306
D35: Birchermüesli | E35: 0.5 | F35: 804 | I35: Thé framboise-fraise 200 % | J35: 0.1 | K35: 100 | N35: Thé framboise-fraise 200 % | O35: 0.1 | P35: 100
A36: Snack | I36: Bâton aux céréales miel 1 pc | J36: 0.2 | N36: Swiss Choco Bits 1 pc | O36: 0.4
I37: Banane 1 pc | J37: 0.8 | N37: Pomme 1 pc | O37: 0.5
D38: Effectif normal | E38: 1 | I38: Effectif normal | J38: 1 | N38: Effectif normal | O38: 1 | S38: Dîner
A39: Jeudi | D39: Café en portion 50 % | E39: 0.2 | I39: Crème d'asperges 50 % | J39: 0.51 | K39: 208 | N39: Soupe thurgovienne au cidre de pomme | O39: 0.33 | P39: 1107 | S39: Purée de pommes de terre | T39: 503
A40: =A29+1 -> 2018-05-10 | D40: Boisson cacao/malt en port 50 % | E40: 0.2 | G40: * | I40: Paupiettes de boeuf | J40: 3.28 | L40: * | N40: Chipolata du porc | O40: 1.28 | S40: avec légumes gratinée au fromage
D41: Assortiment pains 100 g | E41: 0.39 | I41: Ofetori | J41: 1.16 | K41: 604 | N41: Sauce crème aux fines herbes | O41: 0.19 | P41: 308
D42: Beurre portion 20 g | E42: 0.44 | I42: Carottes étuvées | J42: 0.49 | K42: 704 | N42: Risotto aux tomates | O42: 0.6 | P42: 611
A43: =SUM(O39:O48)*O38+SUM(J39:J48)*J38+SUM(E39:E48)*E38 -> 14.91 | D43: Confiture/Crème noisettes 1 | E43: 0.17 | N43: Poivron au four | O43: 0.81 | P43: 706 | S43: Souper
D44: Jus d'orange 1 dl | E44: 0.14 | I44: Country cake | J44: 0.82 | K44: 1105 | S44: Risotto aux tomates | T44: 507
D45: Müesli-déjeuner 30 g | E45: 0.25
D46: Charcuterie 50 g | E46: 0.6 | I46: Thé écorce de fruits 200 % | J46: 0.1 | K46: 100 | N46: Thé écorce de fruits 200 % | O46: 0.1 | P46: 100
A47: Snack | I47: Cracker 1 pc | J47: 0.6 | N47: Conserve de viande | O47: 1.25
I48: Orange 1 pc | J48: 0.4 | N48: Poire 1 pc | O48: 0.6
D49: Effectif normal | E49: 1 | I49: Effectif normal | J49: 1 | N49: Licenciement selon performance | O49: 0.75 | S49: Dîner
A50: Vendredi | D50: Café en portion 50 % | E50: 0.2 | I50: Bouillon aux pois frits 50 % | J50: 0.05 | K50: 205 | N50: Potage asiatique aigre piquant | O50: 0.21 | P50: 202 | S50: Curry aux légumes
A51: =A40+1 -> 2018-05-11 | D51: Boisson cacao/malt en port 50 % | E51: 0.2 | G51: * | I51: Gratin de pangasius | J51: 2.64 | K51: 507 | L51: * | N51: Bami Goreng au poulet | O51: 4.37 | P51: 922 | S51: avec pois chiche
D52: Assortiment pains 100 g | E52: 0.39 | I52: aux épinards | N52: Salade mêlée de printemps 30 % | O52: 0.46 | P52: 709
D53: Beurre portion 20 g | E53: 0.44 | I53: Riz pilaf aux légumes | J53: 0.42 | K53: 608 | N53: Sauce salade française 30 g | O53: 0.05
A54: =SUM(O50:O59)*O49+SUM(J50:J59)*J49+SUM(E50:E59)*E49 -> 12.1475 | D54: Confiture/Crème noisettes 1 | E54: 0.17 | I54: Fenouil gratiné | J54: 0.77 | K54: 705 | S54: Souper
D55: Jus d'orange 1 dl | E55: 0.14 | N55: Tresse russe | O55: 0.61 | P55: 1114 | S55: Spaghettis sautés au quorn et légumes | T55: 819
D56: Müesli-déjeuner 30 g | E56: 0.25
D57: Fromages divers 30 g | E57: 0.54 | I57: Thé froid maison 200 % | J57: 0.1 | K57: 100 | N57: Thé froid maison 200 % | O57: 0.1 | P57: 100
A58: Snack | I58: Mélange de fruits 1 pc | J58: 0.35 | N58: Bâton de malt 1 pc | O58: 0.45
I59: Pomme 1 pc | J59: 0.5 | N59: Orange 1 pc | O59: 0.4
D60: Licenciement selon performance | E60: 0.75 | I60: Garde weekend | J60: 0.1 | N60: Garde weekend | O60: 0.1 | S60: Dîner
A61: Samedi | D61: Café en portion 50 % | E61: 0.2 | G61: * | I61: Jarret de porc braisé gremolata | J61: 2.91 | K61: 416 | N61: Quiche aux oignons et fromage | O61: 3.09 | P61: 915 | S61: Gnocchi de pommes de terre
A62: =A51+1 -> 2018-05-12 | D62: Boisson cacao/malt en port 50 % | E62: 0.2 | I62: Gnocchi de pommes de terre | J62: 0.68 | N62: Salade de betteraves 30 % | O62: 0.1 | P62: 812 | S62: avec courgettes et ricotta
D63: Assortiment pains 100 g | E63: 0.39 | I63: Courgettes étuvées | J63: 0.75 | K63: 704 | N63: Salade de carottes 30 % | O63: 0.12 | P63: 810
D64: Beurre portion 20 g | E64: 0.44 | N64: Salade de mais 30 % | O64: 0.15 | P64: 808
A65: =SUM(O61:O70)*O60+SUM(J61:J70)*J60+SUM(E61:E70)*E60 -> 2.9125 | D65: Confiture/Crème noisettes 1 | E65: 0.17 | I65: Croissant aux noisettes CF 4 1 pc | J65: 1.2 | N65: Salade mêlée de printemps 30 % | O65: 0.15 | P65: 709 | S65: Souper
D66: Jus d'orange 1 dl | E66: 0.14 | N66: Sauce salade balsamico 30 g | O66: 0.05 | S66: Quiche aux oignons et fromage | T66: 813
D67: Müesli-déjeuner 30 g | E67: 0.25
D68: Charcuterie 50 g | E68: 0.6 | I68: Thé pommes-pêches | J68: 0.1 | K68: 100 | N68: Thé pommes-pêches | O68: 0.1 | P68: 100
A69: Snack | I69: Biscuit militaire 1 pc | J69: 0.55 | N69: Sucre de raisin 1 pc | O69: 0.15
I70: Poire 1 pc | J70: 0.6 | N70: Pomme 1 pc | O70: 0.5
D71: Garde weekend | E71: 0.1 | I71: Garde weekend | J71: 0.1 | N71: Garde weekend | O71: 0.1 | S71: Dîner
A72: Dimanche | D72: Café en portion 50 % | E72: 0.2 | G72: * | I72: Gigot d'agneau roulé rôti | J72: 4.45 | K72: 422 | N72: Café complet | O72: 3.93 | S72: Pommes boulangere | T72: 500
A73: =A62+1 -> 2018-05-13 | D73: Boisson cacao/malt en port 50 % | E73: 0.2 | I73: avec jus de thym | S73: avec Œuf au plat
D74: Tresse 100 g | E74: 1.35 | I74: Pommes boulangere | J74: 1 | K74: 600
D75: Beurre portion 20 g | E75: 0.44 | I75: Haricots verts braisés | J75: 0.54 | K75: 604
A76: =SUM(O72:O81)*O71+SUM(J72:J81)*J71+SUM(E72:E81)*E71 -> 1.606 | D76: Confiture/Crème noisettes 1 | E76: 0.17 | I76: Glace à la vanille 50 g | J76: 0.49 | S76: Souper
D77: Jus d'orange 1 dl | E77: 0.14 | I77: Sauce au chocolat 30 g | J77: 0.1 | S77: Café complet
D78: Rösti 50 % | E78: 0.25 | F78: 612
D79: Œuf au plat 1 pc | E79: 0.5 | I79: Thé noir 200 % | J79: 0.1 | K79: 103 | N79: Thé noir 200 % | O79: 0.1 | P79: 103
A80: Snack | I80: Bretzeli 1 pc | J80: 0.6 | N80: Bâton aux céréales fruit 1 pc | O80: 0.2
I81: Pomme 1 pc | J81: 0.5 | N81: Banane 1 pc | O81: 0.8
A83: Décompte de la subsistance | I83: Certifié exact | N83: Pour l'exactitude technique | S83: Approuvé
A84: Utilisation selon plan de la subsistance | E84: =(A10+A21+A32+A43+A54+A65+A76)*100 -> 6166.6 | I84: Fourier | N84: Quartier-maitre | S84: Le commandant
A85: Crédit subsistance | E85: ='Übersicht und Anleitung'!D18*100 -> 6300
A86: Solde | E86: =E85-E84 -> 133.4
A88: Déclaration d'origine de la viande, du lait, et des œufs: toutes les viandes et succédanés/lait et produits laitiers/œufs proviennent uniquement de Suisse
A89: Déclaration d'origine des poissons et produits marins: tous les poissons et crustacés proviennent de Suisse ou sont définis par le label ASC / MSC / FOS.
A90: Déclaration des ingrédients / substances allergènes (LDAI Art. 8): le chef de cuisine peut répondre aux questions concernant les composantes allergènes.
A91: Point de contrôle critique: l'emblème* déclare l'analyse du risque. Une signature confirme la bonne pratique de fabrication (selon Regl 60.006 recettes de cuisine, page 21 et suivante).

Sheet Semaine 2
A1: Plan de la subsistance | G1: du: | I1: 2018-05-14 | L1: à: | N1: =A73 -> 2018-05-20 | P1: Unité:
B3: Petit déjeuner | G3: Dîner | L3: Souper | Q3: Sans viande
B4: PCC | C4: Visa | E4: Prix | F4: Recette | G4: PCC | H4: Visa | J4: Prix | K4: Recette | L4: PCC | M4: Visa | O4: Prix | P4: Recette | Q4: PCC | R4: Visa | T4: Recette
D5: Effectif normal | E5: 1 | I5: Effectif normal | J5: 1 | N5: Effectif normal | O5: 1 | S5: Dîner
A6: Lundi | D6: Café en portion 50 % | E6: 0.2 | I6: Bouillon aux célestines 50 % | J6: 0.05 | K6: 205 | N6: Potage paysanne 50 % | O6: 0.25 | P6: 204 | S6: Macaroni des alpages | T6: 900
A7: =I1 -> 2018-05-14 | D7: Boisson cacao/malt en port 50 % | E7: 0.2 | I7: Macaroni des alpages | J7: 1.94 | K7: 900 | L7: * | N7: Saucisse de porc avec | O7: 2.52
D8: Assortiment pains 100 g | E8: 0.39 | I8: Compote aux pommes | J8: 0.58 | K8: 1109 | N8: Sauce oignons 50 % | O8: 0.2 | P8: 301
D9: Beurre portion 20 g | E9: 0.44 | I9: Salade mêlée de printemps 30 % | J9: 0.46 | N9: Rösti | O9: 0.49 | P9: 612
A10: =SUM(O6:O15)*O5+SUM(J6:J15)*J5+SUM(E6:E15)*E5 -> 11.99 | D10: Confiture/Crème noisettes 1 | E10: 0.17 | I10: Salade sauce balsamico 30 g | J10: 0.05 | N10: Tomates provençales | O10: 0.5 | P10: 707 | S10: Souper
D11: Jus d'orange 1 dl | E11: 0.14 | N11: Crème au Leckerli | O11: 0.56 | P11: 1107 | S11: Rösti | T11: 612
D12: Müesli-déjeuner 30 g | E12: 0.25 | S12: avec Œuf au plat
D13: Fromages divers 30 g | E13: 0.54 | I13: Thé froid 200 % | J13: 0.13 | N13: Thé froid 200 % | O13: 0.13
A14: Snack | I14: Chocolat militaire | J14: 0.35 | N14: Sucre de raisin 1 pc | O14: 0.15
I15: Pomme 1 pc | J15: 0.5 | N15: Banane 1 pc | O15: 0.8
D16: Effectif normal | E16: 1 | I16: Effectif normal | J16: 1 | N16: Effectif normal | O16: 1 | S16: Dîner
A17: Mardi | D17: Café en portion 50 % | E17: 0.2 | I17: Crème de courgette 50 % | J17: 0.2 | K17: 208 | N17: Bouillon aux croûtons 50 % | O17: 0.05 | P17: 205 | S17: Purée de pommes de terre | T17: 606
A18: =A7+1 -> 2018-05-15 | D18: Boisson cacao/malt en port 50 % | E18: 0.2 | G18: * | I18: Rôti de porc | J18: 2.67 | K18: 422 | L18: * | N18: Nasi Goreng | O18: 4.26 | P18: 922 | S18: gratinée
D19: Assortiment pains 100 g | E19: 0.39 | I19: Purée de pommes de terre | J19: 0.53 | K19: 606 | N19: Salade mêlée de printemps 30 % | O19: 0.15
D20: Beurre portion 20 g | E20: 0.44 | I20: Chou-fleur à la polonaise | J20: 0.8 | K20: 703 | N20: Salade de carottes 30 % | O20: 0.2 | P20: 812
A21: =SUM(O17:O26)*O16+SUM(J17:J26)*J16+SUM(E17:E26)*E16 -> 13.7 | D21: Confiture/Crème noisettes 1 | E21: 0.17 | N21: Salade de mais 30 % | O21: 0.15 | P21: 808 | S21: Souper
D22: Jus d'orange 1 dl | E22: 0.14 | N22: Sauce salade balsamico 30 g | O22: 0.05 | S22: Riz sautés | T22: 608
D23: Müesli-déjeuner 30 g | E23: 0.25 | S23: à l'œuf et légumes
D24: Yogurt portion 100 g | E24: 0.5 | I24: Thé pomme-pêche 200 % | J24: 0.1 | K24: 100 | N24: Thé pomme-pêche 200 % | O24: 0.1 | P24: 100
A25: Snack | I25: Mélange de noix salé | J25: 0.6 | N25: Leckerli 1 pc | O25: 0.55
I26: Poire 1 pc | J26: 0.6 | N26: Orange 1 pc | O26: 0.4
D27: Effectif normal | E27: 1 | I27: Effectif normal | J27: 1 | N27: Souper facultatif | O27: 0.3 | S27: Dîner
A28: Mercredi | D28: Café en portion 50 % | E28: 0.2 | I28: Crème de légumes 50 % | J28: 0.2 | K28: 208 | N28: Gratin de pâtes | O28: 3.02 | P28: 928 | S28: Blanquette de quorn | T28: 427
A29: =A18+1 -> 2018-05-16 | D29: Boisson cacao/malt en port 50 % | E29: 0.2 | G29: * | I29: Blanquette de poulet | J29: 2.81 | K29: 427 | N29: Salade de betteraves 30 % | O29: 0.1 | P29: 810 | S29: à l'emmentaloise
D30: Assortiment pains 100 g | E30: 0.39 | I30: à l'ancienne | N30: Salade de choux-blanc 30 % | O30: 0.18 | P30: 805
D31: Beurre portion 20 g | E31: 0.44 | I31: Ebly | J31: 0.65 | K31: 602 | N31: Salade de mais 30 % | O31: 0.15 | P31: 808
A32: =SUM(O28:O37)*O27+SUM(J28:J37)*J27+SUM(E28:E37)*E27 -> 9.03 | D32: Confiture/Crème noisettes 1 | E32: 0.17 | I32: Haricots verts braisés | J32: 0.54 | K32: 704 | N32: Salade mêlée de printemps 30 % | O32: 0.15 | S32: Souper
D33: Jus d'orange 1 dl | E33: 0.14 | N33: Sauce salade française 30 g | O33: 0.05 | S33: Gratin de pâtes | T33: 928
D34: Müesli-déjeuner 30 g | E34: 0.25
D35: Birchermüesli | E35: 0.5 | F35: 904 | I35: Thé framboise-fraise 200 % | J35: 0.1 | K35: 100 | N35: Thé framboise-fraise 200 % | O35: 0.1 | P35: 100
A36: Snack | I36: Bâton aux céréales miel 1 pc | J36: 0.2 | N36: Bretzeli 1 pc | O36: 0.55
I37: Banane 1 pc | J37: 0.8 | N37: Pomme 1 pc | O37: 0.5
D38: Effectif normal | E38: 1 | I38: Effectif normal | J38: 1 | N38: Effectif normal | O38: 1 | S38: Dîner
A39: Jeudi | D39: Café en portion 50 % | E39: 0.2 | I39: Bouillon aux pois frits 50 % | J39: 0.04 | K39: 205 | N39: Crème de tomate 50 % | O39: 0.13 | P39: 208 | S39: Piccata de aubergine
A40: =A29+1 -> 2018-05-17 | D40: Boisson cacao/malt en port 50 % | E40: 0.2 | G40: * | I40: Piccata de porc | J40: 3.39 | K40: 413 | L40: * | N40: Brochette de cipolata | O40: 1.28
D41: Assortiment pains 100 g | E41: 0.39 | I41: Sauce tomates 50 % | J41: 0.13 | K41: 311 | N41: Beurre aux fines herbes CF4 | O41: 0.1
D42: Beurre portion 20 g | E42: 0.44 | I42: Polenta | J42: 0.55 | K42: 610 | N42: Risotto au vin blanc | O42: 0.57 | P42: 611
A43: =SUM(O39:O48)*O38+SUM(J39:J48)*J38+SUM(E39:E48)*E38 -> 12.14 | D43: Confiture/Crème noisettes 1 | E43: 0.17 | I43: Ratatouille | J43: 0.61 | K43: 709 | N43: Salade mêlée de printemps | O43: 0.46 | S43: Souper
D44: Jus d'orange 1 dl | E44: 0.14 | I44: Cake banane | J44: 0.58 | K44: 1105 | N44: Sauce Thousand Island 30 g | O44: 0.11 | P44: 303 | S44: Brochette de légumes
D45: Müesli-déjeuner 30 g | E45: 0.25
D46: Charcuterie 50 g | E46: 0.5 | I46: Thé écorce de fruits 200 % | J46: 0.1 | K46: 100 | N46: Thé écorce de fruits 200 % | O46: 0.1 | P46: 100
A47: Snack | I47: Swiss Choco Bits | J47: 0.4 | N47: Bâton aux céréales fruit 1 pc | O47: 0.2
I48: Pomme 1 pc | J48: 0.5 | N48: Poire 1 pc | O48: 0.6
D49: Effectif normal | E49: 1 | I49: Effectif normal | J49: 1 | N49: Licenciement selon performance | O49: 0.75 | S49: Dîner
A50: Vendredi | D50: Café en portion 50 % | E50: 0.2 | I50: Minestrone 50 % | J50: 0.31 | K50: 218 | L50: * | N50: Cornettes pilaf | O50: 2.59 | P50: 1002 | S50: Hamburger aux céréales et légumes
A51: =A40+1 -> 2018-05-18 | D51: Boisson cacao/malt en port 50 % | E51: 0.2 | G51: * | I51: Filet de colin pané | J51: 1.88 | K51: 505 | N51: Salade mêlée de printemps | O51: 0.46
D52: Assortiment pains 100 g | E52: 0.39 | I52: Sauce rémoulade | J52: 0.34 | K52: 309 | N52: Sauce salade française 30 g | O52: 0.05
D53: Beurre portion 20 g | E53: 0.44 | I53: Pommes natures | J53: 0.68 | K53: 613
A54: =SUM(O50:O59)*O49+SUM(J50:J59)*J49+SUM(E50:E59)*E49 -> 11.215 | D54: Confiture/Crème noisettes 1 | E54: 0.17 | I54: Epinards étuvés | J54: 0.73 | K54: 704 | N54: Tranche étudiants | O54: 1.21 | P54: 1115 | S54: Souper
D55: Jus d'orange 1 dl | E55: 0.14 | S55: Cornettes pilaf | T55: 1002
D56: Müesli-déjeuner 30 g | E56: 0.25 | S56: Sauce bolognaise au quorn
D57: Fromages divers 30 g | E57: 0.54 | I57: Thé froid maison 200 % | J57: 0.1 | K57: 100 | N57: Thé froid maison 200 % | O57: 0.1 | P57: 100
A58: Snack | I58: Bâton aux céréales fruits 1 pc | J58: 0.2 | N58: Bâton de malt 1 pc | O58: 0.45
I59: Orange 1 pc | J59: 0.4 | N59: Banane 1 pc | O59: 0.8
D60: Licenciement selon performance | E60: 0.75 | I60: Garde weekend | J60: 0.1 | N60: Garde weekend | O60: 0.1 | S60: Dîner
A61: Samedi | D61: Café en portion 50 % | E61: 0.2 | G61: * | I61: Spare rips de porc | J61: 5.27 | K61: 426 | N61: Tarte flambée | O61: 3 | P61: 909 | S61: Pommes au four avec crème aigre
A62: =A51+1 -> 2018-05-19 | D62: Boisson cacao/malt en port 50 % | E62: 0.2 | I62: Pommes au four avec crème aigre | J62: 0.94 | N62: Salade mêlée de printemps 30 % | O62: 0.15 | P62: 709
D63: Assortiment pains 100 g | E63: 0.39 | I63: épi de maïs | J63: 1.37 | N63: Salade de betteraves 30 % | O63: 0.1 | P63: 810
D64: Beurre portion 20 g | E64: 0.44 | I64: Salades printemps 30 % | J64: 0.46 | N64: Salade de mais 30 % | O64: 0.15 | P64: 808
A65: =SUM(O61:O70)*O60+SUM(J61:J70)*J60+SUM(E61:E70)*E60 -> 3.059 | D65: Confiture/Crème noisettes 1 | E65: 0.17 | I65: Salade sauce balsamico 30 g | J65: 0.05 | N65: Sauce salade française 30 g | O65: 0.05 | S65: Souper
D66: Jus d'orange 1 dl | E66: 0.14 | S66: Tarte flambée sans lard | T66: 909
D67: Müesli-déjeuner 30 g | E67: 0.25
D68: Salami 50 g | E68: 0.51 | I68: Thé framboise-fraise 200 % | J68: 0.1 | K68: 100 | N68: Thé framboise-fraise 200 % | O68: 0.1 | P68: 100
A69: Snack | I69: Biscuit militarie 1 pc | J69: 0.35 | N69: Sucre de raisin 1 pc | O69: 0.15
I70: Poire 1 pc | J70: 0.6 | N70: Pomme 1 pc | O70: 0.5
D71: Garde weekend | E71: 0.1 | I71: Garde weekend | J71: 0.1 | N71: Garde weekend | O71: 0.1 | S71: Dîner
A72: Dimanche | D72: Café en portion 50 % | E72: 0.2 | G72: * | I72: Poitrine de veau roulée glacée | J72: 3.2 | K72: 422 | N72: Café complet | O72: 3.93 | S72: Gratin de pommes de terre | T72: 605
A73: =A62+1 -> 2018-05-20 | D73: Boisson cacao/malt en port 50 % | E73: 0.2 | I73: avec jus du romarin
D74: Tresse 100 g | E74: 1.35 | I74: Gratin de pommes de terre | J74: 0.93 | K74: 605
D75: Beurre portion 20 g | E75: 0.44 | I75: Pois mange-tout étuvés | J75: 0.79 | K75: 704
A76: =SUM(O72:O81)*O71+SUM(J72:J81)*J71+SUM(E72:E81)*E71 -> 1.552 | D76: Confiture/Crème noisettes 1 | E76: 0.17 | S76: Souper
D77: Jus d'orange 1 dl | E77: 0.14 | I77: Tiramisu | J77: 1.22 | K77: 1118 | S77: Café complet
D78: Rösti 50 % | E78: 0.25 | F78: 612
D79: Œuf au plat 1 pc | E79: 0.5 | I79: Thé noir 200 % | J79: 0.1 | K79: 103 | N79: Thé noir 200 % | O79: 0.1 | P79: 103
A80: Snack | I80: Bretzeli 1 pc | J80: 0.6 | N80: Bâton aux céréales fruit 1 pc | O80: 0.2
I81: Banane 1 pc | J81: 0.8 | N81: Orange 1 pc | O81: 0.4
A83: Décompte de la subsistance | I83: Certifié exact | N83: Pour l'exactitude technique | S83: Approuvé
A84: Utilisation selon plan de la subsistance | E84: =(A10+A21+A32+A43+A54+A65+A76)*100 -> 6268.6 | I84: Fourier | N84: Quartier-maitre | S84: Le commandant
A85: Crédit subsistance | E85: ='Übersicht und Anleitung'!D18*100 -> 6300
A86: Solde | E86: =E85-E84 -> 31.4
A88: Déclaration d'origine de la viande, du lait, et des œufs: toutes les viandes et succédanés/lait et produits laitiers/œufs proviennent uniquement de Suisse
A89: Déclaration d'origine des poissons et produits marins: tous les poissons et crustacés proviennent de Suisse ou sont définis par le label ASC / MSC / FOS.
A90: Déclaration des ingrédients / substances allergènes (LDAI Art. 8): le chef de cuisine peut répondre aux questions concernant les composantes allergènes.
A91: Point de contrôle critique: l'emblème* déclare l'analyse du risque. Une signature confirme la bonne pratique de fabrication (selon Regl 60.006 recettes de cuisine, page 21 et suivante).

Sheet Semaine 3
A1: Plan de la subsistance | G1: du: | I1: 2018-05-21 | L1: à: | N1: =A73 -> 2018-05-27 | P1: Unité:
B3: Petit déjeuner | G3: Dîner | L3: Souper | Q3: Sans viande
B4: PCC | C4: Visa | E4: Prix | F4: Recette | G4: PCC | H4: Visa | J4: Prix | K4: Recette | L4: PCC | M4: Visa | O4: Prix | P4: Recette | Q4: PCC | R4: Visa | T4: Recette
D5: Effectif normal | E5: 1 | I5: Effectif normal | J5: 1 | N5: Effectif normal | O5: 1 | S5: Dîner
A6: Lundi | D6: Café en portion 50 % | E6: 0.2 | I6: Bouillon aux célestines 50 % | J6: 0.05 | K6: 205 | N6: Crème au cresson 50 % | O6: 0.14 | P6: 208 | S6: Spaghettis | T6: 617
A7: =I1 -> 2018-05-21 | D7: Boisson cacao/malt en port 50 % | E7: 0.2 | I7: Spaghettis | J7: 0.25 | K7: 617 | L7: * | N7: Rôti haché de porc maison | O7: 1.92 | S7: Sauce tomates | T7: 311
D8: Assortiment pains 100 g | E8: 0.39 | I8: Sauce tomates | J8: 0.16 | K8: 311 | N8: Sauce moutarde (brune) | O8: 0.07 | P8: 301 | S8: Pesto CF 4 20 g
D9: Beurre portion 20 g | E9: 0.44 | I9: Pesto CF 4 20 g | J9: 0.07 | N9: Pommes nouvelles sautées | O9: 0.96 | P9: 600
A10: =SUM(O6:O15)*O5+SUM(J6:J15)*J5+SUM(E6:E15)*E5 -> 9.15 | D10: Confiture/Crème noisettes 1 | E10: 0.17 | I10: Salade Mêlée de printemps | J10: 0.46 | N10: Carottes étuvées | O10: 0.49 | P10: 704 | S10: Souper
D11: Jus d'orange 1 dl | E11: 0.14 | I11: Salade sauce à la française 30 g | J11: 0.05 | S11: Hamburger aux céréales et légumes
D12: Müesli-déjeuner 30 g | E12: 0.25 | S12: avec fromage
D13: Fromages divers 30 g | E13: 0.54 | I13: Thé pomme-pêche 200 % | J13: 0.1 | K13: 100 | N13: Thé pomme-pêche 200 % | O13: 0.1 | P13: 100
A14: Snack | I14: Biscuit militaire 1 pc | J14: 0.35 | N14: Leckerli 1 pc | O14: 0.55
I15: Poire 1 pc | J15: 0.6 | N15: Pomme 1 pc | O15: 0.5
D16: Effectif normal | E16: 1 | I16: Effectif normal | J16: 1 | N16: Effectif normal | O16: 1 | S16: Dîner
A17: Mardi | D17: Café en portion 50 % | E17: 0.2 | I17: Crème de légumes 50 % | J17: 0.2 | K17: 208 | N17: Bouillon aux œufs 50 % | O17: 0.05 | P17: 205 | S17: Omelette aux fromages
A18: =A7+1 -> 2018-05-22 | D18: Boisson cacao/malt en port 50 % | E18: 0.2 | G18: * | I18: Côtelette de porc | J18: 3.24 | N18: Lasagne aux épinards et ricotta | O18: 2.45 | P18: 915
D19: Assortiment pains 100 g | E19: 0.39 | I19: Beurre aux fines herbes | J19: 0.35 | N19: Salade Mêlée de printemps 30 % | O19: 0.15 | P19: 709
D20: Beurre portion 20 g | E20: 0.44 | I20: Risotto au vin blanc | J20: 0.57 | K20: 611 | N20: Salade de betteraves 30 % | O20: 0.1 | P20: 810
A21: =SUM(O17:O26)*O16+SUM(J17:J26)*J16+SUM(E17:E26)*E16 -> 13.4 | D21: Confiture/Crème noisettes 1 | E21: 0.17 | I21: Courgettes à la provençale | J21: 0.68 | K21: 704 | N21: Salade de mais 30 % | O21: 0.15 | P21: 808 | S21: Souper
D22: Jus d'orange 1 dl | E22: 0.14 | N22: Sauce salade balsamico 30 g | O22: 0.05 | S22: Lasagne aux épinards et ricotta | T22: 915
D23: Müesli-déjeuner 30 g | E23: 0.25 | N23: Crème mocca | O23: 0.42 | P23: 1107
D24: Charcuterie 50 g | E24: 0.6 | I24: Thé framboise-fraise 200 % | J24: 0.1 | K24: 100 | N24: Thé framboise-fraise 200 % | O24: 0.1 | P24: 100
A25: Snack | I25: Mélange de noix salé | J25: 0.6 | N25: Cracker | O25: 0.6
I26: Banane 1 pc | J26: 0.8 | N26: Orange 1 pc | O26: 0.4
D27: Effectif normal | E27: 1 | I27: Effectif normal | J27: 1 | N27: Souper facultatif | O27: 0.3 | S27: Dîner
A28: Mercredi | D28: Café en portion 50 % | E28: 0.2 | I28: Soupe de gingembre et carottes | J28: 0.22 | K28: 219 | N28: Croûtes valaisannes | O28: 3.61 | P28: 902 | S28: Potée de lentilles et légumes | T28: 213
A29: =A18+1 -> 2018-05-23 | D29: Boisson cacao/malt en port 50 % | E29: 0.2 | G29: * | I29: Blanquette de poulet à l'emmentaloise | J29: 2.44 | K29: 427 | N29: Salade de carottes 30 % | O29: 0.1 | P29: 812
D30: Assortiment pains 100 g | E30: 0.39 | I30: Purée de pommes de terre | J30: 0.53 | K30: 606 | N30: Salade de mais 30 % | O30: 0.15 | P30: 808
D31: Beurre portion 20 g | E31: 0.44 | I31: Peperonata | J31: 0.59 | K31: 709 | N31: Salade mêlée de printemps 30 % | O31: 0.15
A32: =SUM(O28:O37)*O27+SUM(J28:J37)*J27+SUM(E28:E37)*E27 -> 8.473 | D32: Confiture/Crème noisettes 1 | E32: 0.17 | N32: Sauce salade balsamico 30 g | O32: 0.05 | S32: Souper
D33: Jus d'orange 1 dl | E33: 0.14 | S33: Croûtes valaisanne | T33: 902
D34: Müesli-déjeuner 30 g | E34: 0.25
D35: Birchermüesli | E35: 0.5 | F35: 904 | I35: Thé écorce de fruits 200 % | J35: 0.1 | K35: 100 | N35: Thé écorce de fruits 200 % | O35: 0.1 | P35: 100
A36: Snack | I36: Bâton aux céréales miel 1 pc | J36: 0.2 | N36: Mélange de fruits 1 pc | O36: 0.35
I37: poire 1 pc | J37: 0.6 | N37: Pomme 1 pc | O37: 0.5
D38: Effectif normal | E38: 1 | I38: Effectif normal | J38: 1 | N38: Effectif normal | O38: 1 | S38: Dîner
A39: Jeudi | D39: Café en portion 50 % | E39: 0.2 | I39: Purée de légumes 50 % | J39: 0.2 | K39: 219 | L39: * | N39: Demi poulet rôti | O39: 4.34 | S39: Gratin de légumes | T39: 700
A40: =A29+1 -> 2018-05-24 | D40: Boisson cacao/malt en port 50 % | E40: 0.2 | G40: * | I40: Filet de pangasius frit | J40: 2.33 | K40: 501 | N40: et sauces
D41: Assortiment pains 100 g | E41: 0.39 | I41: Sauce rémoulade | J41: 0.34 | K41: 309 | N41: Pommes chips CF 4 | O41: 1.18
D42: Beurre portion 20 g | E42: 0.44 | I42: Pommes de terre nature avec ciboulette | J42: 0.7 | K42: 600
A43: =SUM(O39:O48)*O38+SUM(J39:J48)*J38+SUM(E39:E48)*E38 -> 14.69 | D43: Confiture/Crème noisettes 1 | E43: 0.17 | I43: Epinards étuvés | J43: 0.73 | K43: 704 | N43: Cake aux carottes | O43: 0.47 | P43: 1105 | S43: Souper
D44: Jus d'orange 1 dl | E44: 0.14 | S44: Hamburger aux légumes
D45: Müesli-déjeuner 30 g | E45: 0.25
D46: Yogurt portion 100 g | E46: 0.5 | I46: Thé pomme-pêche 200% | J46: 0.13 | N46: Thé pomme-pêche 200% | O46: 0.13
A47: Snack | I47: Bâton aux céréales fruit 1 pc | J47: 0.2 | N47: Bâton au malt (ovo choc) 1 pc | O47: 0.45
I48: Orange 1 pc | J48: 0.4 | N48: Banane 1 pc | O48: 0.8
D49: Effectif normal | E49: 1 | I49: Effectif normal | J49: 1 | N49: Licenciement selon performance | O49: 0.75 | S49: Dîner
A50: Vendredi | D50: Comella 5 dl CF4 | E50: 3.8 | I50: Sandwich au thon 1 pc | J50: 1.17 | S50: Sandwich au fromage 1 pc
A51: =A40+1 -> 2018-05-25 | D51: et croissant | E51: 1.15 | I51: Bâton aux céréales 1 pc | J51: 0.2
I52: Chocolat militaire 1 pc | J52: 0.35
I53: Pomme 1 pc | J53: 0.5
A54: =SUM(O50:O59)*O49+SUM(J50:J59)*J49+SUM(E50:E59)*E49 -> 8.07 | I54: PET Boisson douce 5 dl | J54: 0.9
A58: Snack
D60: Licenciement selon performance | E60: 0.75 | I60: Garde weekend | J60: 0.1 | N60: Garde weekend | O60: 0.1 | S60: Dîner
A61: Samedi
A62: =A51+1 -> 2018-05-26
A65: =SUM(O61:O70)*O60+SUM(J61:J70)*J60+SUM(E61:E70)*E60 -> 0 | S65: Souper
A69: Snack
D71: Garde weekend | E71: 0.1 | I71: Garde weekend | J71: 0.1 | N71: Garde weekend | O71: 0.1 | S71: Dîner
A72: Dimanche
A73: =A62+1 -> 2018-05-27
A76: =SUM(O72:O81)*O71+SUM(J72:J81)*J71+SUM(E72:E81)*E71 -> 0 | S76: Souper
A80: Snack
A83: Décompte de la subsistance | I83: Certifié exact | N83: Pour l'exactitude technique | S83: Approuvé
A84: Utilisation selon plan de la subsistance | E84: =(A10+A21+A32+A43+A54+A65+A76)*100 -> 5378.3 | I84: Fourier | N84: Quartier-maitre | S84: Le commandant
A85: Crédit subsistance | E85: ='Übersicht und Anleitung'!D18*100-('Übersicht und Anleitung'!C18*100*2) -> 4500
A86: Solde | E86: =E85-E84 -> -878.3
A88: Déclaration d'origine de la viande, du lait, et des œufs: toutes les viandes et succédanés/lait et produits laitiers/œufs proviennent uniquement de Suisse
A89: Déclaration d'origine des poissons et produits marins: tous les poissons et crustacés proviennent de Suisse ou sont définis par le label ASC / MSC / FOS.
A90: Déclaration des ingrédients / substances allergènes (LDAI Art. 8): le chef de cuisine peut répondre aux questions concernant les composantes allergènes.
A91: Point de contrôle critique: l'emblème* déclare l'analyse du risque. Une signature confirme la bonne pratique de fabrication (selon Regl 60.006 recettes de cuisine, page 21 et suivante).

Sheet Piano suss CQ
A1: Piano di sussistenza | G1: da: | I1: 2018-04-30 | L1: a: | N1: =A73 -> 2018-05-06 | P1: Unità:
B3: Colazione | G3: Pranzo | L3: Cena | Q3: senza carne
B4: PCC | C4: Visto | E4: Prezzo | F4: Ricetta | G4: PCC | H4: Visto | J4: Prezzo | K4: Ricetta | L4: PCC | M4: Visto | O4: Prezzo | P4: Ricetta | Q4: PCC | R4: Visto | T4: Ricetta
D5: Effetivo normale | E5: 1 | I5: Effetivo normale | J5: 1 | N5: Effetivo normale | O5: 1 | S5: Pranzo
A6: Lunedì | I6: Vol-au-vent con salsa di carne e funghi | J6: 2.33 | K6: 923 | N6: Brodo celestino 50% | O6: 0.05 | P6: 205 | S6: Vol au vent con funghi | T6: 923
A7: =I1 -> 2018-04-30 | N7: Maccheroni con burro | O7: 0.27 | P7: 617
I8: Pane 100 g | J8: 0.39 | N8: Salsa Waluca | O8: 0.68 | P8: 311
N9: Insalata di carote | O9: 0.61 | P9: 812
A10: =SUM(O6:O15)*O5+SUM(J6:J15)*J5+SUM(E6:E15)*E5 -> 7.08 | S10: Cena
S11: Maccheroni con Burro | T11: 617
S12: Salsa ai pomodori | T12: 311
I13: PET Bevanda dolce 5 dl | J13: 0.9 | N13: Tè nero 200 % | O13: 0.05 | P13: 103
A14: Snack | I14: Cioccolata militare | J14: 0.35 | N14: Destrosio 1 St | O14: 0.15
I15: Mele 1 St | J15: 0.5 | N15: Banana 1 St | O15: 0.8
D16: Effetivo normale | E16: 1 | I16: Effetivo normale | J16: 1 | N16: Effetivo normale | O16: 1 | S16: Pranzo
A17: Martedi | D17: Caffè 50% | E17: 0.2 | I17: Crema ai pomodori 50% | J17: 0.13 | K17: 208 | N17: Zuppa d'orzo al grigionese 50% | O17: 0.23 | P17: 208 | S17: Curry di verdura
A18: =A7+1 -> 2018-05-01 | D18: Cacao/bevanda al malto in porzioni 50% | E18: 0.2 | G18: * | I18: Stufato di pollo con curry | J18: 1.71 | K18: 403 | N18: Rösti vallasana | O18: 2.34 | P18: 903
D19: Sorta di pane 100g | E19: 0.39 | I19: Riso con verdurine | J19: 0.42 | K19: 608 | N19: Insalata mista primavera 30% | O19: 0.46
D20: Burro porzione 20g | E20: 0.44 | N20: Salsa per insalata balsamico 30g | O20: 0.05
A21: =SUM(O17:O26)*O16+SUM(J17:J26)*J16+SUM(E17:E26)*E16 -> 10.14 | D21: Marmellata/Spalmatura di noci 1 | E21: 0.17 | S21: Cena
D22: Succo d'arancia 1 dl | E22: 0.14 | N22: Crema al chioccolato | O22: 0.42 | P22: 1007 | S22: Rösti vegetariani con spiegelei | T22: 903
D24: Formaggio diverso 30g | E24: 0.54 | I24: Tè mela-pesca 200% | J24: 0.1 | K24: 100 | N24: Tè mela-pesca 200% | O24: 0.1 | P24: 100
A25: Snack | I25: Biscotti militari 1 stk | J25: 0.55 | N25: Leckerli 1 St | O25: 0.55
I26: Pera | J26: 0.6 | N26: Orancione 1 St | O26: 0.4
D27: Effetivo normale | E27: 1 | I27: Effetivo normale | J27: 1 | N27: Cena facoltativa | O27: 0.3 | S27: Pranzo
A28: Mercroledi | D28: Caffè 50% | E28: 0.2 | I28: Brodo palline fritte | J28: 0.05 | K28: 205 | N28: Zuppa di verdure 50% | O28: 0.2 | P28: 208 | S28: Bianchetto di quorn all'emmentalese | T28: 427
A29: =A18+1 -> 2018-05-02 | D29: Cacao/bevanda al malto in porzioni 50% | E29: 0.2 | G29: * | I29: Bianchetto di pollo all'emmentalese | J29: 2.44 | K29: 427 | N29: Spaghetti con burro | O29: 0.27 | P29: 617
D30: Sorta di pane 100g | E30: 0.39 | I30: Purea di patate | J30: 0.53 | K30: 606 | N30: Sauce Carbonara | O30: 2.08 | P30: 906
D31: Burro porzione 20g | E31: 0.44 | I31: Fagioli al stufato | J31: 0.5 | K31: 704
A32: =SUM(O28:O37)*O27+SUM(J28:J37)*J27+SUM(E28:E37)*E27 -> 7.978 | D32: Marmellata/Spalmatura di noci 1 | E32: 0.17 | N32: Insalata mista primavera 30% | O32: 0.46 | S32: Cena
D33: Succo d'arancia 1 dl | E33: 0.14 | N33: Salsa per insalata francese | O33: 0.05 | S33: Spaghetti con burro | T33: 617
S34: Pesto CF4 20g
D35: Salumi diverso | E35: 0.6 | I35: Tè lampone-fragola 200% | J35: 0.1 | K35: 100 | N35: Tè lampone-fragola 200% | O35: 0.1 | P35: 100
A36: Snack | I36: Bastoncino ai cereali gusto lampone 1 St | J36: 0.2 | N36: Swiss Choco Bits 1 St | O36: 0.4
I37: Banana 1 St | J37: 0.8 | N37: Mele 1 St | O37: 0.5
D38: Effetivo normale | E38: 1 | I38: Effetivo normale | J38: 1 | N38: Effetivo normale | O38: 1 | S38: Pranzo
A39: Giovedi | D39: Caffè 50% | E39: 0.2 | I39: Zuppa di verdure paesana 50 % | J39: 0.25 | K39: 204 | N39: Brodo con crostini all'aglio 50% | O39: 0.05 | P39: 205 | S39: Tranci di semolino con verdure | T39: 603
A40: =A29+1 -> 2018-05-03 | D40: Cacao/bevanda al malto in porzioni 50% | E40: 0.2 | G40: * | I40: Petto di vitello arrotolato e glassato | J40: 3.2 | K40: 422 | L40: * | N40: Mah-Meh con maiale | O40: 3.47 | P40: 919 | S40: e gratinate con formaggio
D41: Sorta di pane 100g | E41: 0.39 | I41: Polenta Bramata | J41: 0.73 | K41: 603
D42: Burro porzione 20g | E42: 0.44 | I42: Spinaci stufati | J42: 0.73 | K42: 704
A43: =SUM(O39:O48)*O38+SUM(J39:J48)*J38+SUM(E39:E48)*E38 -> 13.38 | D43: Marmellata/Spalmatura di noci 1 | E43: 0.17 | S43: Cena
D44: Succo d'arancia 1 dl | E44: 0.14 | N44: Torta alla mele | O44: 0.86 | P44: 0 | S44: Spaghetti
S45: con verdure e uovo
D46: Birchermüesli 30 % | E46: 0.5 | F46: 904 | I46: Tè di frutta 200% | J46: 0.1 | K46: 100 | N46: Tè di frutta 200% | O46: 0.1 | P46: 100
A47: Snack | I47: Bretzeli 1 St | J47: 0.55 | N47: Bastoncino ai cereali gusto albicocca 1 St | O47: 0.2
I48: Mele 1 St | J48: 0.5 | N48: Pera | O48: 0.6
D49: Effetivo normale | E49: 1 | I49: Effetivo normale | J49: 1 | N49: Congedo di prestazione | O49: 0.75 | S49: Pranzo
A50: Venerdi | D50: Caffè 50% | E50: 0.2 | I50: Brodo alle uova | J50: 0.05 | K50: 205 | N50: Minestra di pane | O50: 0.12 | P50: 206 | S50: Zucchettipiccata
A51: =A40+1 -> 2018-05-04 | D51: Cacao/bevanda al malto in porzioni 50% | E51: 0.2 | G51: * | I51: Filetti di pangasius inpastella de friggere | J51: 2.33 | K51: 501 | N51: Torta di formaggio e alle cipolle | O51: 3.09 | P51: 915
D52: Sorta di pane 100g | E52: 0.39 | I52: Salsa remoulade | J52: 0.34 | K52: 309 | N52: Insalata di cavolo bianco 50% | O52: 0.27 | P52: 805
D53: Burro porzione 20g | E53: 0.44 | I53: Patate nature | J53: 0.68 | K53: 613 | N53: Insalata di barbabietole 50% | O53: 0.15 | P53: 810
A54: =SUM(O50:O59)*O49+SUM(J50:J59)*J49+SUM(E50:E59)*E49 -> 11.8675 | D54: Marmellata/Spalmatura di noci 1 | E54: 0.17 | I54: Zucchine stufate | J54: 0.75 | K54: 704 | N54: Insalata mista primavera 30% | O54: 0.15 | S54: Cena
D55: Succo d'arancia 1 dl | E55: 0.14 | N55: Salsa per insalata francese | O55: 0.05 | S55: Torta di formaggio e alle cipolle | T55: 915
I56: Cake alle banane | J56: 0.58 | K56: 1006
D57: Yogurt di frutti Port 100 g | E57: 0.5 | I57: Tè freddo fatto in casa 200% | J57: 0.1 | K57: 100 | N57: Tè freddo fatto in casa 200% | O57: 0.1 | P57: 100
A58: Snack | I58: Cracker 1 St | J58: 0.6 | N58: Bastoncino al malto (ovo choc) | O58: 0.6
I59: Orancione 1 St | J59: 0.4 | N59: Banana 1 St | O59: 0.8
D60: Congedo di prestazione | E60: 0.75 | I60: Guardia | J60: 0.1 | N60: Guardia | O60: 0.1 | S60: Pranzo
A61: Sabato | D61: Caffè 50% | E61: 0.2 | G61: * | I61: Castelletto di maiale | J61: 3.24 | N61: Pizza prosciutto | O61: 4.14 | P61: 924 | S61: braciola al quorn con verdure
A62: =A51+1 -> 2018-05-05 | D62: Cacao/bevanda al malto in porzioni 50% | E62: 0.2 | I62: Burro alla erbe aromatiche | N62: Insalata di carote 50% | O62: 0.3 | P62: 812
D63: Treccia 100 g | E63: 1.35 | I63: Patate arrostito | J63: 0.96 | K63: 600 | N63: Insalata di mais 50% | O63: 0.25 | P63: 808
D64: Burro porzione 20g | E64: 0.44 | I64: Broccoli con tonsilla | J64: 1.27 | K64: 703 | N64: Insalata mista primavera 30% | O64: 0.15
A65: =SUM(O61:O70)*O60+SUM(J61:J70)*J60+SUM(E61:E70)*E60 -> 3.4635 | D65: Marmellata/Spalmatura di noci 1 | E65: 0.17 | N65: Salsa per insalata balsamico 30g | O65: 0.05 | S65: Cena
D66: Succo d'arancia 1 dl | E66: 0.14 | S66: Pizza Calzone con uovo | T66: 808
D68: Salami 50 g | E68: 0.51 | I68: Tè lampone-fragola 200% | J68: 0.1 | K68: 100 | N68: Tè lampone-fragola 200% | O68: 0.1 | P68: 100
A69: Snack | I69: Biscotti militari 1 stk | J69: 0.35 | N69: Destrosio 1 St | O69: 0.15
I70: Pera | J70: 0.6 | N70: Orancione 1 St | O70: 0.4
D71: Guardia | E71: 0.1 | I71: Guardia | J71: 0.1 | N71: Guardia | O71: 0.1 | S71: Pranzo
A72: Domenica | D72: Caffè 50% | E72: 0.2 | G72: * | I72: Mezzo pollo arrostito | J72: 4.34 | N72: Café completo | O72: 3.93 | S72: verdure mediterranea
A73: =A62+1 -> 2018-05-06 | D73: Cacao/bevanda al malto in porzioni 50% | E73: 0.2 | I73: con salse | S73: al forno
D74: Treccia 100 g | E74: 1.35 | I74: Pommes Chips CF4 | J74: 1.18 | S74: con mozzarella e basilico
D75: Burro porzione 20g | E75: 0.44 | I75: Krapfen CF 4 | J75: 1.7
A76: =SUM(O72:O81)*O71+SUM(J72:J81)*J71+SUM(E72:E81)*E71 -> 1.67 | D76: Marmellata/Spalmatura di noci 1 | E76: 0.17 | S76: Cena
D77: Succo d'arancia 1 dl | E77: 0.14 | S77: Café completo
D78: Rösti 50 % | E78: 0.25 | F78: 612
D79: Spiegelei 1 St | E79: 0.5 | I79: Tè nero 200% | J79: 0.1 | K79: 103 | N79: Tè nero 200% | O79: 0.1 | P79: 103
A80: Snack | I80: Bretzeli 1 St | J80: 0.6 | N80: Bastoncino ai cereali gusto mela | O80: 0.2
I81: Mele 1 St | J81: 0.5 | N81: Banana 1 St | O81: 0.8
A83: Conteggio della sussistenza | I83: Certificata l'esattezza: | N83: Fattibilità specialistica: | S83: Approviazione:
A84: Utilizzo sec piano sussistenza | E84: =(A10+A21+A32+A43+A54+A65+A76)*100 -> 5557.9 | I84: Il contabile | N84: Il Quartiermastro | S84: Il Comandante
A85: Credito suss | E85: ='Übersicht und Anleitung'!D18*100 -> 6300
A86: Saldo | E86: =E85-E84 -> 742.1
A88: Dichiarazione d'origine della carne, del latte e delle uova: tutte le carni e succedanei/latte e prodotti lattieri/uova provengono unicamente dalla Svizzera.
A89: Dichiarazione d'origine die pesci e prodotti marini: tutti i peschi e crostacei provengono dalla Svizzera o sono definiti per il marchio ASC / MSC / FOS.
A90: Dichiarazione degli ingredienti / sostanze allergeniche ( Lderr art. 8): i capi cucina possono rispondere alle domande riguardanti componenti allergenici.
A91: Punti di controllo critici: il simbolo * dichiara l'analisi del rischio. Una firma conferma una buona pratica di fabbricazione (vedi regl 06.006 Ricettario di cucina, pag.21 e ss ricette).

Sheet Settimana 1
A1: Piano di sussistenza | G1: da: | I1: 2018-05-07 | L1: a: | N1: =A73 -> 2018-05-13 | P1: Unità:
B3: Colazione | G3: Pranzo | L3: Cena | Q3: senza carne
B4: PCC | C4: Visto | E4: Prezzo | F4: Ricetta | G4: PCC | H4: Visto | J4: Prezzo | K4: Ricetta | L4: PCC | M4: Visto | O4: Prezzo | P4: Ricetta | Q4: PCC | R4: Visto | T4: Ricetta
D5: Guardia | E5: 0.1 | I5: Effetivo normale | J5: 1 | N5: Effetivo normale | O5: 1 | S5: Pranzo
A6: Lunedì | D6: Caffè 50% | E6: 0.2 | I6: Brodo palline fritte | J6: 0.05 | K6: 205 | N6: Crema di curry 50 % | O6: 0.1 | P6: 212 | S6: Ravioli di spinaci | T6: 824
A7: =I1 -> 2018-05-07 | D7: Cacao/bevanda al malto in porzioni 50% | E7: 0.2 | I7: Ravioli | J7: 1 | K7: 926 | L7: * | N7: Asta di pollo | O7: 2.37
D8: Sorta di pane 100g | E8: 0.39 | I8: Ricotta 20 g | J8: 0.25 | N8: Salsa al vino rosso
D9: Burro porzione 20g | E9: 0.44 | I9: Insalata mista primavera 30% | J9: 0.46 | N9: Patate di lyoner | O9: 1 | P9: 600
A10: =SUM(O6:O15)*O5+SUM(J6:J15)*J5+SUM(E6:E15)*E5 -> 8.553 | D10: Marmellata/Spalmatura di noci 1 | E10: 0.17 | I10: Salsa per insalata francese | J10: 0.05 | N10: Spinaci | O10: 0.73 | P10: 704 | S10: Cena
D11: Succo d'arancia 1 dl | E11: 0.14 | S11: Gratin di patate e di verdure | T11: 700
D12: Müsli di colazione 30g | E12: 0.25
D13: Formaggio diverso 30g | E13: 0.54 | I13: Tè freddo 200 % | J13: 0.13 | N13: Tè freddo 200 % | O13: 0.13
A14: Snack | I14: Arachidi salate | J14: 0.6 | N14: Destrosio 1 St | O14: 0.15
I15: Mele 1 St | J15: 0.5 | N15: Banana 1 St | O15: 0.8
D16: Effetivo normale | E16: 1 | I16: Effetivo normale | J16: 1 | N16: Effetivo normale | O16: 1 | S16: Pranzo
A17: Martedi | D17: Caffè 50% | E17: 0.2 | I17: Zuppa di verdure 50% | J17: 0.2 | K17: 208 | N17: Brodo celestino 50% | O17: 0.05 | P17: 205 | S17: Sminuzzato di quorn con | T17: 406
A18: =A7+1 -> 2018-05-08 | D18: Cacao/bevanda al malto in porzioni 50% | E18: 0.2 | G18: * | I18: Sminuzzato di maiale | J18: 2.05 | K18: 406 | N18: Sformato di pane e formaggio all'appenzellese | O18: 2.38 | P18: 901 | S18: Peperoni
D19: Sorta di pane 100g | E19: 0.39 | I19: ai peperoni | N19: Insalata mista primavera 30% | O19: 0.46
D20: Burro porzione 20g | E20: 0.44 | I20: Risi-Bisi | J20: 0.48 | K20: 608 | N20: Salsa per insalata balsamico 30g | O20: 0.05
A21: =SUM(O17:O26)*O16+SUM(J17:J26)*J16+SUM(E17:E26)*E16 -> 11.76 | D21: Marmellata/Spalmatura di noci 1 | E21: 0.17 | I21: Cavolo rapa stufato | J21: 1.08 | K21: 704 | S21: Cena
D22: Succo d'arancia 1 dl | E22: 0.14 | N22: Crema al chioccolato | O22: 0.42 | P22: 1007 | S22: Sformato di pane e formaggio all'appenzellese | T22: 901
D23: Müsli di colazione 30g | E23: 0.25
D24: Yogurt Port 100 g | E24: 0.5 | I24: Tè mela-pesca 200% | J24: 0.1 | K24: 100 | N24: Tè mela-pesca 200% | O24: 0.1 | P24: 100
A25: Snack | I25: Biscotti militari 1 stk | J25: 0.55 | N25: Leckerli 1 St | O25: 0.55
I26: Pera | J26: 0.6 | N26: Orancione 1 St | O26: 0.4
D27: Effetivo normale | E27: 1 | I27: Effetivo normale | J27: 1 | N27: Cena facoltativa | O27: 0.3 | S27: Pranzo
A28: Mercroledi | D28: Caffè 50% | E28: 0.2 | I28: Zuppa di sedano 50% | J28: 0.24 | K28: 208 | N28: Spaghetti con burro | O28: 0.27 | P28: 617 | S28: Gratin Purea di patate | T28: 604
A29: =A18+1 -> 2018-05-09 | D29: Cacao/bevanda al malto in porzioni 50% | E29: 0.2 | G29: * | I29: Bianchetto di pollo | J29: 2.8 | K29: 406 | N29: Salsa al pomodoro e tonno | O29: 0.29 | P29: 311 | S29: con formaggio
D30: Sorta di pane 100g | E30: 0.39 | I30: alle erbe
D31: Burro porzione 20g | E31: 0.44 | I31: Purea di patate con zafferano | J31: 0.55 | K31: 606 | N31: Insalata mista primavera 30% | O31: 0.15
A32: =SUM(O28:O37)*O27+SUM(J28:J37)*J27+SUM(E28:E37)*E27 -> 9.777 | D32: Marmellata/Spalmatura di noci 1 | E32: 0.17 | I32: Asparagi stufati | J32: 2.17 | K32: 604 | N32: Insalata di cavolo bianco 30% | O32: 0.18 | P32: 805 | S32: Cena
D33: Succo d'arancia 1 dl | E33: 0.14 | N33: Insalata di mais 30% | O33: 0.15 | P33: 808 | S33: Spaghetti con burro | T33: 617
D34: Müsli di colazione 30g | E34: 0.25 | N34: Salsa per insalata balsamico 30g | O34: 0.05 | S34: Crema alla formaggio | T34: 308
D35: Birchermüesli | E35: 0.5 | F35: 804 | I35: Tè lampone-fragola 200% | J35: 0.1 | K35: 100 | N35: Tè lampone-fragola 200% | O35: 0.1 | P35: 100
A36: Snack | I36: Bastoncino ai cereali gusto miele | J36: 0.2 | N36: Swiss Choco Bits 1 St | O36: 0.4
I37: Banana 1 St | J37: 0.8 | N37: Mele 1 St | O37: 0.5
D38: Effetivo normale | E38: 1 | I38: Effetivo normale | J38: 1 | N38: Effetivo normale | O38: 1 | S38: Pranzo
A39: Giovedi | D39: Caffè 50% | E39: 0.2 | I39: Crema d'asparagi 50% | J39: 0.51 | K39: 208 | N39: Zuppa di mosto di mele alla thurgoviese 50 % | O39: 0.33 | P39: 1107 | S39: Purea di patate con verdure
A40: =A29+1 -> 2018-05-10 | D40: Cacao/bevanda al malto in porzioni 50% | E40: 0.2 | G40: * | I40: Carne di manzo | J40: 3.28 | K40: 416 | L40: * | N40: Chippolata vom Schwein mit | O40: 1.28 | S40: e gratinare con formaggio
D41: Sorta di pane 100g | E41: 0.39 | I41: Ofentori | J41: 1.16 | K41: 604 | N41: Salsa all erbe | O41: 0.19 | P41: 308
D42: Burro porzione 20g | E42: 0.44 | I42: Carote stufate | J42: 0.49 | K42: 704 | N42: Risotto ai pomodori | O42: 0.6 | P42: 611
A43: =SUM(O39:O48)*O38+SUM(J39:J48)*J38+SUM(E39:E48)*E38 -> 14.91 | D43: Marmellata/Spalmatura di noci 1 | E43: 0.17 | N43: Peperoni al forno | O43: 0.81 | P43: 706 | S43: Cena
D44: Succo d'arancia 1 dl | E44: 0.14 | I44: Country Cake | J44: 0.82 | K44: 1006 | S44: Risotto ai pomodori | T44: 611
D45: Müsli di colazione 30g | E45: 0.25
D46: Salumi diverso | E46: 0.6 | I46: Tè di frutta 200% | J46: 0.1 | K46: 100 | N46: Tè di frutta 200% | O46: 0.1 | P46: 100
A47: Snack | I47: Cracker 1 St | J47: 0.6 | N47: Conserva di carne 1 St | O47: 1.25
I48: Orancione 1 St | J48: 0.4 | N48: Pera | O48: 0.6
D49: Effetivo normale | E49: 1 | I49: Effetivo normale | J49: 1 | N49: Congedo di prestazione | O49: 0.75 | S49: Pranzo
A50: Venerdi | D50: Caffè 50% | E50: 0.2 | I50: Brodo palline fritte | J50: 0.05 | K50: 205 | N50: Minestra asiatica piccante | O50: 0.21 | P50: 202 | S50: Curry di verdura
A51: =A40+1 -> 2018-05-11 | D51: Cacao/bevanda al malto in porzioni 50% | E51: 0.2 | G51: * | I51: Gratin di pesce con Filetti di pangasius | J51: 2.64 | K51: 507 | L51: * | N51: Bami Goreng | O51: 4.37 | P51: 922 | S51: con ceci
D52: Sorta di pane 100g | E52: 0.39 | I52: agli spinaci | N52: Insalata mista primavera 30% | O52: 0.46
D53: Burro porzione 20g | E53: 0.44 | I53: Riso con verdurine | J53: 0.42 | K53: 608 | N53: Salsa per insalata francese | O53: 0.05
A54: =SUM(O50:O59)*O49+SUM(J50:J59)*J49+SUM(E50:E59)*E49 -> 12.1475 | D54: Marmellata/Spalmatura di noci 1 | E54: 0.17 | I54: Finocchio gratinate | J54: 0.77 | K54: 705 | S54: Cena
D55: Succo d'arancia 1 dl | E55: 0.14 | N55: Treccia russa | O55: 0.61 | P55: 1114 | S55: Spaghetti al quorn | T55: 617
D56: Müsli di colazione 30g | E56: 0.25 | S56: e verdure
D57: Formaggio diverso 30g | E57: 0.54 | I57: Tè freddo fatto in casa 200% | J57: 0.1 | K57: 100 | N57: Tè freddo fatto in casa 200% | O57: 0.1 | P57: 100
A58: Snack | I58: Misto di noci e frutta | J58: 0.35 | N58: Bastoncino al malto (ovo choc) | O58: 0.45
I59: Mele 1 St | J59: 0.5 | N59: Orancione 1 St | O59: 0.4
D60: Congedo di prestazione | E60: 0.75 | I60: Guardia | J60: 0.1 | N60: Guardia | O60: 0.1 | S60: Pranzo
A61: Sabato | D61: Caffè 50% | E61: 0.2 | G61: * | I61: Ossobuco di maiale | J61: 2.91 | K61: 416 | N61: Torta di formaggio e alle cipolle | O61: 3.09 | P61: 915 | S61: Gnocchi di patate con zucchini
A62: =A51+1 -> 2018-05-12 | D62: Cacao/bevanda al malto in porzioni 50% | E62: 0.2 | I62: Gnocchi di patate | J62: 0.68 | N62: Insalata di barbabietole 30% | O62: 0.1 | P62: 812 | S62: e ricotta
D63: Sorta di pane 100g | E63: 0.39 | I63: Zucchine stufate | J63: 0.75 | K63: 704 | N63: Insalata di carote 30% | O63: 0.12 | P63: 810
D64: Burro porzione 20g | E64: 0.44 | N64: Insalata di mais 30% | O64: 0.15 | P64: 808
A65: =SUM(O61:O70)*O60+SUM(J61:J70)*J60+SUM(E61:E70)*E60 -> 2.9125 | D65: Marmellata/Spalmatura di noci 1 | E65: 0.17 | I65: Cornetto di sfoglia alle noci CF 4 | J65: 1.2 | N65: Insalata mista primavera 30% | O65: 0.15 | S65: Cena
D66: Succo d'arancia 1 dl | E66: 0.14 | N66: Salsa per insalata balsamico 30g | O66: 0.05 | S66: Torta di formaggio e alle cipolle | T66: 915
D67: Müsli di colazione 30g | E67: 0.25
D68: Salumi diverso | E68: 0.6 | I68: Tè lampone-fragola 200% | J68: 0.1 | K68: 100 | N68: Tè lampone-fragola 200% | O68: 0.1 | P68: 100
A69: Snack | I69: Biscotti militari 1 stk | J69: 0.55 | N69: Destrosio 1 St | O69: 0.15
I70: Pera | J70: 0.6 | N70: Mele 1 St | O70: 0.5
D71: Guardia | E71: 0.1 | I71: Guardia | J71: 0.1 | N71: Guardia | O71: 0.1 | S71: Pranzo
A72: Domenica | D72: Caffè 50% | E72: 0.2 | G72: * | I72: Gigot d'agnello alle erbe | J72: 4.45 | K72: 422 | N72: Café completo | O72: 3.93 | S72: Patate arrosto | T72: 600
A73: =A62+1 -> 2018-05-13 | D73: Cacao/bevanda al malto in porzioni 50% | E73: 0.2 | I73: Thymianjus | S73: con uovo fritto
D74: Zopf 100 g | E74: 1.35 | I74: patate arrosto | J74: 1 | K74: 600
D75: Burro porzione 20g | E75: 0.44 | I75: Fagioli vedi brasato | J75: 0.54 | K75: 604
A76: =SUM(O72:O81)*O71+SUM(J72:J81)*J71+SUM(E72:E81)*E71 -> 1.606 | D76: Marmellata/Spalmatura di noci 1 | E76: 0.17 | I76: Gelati alla vaniglia | J76: 0.49 | S76: Cena
D77: Succo d'arancia 1 dl | E77: 0.14 | I77: Salsa alla cioccolata | J77: 0.1 | S77: Café completo
D78: Rösti 50 % | E78: 0.25 | F78: 612
D79: Spiegelei 1 St | E79: 0.5 | I79: Tè nero 200% | J79: 0.1 | K79: 103 | N79: Tè nero 200% | O79: 0.1 | P79: 103
A80: Snack | I80: Bretzeli 1 St | J80: 0.6 | N80: Bastoncino ai cereali gusto mela | O80: 0.2
I81: Mele 1 St | J81: 0.5 | N81: Banana 1 St | O81: 0.8
A83: Conteggio della sussistenza | I83: Certificata l'esattezza: | N83: Fattibilità specialistica: | S83: Approviazione:
A84: Utilizzo sec piano sussistenza | E84: =(A10+A21+A32+A43+A54+A65+A76)*100 -> 6166.6 | I84: Il contabile | N84: Il Quartiermastro | S84: Il Comandante
A85: Credito suss | E85: ='Übersicht und Anleitung'!D18*100 -> 6300
A86: Saldo | E86: =E85-E84 -> 133.4
A88: Dichiarazione d'origine della carne, del latte e delle uova: tutte le carni e succedanei/latte e prodotti lattieri/uova provengono unicamente dalla Svizzera.
A89: Dichiarazione d'origine die pesci e prodotti marini: tutti i peschi e crostacei provengono dalla Svizzera o sono definiti per il marchio ASC / MSC / FOS.
A90: Dichiarazione degli ingredienti / sostanze allergeniche ( Lderr art. 8): i capi cucina possono rispondere alle domande riguardanti componenti allergenici.
A91: Punti di controllo critici: il simbolo * dichiara l'analisi del rischio. Una firma conferma una buona pratica di fabbricazione (vedi regl 06.006 Ricettario di cucina, pag.21 e ss ricette).

Sheet Settimana 2
A1: Piano di sussistenza | G1: da: | I1: 2018-05-14 | L1: a: | N1: =A73 -> 2018-05-20 | P1: Unità:
B3: Colazione | G3: Pranzo | L3: Cena | Q3: senza carne
B4: PCC | C4: Visto | E4: Prezzo | F4: Ricetta | G4: PCC | H4: Visto | J4: Prezzo | K4: Ricetta | L4: PCC | M4: Visto | O4: Prezzo | P4: Ricetta | Q4: PCC | R4: Visto | T4: Ricetta
D5: Effetivo normale | E5: 1 | I5: Effetivo normale | J5: 1 | N5: Effetivo normale | O5: 1 | S5: Pranzo
A6: Lunedì | D6: Caffè 50% | E6: 0.2 | I6: Brodo con Fideli 50% | J6: 0.05 | K6: 205 | N6: Zuppa di verdure paesana 50 % | O6: 0.25 | P6: 204 | S6: Maccheroni delle alpi | T6: 900
A7: =I1 -> 2018-05-14 | D7: Cacao/bevanda al malto in porzioni 50% | E7: 0.2 | I7: Maccheroni delle alpi | J7: 1.94 | K7: 900 | L7: * | N7: Salsicce di maiale con | O7: 2.52
D8: Sorta di pane 100g | E8: 0.39 | I8: Composta di mele | J8: 0.58 | K8: 1109 | N8: Salsa alle cipolle | O8: 0.2 | P8: 301
D9: Burro porzione 20g | E9: 0.44 | I9: Insalata mista primavera 30% | J9: 0.46 | N9: Rösti | O9: 0.49 | P9: 612
A10: =SUM(O6:O15)*O5+SUM(J6:J15)*J5+SUM(E6:E15)*E5 -> 11.99 | D10: Marmellata/Spalmatura di noci 1 | E10: 0.17 | I10: Salsa per insalata balsamico 30g | J10: 0.05 | N10: Pomodori alla provinciale | O10: 0.5 | P10: 707 | S10: Cena
D11: Succo d'arancia 1 dl | E11: 0.14 | N11: Crema di Leckerli | O11: 0.56 | P11: 1107 | S11: Rösti con uovo fritto | T11: 612
D12: Müsli di colazione 30g | E12: 0.25
D13: formaggio diverso 30g | E13: 0.54 | I13: Tè freddo 200 % | J13: 0.13 | N13: Tè freddo 200 % | O13: 0.13
A14: Snack | I14: Cioccolata militare | J14: 0.35 | N14: Destrosio 1 St | O14: 0.15
I15: Mele 1 St | J15: 0.5 | N15: Banana 1 St | O15: 0.8
D16: Effetivo normale | E16: 1 | I16: Effetivo normale | J16: 1 | N16: Effetivo normale | O16: 1 | S16: Pranzo
A17: Martedi | D17: Caffè 50% | E17: 0.2 | I17: Crema di zucchine | J17: 0.2 | K17: 208 | N17: Brodo con crostini all'aglio 50% | O17: 0.05 | P17: 205 | S17: Gratin di Purea di patate | T17: 606
A18: =A7+1 -> 2018-05-15 | D18: Cacao/bevanda al malto in porzioni 50% | E18: 0.2 | G18: * | I18: Arrosta di maiale | J18: 2.67 | K18: 422 | L18: * | N18: Nasi Goreng | O18: 4.26 | P18: 922
D19: Sorta di pane 100g | E19: 0.39 | I19: Purea di patate | J19: 0.53 | K19: 606 | N19: Insalata mista primavera 30% | O19: 0.15
D20: Burro porzione 20g | E20: 0.44 | I20: Cavolfiori | J20: 0.8 | K20: 703 | N20: Salsa per insalata balsamico 30g | O20: 0.2 | P20: 812
A21: =SUM(O17:O26)*O16+SUM(J17:J26)*J16+SUM(E17:E26)*E16 -> 13.7 | D21: Marmellata/Spalmatura di noci 1 | E21: 0.17 | I21: maniera polacca | N21: Insalata di mais 30% | O21: 0.15 | P21: 808 | S21: Cena
D22: Succo d'arancia 1 dl | E22: 0.14 | N22: Salsa per insalata balsamico 30g | O22: 0.05 | S22: Riso saltato | T22: 608
D23: Müsli di colazione 30g | E23: 0.25 | S23: all uovo e verdure
D24: Yogurt Port 100 g | E24: 0.5 | I24: Tè mela-pesca 200% | J24: 0.1 | K24: 100 | N24: Tè mela-pesca 200% | O24: 0.1 | P24: 100
A25: Snack | I25: Arachidi salate | J25: 0.6 | N25: Leckerli 1 St | O25: 0.55
I26: Pera | J26: 0.6 | N26: Orancione 1 St | O26: 0.4
D27: Effetivo normale | E27: 1 | I27: Effetivo normale | J27: 1 | N27: Cena facoltativa | O27: 0.3 | S27: Pranzo
A28: Mercroledi | D28: Caffè 50% | E28: 0.2 | I28: Zuppa di verdure 50% | J28: 0.2 | K28: 208 | N28: Gratin di pasta | O28: 3.02 | P28: 928 | S28: Bianchetto di quorn | T28: 427
A29: =A18+1 -> 2018-05-16 | D29: Cacao/bevanda al malto in porzioni 50% | E29: 0.2 | G29: * | I29: Bianchetto di pollo | J29: 2.81 | K29: 427 | N29: Insalata di barbabietole 30% | O29: 0.1 | P29: 810 | S29: all'antica
D30: Sorta di pane 100g | E30: 0.39 | I30: all'antica | N30: Insalata di cavolo bianco 30% | O30: 0.18 | P30: 805
D31: Burro porzione 20g | E31: 0.44 | I31: Ebly | J31: 0.65 | K31: 602 | N31: Insalata di mais 30% | O31: 0.15 | P31: 808
A32: =SUM(O28:O37)*O27+SUM(J28:J37)*J27+SUM(E28:E37)*E27 -> 9.03 | D32: Marmellata/Spalmatura di noci 1 | E32: 0.17 | I32: Fagiolini verdi brasato | J32: 0.54 | K32: 704 | N32: insalata mista primavera 30% | O32: 0.15 | S32: Cena
D33: Succo d'arancia 1 dl | E33: 0.14 | N33: Salsa per insalata francese | O33: 0.05 | S33: Gratin di pasta | T33: 928
D34: Müsli di colazione 30g | E34: 0.25
D35: Birchermüesli | E35: 0.5 | F35: 904 | I35: Tè lampone-fragola 200% | J35: 0.1 | K35: 100 | N35: Tè lampone-fragola 200% | O35: 0.1 | P35: 100
A36: Snack | I36: Bastoncino ai cereali gusto miele | J36: 0.2 | N36: Bretzeli 1 St | O36: 0.55
I37: Banana 1 St | J37: 0.8 | N37: Mele 1 St | O37: 0.5
D38: Effetivo normale | E38: 1 | I38: Effetivo normale | J38: 1 | N38: Effetivo normale | O38: 1 | S38: Pranzo
A39: Giovedi | D39: Caffè 50% | E39: 0.2 | I39: Brodo palline fritte | J39: 0.04 | K39: 205 | N39: Crema ai pomodori 50% | O39: 0.13 | P39: 208 | S39: Piccata alla melanzane
A40: =A29+1 -> 2018-05-17 | D40: Cacao/bevanda al malto in porzioni 50% | E40: 0.2 | G40: * | I40: Piccata di maiale | J40: 3.39 | K40: 413 | L40: * | N40: Chipolataspiessli | O40: 1.28
D41: Sorta di pane 100g | E41: 0.39 | I41: Salsa al pomodoro 50% | J41: 0.13 | K41: 311 | N41: Burro alla erbe aromatiche | O41: 0.1
D42: Burro porzione 20g | E42: 0.44 | I42: Polenta | J42: 0.55 | K42: 610 | N42: Risotto al vino bianco | O42: 0.57 | P42: 611
A43: =SUM(O39:O48)*O38+SUM(J39:J48)*J38+SUM(E39:E48)*E38 -> 12.14 | D43: Marmellata/Spalmatura di noci 1 | E43: 0.17 | I43: Ratatouille | J43: 0.61 | N43: Insalata mista primavera 30% | O43: 0.46 | S43: Cena
D44: Succo d'arancia 1 dl | E44: 0.14 | I44: Cake alle banane | J44: 0.58 | K44: 1105 | N44: Thousend Island dressing 30 g | O44: 0.11 | P44: 303 | S44: Spiedo di verdure
D45: Müsli di colazione 30g | E45: 0.25
D46: Tacchino 50 g | E46: 0.5 | I46: Tè di frutta 200% | J46: 0.1 | K46: 100 | N46: Tè di frutta 200% | O46: 0.1 | P46: 100
A47: Snack | I47: Swiss Choco Bits 1 St | J47: 0.4 | N47: Bastonico ai cereali gusto albicocca 1 St | O47: 0.2
I48: Mele 1 St | J48: 0.5 | N48: Pera | O48: 0.6
D49: Effetivo normale | E49: 1 | I49: Effetivo normale | J49: 1 | N49: Congedo di prestazione | O49: 0.75 | S49: Pranzo
A50: Venerdi | D50: Caffè 50% | E50: 0.2 | I50: Minestrone 50 % | J50: 0.31 | K50: 218 | L50: * | N50: Hörnlipilaf | O50: 2.59 | P50: 1002 | S50: Hamburger integrale alle verdure
A51: =A40+1 -> 2018-05-18 | D51: Cacao/bevanda al malto in porzioni 50% | E51: 0.2 | G51: * | I51: Filetti di merluzzo carbonaro impanati | J51: 1.88 | K51: 505 | N51: Insalata mista primavera 30% | O51: 0.46
D52: Sorta di pane 100g | E52: 0.39 | I52: Salsa remoulade | J52: 0.34 | K52: 309 | N52: Salsa per insalata francese | O52: 0.05
D53: Burro porzione 20g | E53: 0.44 | I53: Patate nature | J53: 0.68 | K53: 613
A54: =SUM(O50:O59)*O49+SUM(J50:J59)*J49+SUM(E50:E59)*E49 -> 11.215 | D54: Marmellata/Spalmatura di noci 1 | E54: 0.17 | I54: Spinaci stufati | J54: 0.73 | K54: 704 | N54: Tranci dello studente | O54: 1.21 | P54: 1115 | S54: Cena
D55: Succo d'arancia 1 dl | E55: 0.14 | S55: Hörnli Pilaf | T55: 1002
D56: Müsli di colazione 30g | E56: 0.25 | S56: Salsa bolognese al quorn
D57: Formaggio diverso 30g | E57: 0.54 | I57: Tè freddo fatto in casa 200% | J57: 0.1 | K57: 100 | N57: Tè freddo fatto in casa 200% | O57: 0.1 | P57: 100
A58: Snack | I58: Bastoncino ai cereali gusto lampone1 St | J58: 0.2 | N58: Bastoncino al malto (ovo choc) | O58: 0.45
I59: Orancione 1 St | J59: 0.4 | N59: Banana 1 St | O59: 0.8
D60: Congedo di prestazione | E60: 0.75 | I60: Guardia | J60: 0.1 | N60: Guardia | O60: 0.1 | S60: Pranzo
A61: Sabato | D61: Caffè 50% | E61: 0.2 | G61: * | I61: Spareribs di maiale | J61: 5.27 | K61: 426 | N61: Flammkuchen | O61: 3 | P61: 909 | S61: Patate al forno con panna acida
A62: =A51+1 -> 2018-05-19 | D62: Cacao/bevanda al malto in porzioni 50% | E62: 0.2 | I62: Patate in forno con panna acida | J62: 0.94 | N62: Insalata mista primavera 30% | O62: 0.15
D63: Sorta di pane 100g | E63: 0.39 | I63: Pannocchia | J63: 1.37 | N63: Insalata di barbabietole 30% | O63: 0.1 | P63: 810
D64: Burro porzione 20g | E64: 0.44 | I64: Insalata mista primavera 30% | J64: 0.46 | N64: Insalata di mais 30% | O64: 0.15 | P64: 808
A65: =SUM(O61:O70)*O60+SUM(J61:J70)*J60+SUM(E61:E70)*E60 -> 3.059 | D65: Marmellata/Spalmatura di noci 1 | E65: 0.17 | I65: Salsa per insalata balsamico 30g | J65: 0.05 | N65: Salsa per insalata francese | O65: 0.05 | S65: Cena
D66: Succo d'arancia 1 dl | E66: 0.14 | S66: Flammkuchen sin pancetta | T66: 909
D67: Müsli di colazione 30g | E67: 0.25
D68: Salami 50 g | E68: 0.51 | I68: Tè lampone-fragola 200% | J68: 0.1 | K68: 100 | N68: Tè lampone-fragola 200% | O68: 0.1 | P68: 100
A69: Snack | I69: Biscotti militari 1 stk | J69: 0.35 | N69: Destrosio 1 St | O69: 0.15
I70: Pera | J70: 0.6 | N70: Mele 1 St | O70: 0.5
D71: Guardia | E71: 0.1 | I71: Guardia | J71: 0.1 | N71: Guardia | O71: 0.1 | S71: Pranzo
A72: Domenica | D72: Kaffee in Portionen 50 % | E72: 0.2 | G72: * | I72: Petto di vitello arrotolato e glassato | J72: 3.2 | K72: 422 | N72: Café completo | O72: 3.93 | S72: Gratin di patate | T72: 605
A73: =A62+1 -> 2018-05-20 | D73: Cacao/bevanda al malto in porzioni 50% | E73: 0.2 | I73: Rosmarinjus
D74: Treccia 100 g | E74: 1.35 | I74: Gratin di patate | J74: 0.93 | K74: 605
D75: Burro porzione 20g | E75: 0.44 | I75: Taccole stufate | J75: 0.79 | K75: 704
A76: =SUM(O72:O81)*O71+SUM(J72:J81)*J71+SUM(E72:E81)*E71 -> 1.552 | D76: Marmellata/Spalmatura di noci 1 | E76: 0.17 | S76: Cena
D77: Succo d'arancia 1 dl | E77: 0.14 | I77: Tirami su | J77: 1.22 | K77: 1118 | S77: Café completo
D78: Rösti 50 % | E78: 0.25 | F78: 612
D79: Spiegelei 1 St | E79: 0.5 | I79: Tè nero 200% | J79: 0.1 | K79: 103 | N79: Tè nero 200% | O79: 0.1 | P79: 103
A80: Snack | I80: Bretzeli 1 St | J80: 0.6 | N80: Bastoncino ai cereali gusto mela | O80: 0.2
I81: Banana 1 St | J81: 0.8 | N81: Orancione 1 St | O81: 0.4
A83: Conteggio della sussistenza | I83: Certificata l'esattezza: | N83: Fattibilità specialistica: | S83: Approviazione:
A84: Utilizzo sec piano sussistenza | E84: =(A10+A21+A32+A43+A54+A65+A76)*100 -> 6268.6 | I84: Il contabile | N84: Il Quartiermastro | S84: Il Comandante
A85: Credito suss | E85: ='Übersicht und Anleitung'!D18*100 -> 6300
A86: Saldo | E86: =E85-E84 -> 31.4
A88: Dichiarazione d'origine della carne, del latte e delle uova: tutte le carni e succedanei/latte e prodotti lattieri/uova provengono unicamente dalla Svizzera.
A89: Dichiarazione d'origine die pesci e prodotti marini: tutti i peschi e crostacei provengono dalla Svizzera o sono definiti per il marchio ASC / MSC / FOS.
A90: Dichiarazione degli ingredienti / sostanze allergeniche ( Lderr art. 8): i capi cucina possono rispondere alle domande riguardanti componenti allergenici.
A91: Punti di controllo critici: il simbolo * dichiara l'analisi del rischio. Una firma conferma una buona pratica di fabbricazione (vedi regl 06.006 Ricettario di cucina, pag.21 e ss ricette).

Sheet Settimana 3
A1: Piano di sussistenza | G1: da: | I1: 2018-05-21 | L1: a: | N1: =A73 -> 2018-05-27 | P1: Unità:
B3: Colazione | G3: Pranzo | L3: Cena | Q3: senza carne
B4: PCC | C4: Visto | E4: Prezzo | F4: Ricetta | G4: PCC | H4: Visto | J4: Prezzo | K4: Ricetta | L4: PCC | M4: Visto | O4: Prezzo | P4: Ricetta | Q4: PCC | R4: Visto | T4: Ricetta
D5: Effetivo normale | E5: 1 | I5: Effetivo normale | J5: 1 | N5: Effetivo normale | O5: 1 | S5: Pranzo
A6: Lunedì | D6: Caffè 50% | E6: 0.2 | I6: Brodo celestino 50% | J6: 0.05 | K6: 205 | N6: Crema al crescione 50% | O6: 0.14 | P6: 208 | S6: Spaghetti con burro | T6: 617
A7: =I1 -> 2018-05-21 | D7: Cacao/bevanda al malto in porzioni 50% | E7: 0.2 | I7: Spaghetti | J7: 0.25 | K7: 617 | L7: * | N7: Polpettone casareccio | O7: 1.92 | S7: Salsa al pomodoro | T7: 311
D8: Sorta di pane 100g | E8: 0.39 | I8: Salsa al pomodoro | J8: 0.16 | K8: 311 | N8: Salsa senape | O8: 0.07 | P8: 301 | S8: Pesto CF4 20 g
D9: Burro porzione 20g | E9: 0.44 | I9: Pesto CF4 20 g | J9: 0.07 | N9: Patate arrostite | O9: 0.96 | P9: 600
A10: =SUM(O6:O15)*O5+SUM(J6:J15)*J5+SUM(E6:E15)*E5 -> 9.15 | D10: Marmellata/Spalmatura di noci 1 | E10: 0.17 | I10: Insalata mista primavera 30% | J10: 0.46 | N10: Carote stufate | O10: 0.49 | P10: 704 | S10: Cena
D11: Succo d'arancia 1 dl | E11: 0.14 | I11: Salsa per insalata francese | J11: 0.05 | S11: Hamburger integrale alle verdure
D12: Müsli di colazione 30g | E12: 0.25 | S12: con formaggio
D13: Formaggio diverso 30g | E13: 0.54 | I13: Tè mela-pesca 200% | J13: 0.1 | K13: 100 | N13: Tè mela-pesca 200% | O13: 0.1 | P13: 100
A14: Snack | I14: Biscotti militari 1 stk | J14: 0.35 | N14: Leckerli 1 St | O14: 0.55
I15: Pera | J15: 0.6 | N15: Mele 1 St | O15: 0.5
D16: Effetivo normale | E16: 1 | I16: Effetivo normale | J16: 1 | N16: Effetivo normale | O16: 1 | S16: Pranzo
A17: Martedi | D17: Caffè 50% | E17: 0.2 | I17: Zuppa di verdure 50% | J17: 0.2 | K17: 208 | N17: Brodo alle uova | O17: 0.05 | P17: 205 | S17: Frittata al formaggio
A18: =A7+1 -> 2018-05-22 | D18: Cacao/bevanda al malto in porzioni 50% | E18: 0.2 | G18: * | I18: Castelletto di maiale, | J18: 3.24 | N18: Lasagne al spinaci e ricotta | O18: 2.45 | P18: 915
D19: Sorta di pane 100g | E19: 0.39 | I19: Burro alla erbe aromatiche | J19: 0.35 | N19: Insalata mista primavera 30% | O19: 0.15
D20: Burro porzione 20g | E20: 0.44 | I20: Risotto al vino bianco | J20: 0.57 | K20: 611 | N20: Salsa per insalata balsamico 30g | O20: 0.1 | P20: 810
A21: =SUM(O17:O26)*O16+SUM(J17:J26)*J16+SUM(E17:E26)*E16 -> 13.4 | D21: Marmellata/Spalmatura di noci 1 | E21: 0.17 | I21: Zucchine alla provinciale | J21: 0.68 | K21: 704 | N21: Insalata di mais 30% | O21: 0.15 | P21: 808 | S21: Cena
D22: Succo d'arancia 1 dl | E22: 0.14 | N22: Salsa per insalata balsamico 30g | O22: 0.05 | S22: Lasagne al spinaci e ricotta | T22: 915
D23: Müsli di colazione 30g | E23: 0.25 | N23: Crema alla moka | O23: 0.42 | P23: 1107
D24: Salumi diverso | E24: 0.6 | I24: Tè mela-pesca 200% | J24: 0.1 | K24: 100 | N24: Tè lampone-fragola 200% | O24: 0.1 | P24: 100
A25: Snack | I25: Arachidi salate | J25: 0.6 | N25: Crackers 1 St | O25: 0.6
I26: Banana 1 St | J26: 0.8 | N26: Orancione 1 St | O26: 0.4
D27: Effetivo normale | E27: 1 | I27: Effetivo normale | J27: 1 | N27: Cena facoltativa | O27: 0.3 | S27: Pranzo
A28: Mercroledi | D28: Caffè 50% | E28: 0.2 | I28: Zuppa di zenzero e carote 50 % | J28: 0.22 | K28: 219 | N28: Crostini al formaggio vallasana | O28: 3.61 | P28: 902 | S28: Stufato di lente-verdure | T28: 213
A29: =A18+1 -> 2018-05-23 | D29: Cacao/bevanda al malto in porzioni 50% | E29: 0.2 | G29: * | I29: Bianchetto di pollo all'emmentalese | J29: 2.44 | K29: 427 | N29: Insalata di carote 30% | O29: 0.1 | P29: 812
D30: Sorta di pane 100g | E30: 0.39 | I30: Purea di patate | J30: 0.53 | K30: 606 | N30: Insalata di mais 30% | O30: 0.15 | P30: 808
D31: Burro porzione 20g | E31: 0.44 | I31: Peperonata | J31: 0.59 | N31: Insalata mista primavera 30% | O31: 0.15
A32: =SUM(O28:O37)*O27+SUM(J28:J37)*J27+SUM(E28:E37)*E27 -> 8.473 | D32: Marmellata/Spalmatura di noci 1 | E32: 0.17 | N32: Salsa per insalata balsamico 30g | O32: 0.05 | S32: Cena
D33: Succo d'arancia 1 dl | E33: 0.14 | S33: Crostini al formaggio vallasana | T33: 902
D34: Müsli di colazione 30g | E34: 0.25
D35: Birchermüesli | E35: 0.5 | F35: 904 | I35: Tè di frutta 200% | J35: 0.1 | K35: 100 | N35: Tè di frutta 200% | O35: 0.1 | P35: 100
A36: Snack | I36: Bastoncino ai cereali gusto miele | J36: 0.2 | N36: Misto di noci e frutta | O36: 0.35
I37: Pera 1 St | J37: 0.6 | N37: Mele 1 St | O37: 0.5
D38: Effetivo normale | E38: 1 | I38: Effetivo normale | J38: 1 | N38: Effetivo normale | O38: 1 | S38: Pranzo
A39: Giovedi | D39: Caffè 50% | E39: 0.2 | I39: Zuppa di verdure 50% | J39: 0.2 | K39: 219 | L39: * | N39: Mezzo pollo arrostito | O39: 4.34 | S39: Stufato di verdure | T39: 700
A40: =A29+1 -> 2018-05-24 | D40: Cacao/bevanda al malto in porzioni 50% | E40: 0.2 | G40: * | I40: Filetti di pangasius in pastella de friggere | J40: 2.33 | K40: 501 | N40: con salse
D41: Sorta di pane 100g | E41: 0.39 | I41: Salsa remoulade | J41: 0.34 | K41: 309 | N41: Pommes Chips CF4 | O41: 1.18
D42: Burro porzione 20g | E42: 0.44 | I42: Patate all'erba cipollina | J42: 0.7 | K42: 600
A43: =SUM(O39:O48)*O38+SUM(J39:J48)*J38+SUM(E39:E48)*E38 -> 14.69 | D43: Marmellata/Spalmatura di noci 1 | E43: 0.17 | I43: Spinaci stufati | J43: 0.73 | K43: 704 | N43: Cake alle carote | O43: 0.47 | P43: 1105 | S43: Cena
D44: Succo d'arancia 1 dl | E44: 0.14 | S44: Hamburger alle verdure
D45: Müsli di colazione 30g | E45: 0.25
D46: Yogurt Port 100 g | E46: 0.5 | I46: Tè freddo 200 % | J46: 0.13 | N46: Tè freddo 200 % | O46: 0.13
A47: Snack | I47: Bastoncino ai cereali gusto mela | J47: 0.2 | N47: Bastoncino al malto (ovo choc) | O47: 0.45
I48: Orancione 1 St | J48: 0.4 | N48: Banana 1 St | O48: 0.8
D49: Effetivo normale | E49: 1 | I49: Effetivo normale | J49: 1 | N49: Effetivo normale | O49: 1 | S49: Pranzo
A50: Venerdi | D50: Comella 5 dl CF4 | E50: 3.8 | I50: Panini con tonno | J50: 1.17 | S50: Panini con formaggio
A51: =A40+1 -> 2018-05-25 | D51: Cornetto 1St | E51: 1.15 | I51: Bastoncino ai cereali | J51: 0.2
I52: Cioccolata militare | J52: 0.35
I53: Mele 1 St | J53: 0.5
A54: =SUM(O50:O59)*O49+SUM(J50:J59)*J49+SUM(E50:E59)*E49 -> 8.07 | I54: PET Bevanda dolce 5 dl | J54: 0.9 | S54: Cena
A58: Snack
D60: Effetivo normale | E60: 1 | I60: Effetivo normale | J60: 1 | N60: Effetivo normale | O60: 1 | S60: Pranzo
A61: Sabato
A62: =A51+1 -> 2018-05-26
A65: =SUM(O61:O70)*O60+SUM(J61:J70)*J60+SUM(E61:E70)*E60 -> 0 | S65: Cena
A69: Snack
D71: Effetivo normale | E71: 1 | I71: Effetivo normale | J71: 1 | N71: Effetivo normale | O71: 1 | S71: Pranzo
A72: Domenica
A73: =A62+1 -> 2018-05-27
A76: =SUM(O72:O81)*O71+SUM(J72:J81)*J71+SUM(E72:E81)*E71 -> 0 | S76: Cena
A80: Snack
A83: Conteggio della sussistenza | I83: Certificata l'esattezza: | N83: Fattibilità specialistica: | S83: Approviazione:
A84: Utilizzo sec piano sussistenza | E84: =(A10+A21+A32+A43+A54+A65+A76)*100 -> 5378.3 | I84: Il contabile | N84: Il Quartiermastro | S84: Il Comandante
A85: Credito suss | E85: ='Übersicht und Anleitung'!D18*100-('Übersicht und Anleitung'!C18*100*2) -> 4500
A86: Saldo | E86: =E85-E84 -> -878.3
A88: Dichiarazione d'origine della carne, del latte e delle uova: tutte le carni e succedanei/latte e prodotti lattieri/uova provengono unicamente dalla Svizzera.
A89: Dichiarazione d'origine die pesci e prodotti marini: tutti i peschi e crostacei provengono dalla Svizzera o sono definiti per il marchio ASC / MSC / FOS.
A90: Dichiarazione degli ingredienti / sostanze allergeniche ( Lderr art. 8): i capi cucina possono rispondere alle domande riguardanti componenti allergenici.
A91: Punti di controllo critici: il simbolo * dichiara l'analisi del rischio. Una firma conferma una buona pratica di fabbricazione (vedi regl 06.006 Ricettario di cucina, pag.21 e ss ricette).

Sheet Preise Prix Prezzi
A1: Preise für Militärspeisen
A3: Gerichte Liste | B3: Preis | D3: Liste des mets | E3: Preis | G3: Lista ricetta | H3: Preis | J3: Gewicht in g | K3: Prozent
B4: pro Person | E4: pro Person | H4: pro Person | J4: pro Person | K4: Anteil gem KR
A5: 1 Getränke / Frühstück | C5: Rezept # | D5: 1 Boisson / petit déjeuner | F5: Recette # | G5: 1 Bevanda / prima colazione | I5: Ricetta #
A6: Apfel-Pfirsichtee | B6: 0.04 | D6: Thé froid | E6: 0.04 | G6: Tè freddo | H6: 0.04 | J6: 248 | K6: 1
A7: Kaffee | B7: 0.22 | D7: Café | E7: 0.22 | G7: Caffè | H7: 0.22 | J7: 221 | K7: 1
A8: Kräuter / Früchtetee | B8: 0.05 | C8: 100 | D8: Thé aux herbes / aux fruits | E8: 0.05 | F8: 100 | G8: Tè alle erbe / Tè di frutta | H8: 0.05 | I8: 100 | J8: 474 | K8: 1
A9: Kaffee in Portionen | B9: 0.22 | D9: Café en portion | E9: 0.22 | G9: Caffè latte | H9: 0.22 | J9: 304 | K9: 1
A10: Schokoladenmilch | B10: 0.13 | D10: Chocolat au lait | E10: 0.13 | G10: Cioccolata al latte | H10: 0.13 | J10: 270 | K10: 1
A11: Schwarztee | B11: 0.05 | C11: 103 | D11: Thé noir | E11: 0.05 | F11: 103 | G11: Tè nero | H11: 0.05 | I11: 103 | J11: 474 | K11: 1
A12: Zitronenwasser | B12: 0.16 | C12: 104 | D12: Citronnade | E12: 0.16 | F12: 104 | G12: Limonata | H12: 0.16 | I12: 104 | J12: 350 | K12: 1
A13: Frühstück Standard | B13: 2.38 | D13: Petit déjeuner standard | E13: 2.38 | G13: Colazione standard | H13: 2.38 | J13: 477 | K13: 1
A14: Frühstück Standard mit Rührei | B14: 2.86 | D14: Petit déjeuner avec œuf brouillé | E14: 2.86 | G14: Colazione con uova strapazzate | H14: 2.86 | J14: 534 | K14: 1
A15: Frühstück Standard mit Pancakes | B15: 2.39 | D15: Petit déjeuner avec pancakes | E15: 2.39 | G15: Colazione con pancakes | H15: 2.39 | J15: 507 | K15: 1
A16: Frühstück Standard mit Speck | B16: 3.35 | D16: Petit déjeuner aux lards | E16: 3.35 | G16: Colazione con pancetta | H16: 3.35 | J16: 505 | K16: 1
A17: Frühstück Comella Gipfeli | B17: 2.64 | D17: Petit déjeuner Comella et croissant | E17: 2.64 | G17: Colazione con Comella e cornetto | H17: 2.64 | J17: 545 | K17: 1
A18: Aufschnitt divers | B18: 0.6 | D18: Charcuterie divers | E18: 0.6 | G18: Salumi diverso | H18: 0.6 | J18: 50 | K18: 1
A19: Brot zu Mahlzeiten 100 g | B19: 0.4 | D19: Pain avec le repas 100 g | E19: 0.4 | G19: Pane per i pasti 100 g | H19: 0.4 | J19: 100 | K19: 1
A20: Brot zu Mahlzeiten 20 g | B20: 0.13 | D20: Pain avec le repas 20 g | E20: 0.13 | G20: Pane per i pasti 20 g | H20: 0.13 | J20: 20 | K20: 1
A21: Brot zu Mahlzeiten 50 g | B21: 0.2 | D21: Pain avec le repas 50 g | E21: 0.2 | G21: Pane per i pasti 50 g | H21: 0.2 | J21: 50 | K21: 1
A22: Butter Portion 10 g | B22: 0.23 | D22: Beurre portion 10 g | E22: 0.23 | G22: Burro porzione 10 g | H22: 0.23 | J22: 10 | K22: 1
A23: Fruchtjoghurt Portion 180 g | B23: 0.6 | D23: Yogurt des fruits portion 180 g | E23: 0.6 | G23: Yogurt di frutti portione 180 g | H23: 0.6 | J23: 180 | K23: 1
A24: Käse divers 30 g | B24: 0.54 | D24: Fromage divers 30 g | E24: 0.54 | G24: Formaggio diverso 30 g | H24: 0.54 | J24: 30 | K24: 1
A25: Konfitüre/Nussaufstrich 1 | B25: 0.13 | D25: Confiture ouverte 30 g | E25: 0.13 | G25: Marmellata/Spalmatura di noci 1 | H25: 0.13 | J25: 30 | K25: 1
A26: Orangensaft 1 dl | B26: 0.14 | D26: Jus d'orange 1 dl | E26: 0.14 | G26: Succo d'arancia 1 dl | H26: 0.14 | J26: 100 | K26: 1
A27: PET Süssgetränk 5 dl | B27: 0.9 | D27: PET Boisson douce 5 dl | E27: 0.9 | G27: PET Bevanda dolce 5 dl | H27: 0.9 | J27: 500 | K27: 1
A28: 1.2 Sandwich | C28: Rezept # | D28: 1.2 Sandwich | F28: Recette # | G28: 1.2 Panini | I28: Ricetta #
A29: Ciabatta Sandwich mit Mozzarella | B29: 2.38 | D29: Sandwich de ciabatta au mozzarella | E29: 2.38 | G29: Panini ciabatta con mozzarella | H29: 2.38 | J29: 191 | K29: 1
A30: Sandwich mit Brie Suisse | B30: 2.37 | D30: Sandwich au Brie suisse | E30: 2.37 | G30: Panini con Brie Suisse | H30: 2.37 | J30: 205 | K30: 1
A31: Sandwich mit Salami | B31: 2.47 | D31: Sandwich au salami | E31: 2.47 | G31: Panini con salame | H31: 2.47 | J31: 205 | K31: 1
A32: Sandwich mit Schinken | B32: 2.52 | D32: Sandwich au jambon | E32: 2.52 | G32: Panini con prosciutto | H32: 2.52 | J32: 205 | K32: 1
A33: Sandwich mit Thon Mayonnaise | B33: 1.17 | D33: Sandwich au thon | E33: 1.17 | G33: Panini con tonno | H33: 1.17 | J33: 200 | K33: 1
A34: Sandwich mit Trutenschinken | B34: 2.87 | D34: Sandwich au jambon de dinde | E34: 2.87 | G34: Panini con tacchino | H34: 2.87 | J34: 205 | K34: 1
A35: Landjäger Paar 85 g | B35: 1.7 | D35: Gendarme paire 85 g | E35: 1.7 | G35: Landjäger coppia 85 g | H35: 1.7 | J35: 85 | K35: 1
A36: Wienerli Stück 70 g | B36: 0.84 | D36: Wienerli pièce 70 g | E36: 0.84 | G36: Wurstel pezzo 70 g | H36: 0.84 | J36: 70 | K36: 1
A37: Cervelat Stück 120 g | B37: 1.36 | D37: Cervelat pièce 120 g | E37: 1.36 | G37: Cervellata pezzo 120 g | H37: 1.36 | J37: 120 | K37: 1
A38: 1.3 Früchte für Snack | C38: Rezept # | D38: 1.3 Fruits pour snack | F38: Recette # | G38: 1.3 Frutti per snack | I38: Ricetta #
A39: Apfel ø 180 g | B39: 0.5 | D39: Pomme ø 180 g | E39: 0.5 | G39: Mele ø 180 g | H39: 0.5 | J39: 180 g | K39: 1
A40: Orange ø 200 g | B40: 0.4 | D40: Orange ø 200 g | E40: 0.4 | G40: Orancione ø 200 g | H40: 0.4 | J40: 200 g | K40: 1
A41: Mandarine ø 100 g | B41: 0.35 | D41: Mandarine ø 100 g | E41: 0.35 | G41: Mandarino ø 100 g | H41: 0.35 | J41: 100 g | K41: 1
A42: Birne ø 180 g | B42: 0.6 | D42: Poire ø 180 g | E42: 0.6 | G42: Pera ø 180 g | H42: 0.6 | J42: 180 g | K42: 1
A43: Banane ø 200 g | B43: 0.8 | D43: Banane ø 200 g | E43: 0.8 | G43: Banana ø 200 g | H43: 0.8 | J43: 200 g | K43: 1
A44: Pfirsich ø 180 g | B44: 0.5 | D44: Pêche ø 180 g | E44: 0.5 | G44: Pesca ø 180 g | H44: 0.5 | J44: 180 g | K44: 1
A45: Nektarine ø 180 g | B45: 0.5 | D45: Nectarine ø 180 g | E45: 0.5 | G45: Nettarina ø 180 g | H45: 0.5 | J45: 180 g | K45: 1
A46: Pflaume ø 150 g | B46: 0.6 | D46: Prune ø 150 g | E46: 0.6 | G46: Prugna ø 150 g | H46: 0.6 | J46: 150 g | K46: 1
A47: Zwetschge ø 100 g | B47: 0.35 | D47: Pruneau ø 100 g | E47: 0.35 | G47: Prugna ø 100 g | H47: 0.35 | J47: 100 g | K47: 1
A48: 2 Suppen | C48: Rezept # | D48: 2 Soupes | F48: Recette # | G48: 2 Minestre e zuppe | I48: Ricetta #
A49: Appenzeller Käsesuppe | B49: 0.6 | C49: 200 | D49: Soupe à l'appenzelloise | E49: 0.6 | F49: 200 | G49: Minestra di formaggio all'appenzellese | H49: 0.6 | I49: 200 | J49: 201 | K49: 1
A50: Appenzeller Zwiebelsuppe | B50: 0.45 | C50: 201 | D50: Soupe appenzelloise aux oignons | E50: 0.45 | F50: 201 | G50: Zuppa di cipolle all'appenzellese | H50: 0.45 | I50: 201 | J50: 201 | K50: 1
A51: Asiatisch scharf-saure Suppe | B51: 0.42 | C51: 202 | D51: Potage asiatique aigre piquant | E51: 0.42 | F51: 202 | G51: Minestra asiatica piccante | H51: 0.42 | I51: 202 | J51: 208 | K51: 1
A52: Basler Mehlsuppe | B52: 0.57 | C52: 203 | D52: Potage bâlois | E52: 0.57 | F52: 203 | G52: Zuppa di farina alla basilese | H52: 0.57 | I52: 203 | J52: 210 | K52: 1
A53: Bauernsuppe | B53: 0.54 | C53: 204 | D53: Soupe paysanne | E53: 0.54 | F53: 204 | G53: Zuppa del contadino | H53: 0.54 | I53: 204 | J53: 204 | K53: 1
A54: Berner Märitsuppe | B54: 0.75 | C54: 204 | D54: Soupe bernoise du marché | E54: 0.75 | F54: 204 | G54: Zuppa del mercato bernese | H54: 0.75 | I54: 204 | J54: 198 | K54: 1
A55: Brotsuppe | B55: 0.23 | C55: 206 | D55: Potage au pain | E55: 0.23 | F55: 206 | G55: Minestra di pane | H55: 0.23 | I55: 206 | J55: 204 | K55: 1
A56: Bündner Gerstensuppe | B56: 0.46 | C56: 208 | D56: Potage des Grisons | E56: 0.46 | F56: 208 | G56: Zuppa d'orzo al grigionese | H56: 0.46 | I56: 208 | J56: 211 | K56: 1
A57: Freiburger Hüttensuppe | B57: 0.83 | C57: 209 | D57: Soupe de chalet | E57: 0.83 | F57: 209 | G57: Minestra dello chalet alla friburghese | H57: 0.83 | I57: 209 | J57: 211 | K57: 1
A58: Minestrone | B58: 0.63 | C58: 218 | D58: Minestrone | E58: 0.63 | F58: 218 | G58: Minestrone | H58: 0.63 | I58: 218 | J58: 205 | K58: 1
A59: Thurgauer Mostsuppe | B59: 0.66 | C59: 223 | D59: Soupe thurgovienne au cidre de pomme | E59: 0.66 | F59: 223 | G59: Zuppa di mosto di mele alla thurgoviese | H59: 0.66 | I59: 223 | J59: 201 | K59: 1
A60: Weissweinsuppe | B60: 0.39 | C60: 224 | D60: Soupe au vin blanc | E60: 0.39 | F60: 224 | G60: Zuppa di vino bianco | H60: 0.39 | I60: 224 | J60: 203 | K60: 1
A61: Bouillon mit Backerbsen | B61: 0.04 | C61: 205 | D61: Bouillon aux pois frits | E61: 0.04 | F61: 205 | G61: Brodo palline fritte | H61: 0.04 | I61: 205 | J61: 179 | K61: 1
A62: Bouillon mit Ei | B62: 0.1 | C62: 205 | D62: Bouillon aux œufs | E62: 0.1 | F62: 205 | G62: Brodo alle uova | H62: 0.1 | I62: 205 | J62: 183 | K62: 1
A63: Bouillon mit Flädli | B63: 0.13 | C63: 205 | D63: Bouillon célestine | E63: 0.13 | F63: 205 | G63: Brodo celestino | H63: 0.13 | I63: 205 | J63: 179 | K63: 1
A64: Bouillon mit kleinem Gemüse | B64: 0.2 | C64: 205 | D64: Bouillon aux petites légumes | E64: 0.2 | F64: 205 | G64: Brodo con piccole verdure | H64: 0.2 | I64: 205 | J64: 183 | K64: 1
A65: Bouillon mit Knoblauch Croutons | B65: 0.06 | C65: 205 | D65: Bouillon aux croûtons à l'ail | E65: 0.06 | F65: 205 | G65: Brodo con crostini all'aglio | H65: 0.06 | I65: 205 | J65: 184 | K65: 1
A66: Bouillon mit Reis | B66: 0.02 | C66: 205 | D66: Bouillon aux riz | E66: 0.02 | F66: 205 | G66: Brodo con riso | H66: 0.02 | I66: 205 | J66: 179 | K66: 1
A67: Bouillon mit Teigwaren | B67: 0.02 | C67: 205 | D67: Bouillon aux pâtes | E67: 0.02 | F67: 205 | G67: Brodo con pasta | H67: 0.02 | I67: 205 | J67: 179 | K67: 1
A68: Knoblauch Cremesuppe | B68: 0.24 | C68: 208 | D68: Crème à l'ail | E68: 0.24 | F68: 208 | G68: Crema all'aglio | H68: 0.24 | I68: 208 | J68: 207 | K68: 1
A69: Kresse Cremesuppe | B69: 0.28 | C69: 208 | D69: Crème aux cressons | E69: 0.28 | F69: 208 | G69: Crema al crescione | H69: 0.28 | I69: 208 | J69: 203 | K69: 1
A70: Peperoni Cremesuppe | B70: 0.45 | C70: 208 | D70: Crème aux poivrons | E70: 0.45 | F70: 208 | G70: Crema ai peperoni | H70: 0.45 | I70: 208 | J70: 208 | K70: 1
A71: Petersiliencremesuppe | B71: 0.26 | C71: 208 | D71: Crème aux persils | E71: 0.26 | F71: 208 | G71: Crema al prezzemolo | H71: 0.26 | I71: 208 | J71: 203 | K71: 1
A72: Spargelcremesuppe | B72: 1.03 | C72: 208 | D72: Crème d'asperges | E72: 1.03 | F72: 208 | G72: Crema d'asparagi | H72: 1.03 | I72: 208 | J72: 203 | K72: 1
A73: Tomatencremesuppe | B73: 0.16 | C73: 208 | D73: Crème de tomate | E73: 0.16 | F73: 208 | G73: Crema ai pomodori | H73: 0.16 | I73: 208 | J73: 208 | K73: 1
A74: Zucchetti Cremesuppe | B74: 0.4 | C74: 208 | D74: Crème de courgette | E74: 0.4 | F74: 208 | G74: Crema di zucchine | H74: 0.4 | I74: 208 | J74: 208 | K74: 1
A75: 2 Suppen | C75: Rezept # | D75: 2 Soupes | F75: Recette # | G75: 2 Minestre e zuppe | I75: Ricetta #
A76: Kurkumasuppe | B76: 0.2 | C76: 212 | D76: Potage au curcuma | E76: 0.2 | F76: 212 | G76: Zuppa di curcuma | H76: 0.2 | I76: 212 | J76: 201 | K76: 1
A77: Paprikasuppe | B77: 0.21 | C77: 212 | D77: Potage au paprika | E77: 0.21 | F77: 212 | G77: Zuppa di paprica | H77: 0.21 | I77: 212 | J77: 201 | K77: 1
A78: Safransuppe | B78: 0.3 | C78: 212 | D78: Potage au safran | E78: 0.3 | F78: 212 | G78: Zuppa di zafferano | H78: 0.3 | I78: 212 | J78: 199 | K78: 1
A79: Suppe nach Bauern Art | B79: 0.5 | C79: 222 | D79: Potage paysanne | E79: 0.5 | F79: 222 | G79: Zuppa paesana | H79: 0.5 | I79: 222 | J79: 211 | K79: 1
A80: Suppe nach flämischer Art | B80: 0.34 | C80: 222 | D80: Potage flamande | E80: 0.34 | F80: 222 | G80: Zuppa flamande | H80: 0.34 | I80: 222 | J80: 211 | K80: 1
A81: Suppe nach Hausfrauen Art | B81: 0.43 | C81: 222 | D81: Potage bonne-femme | E81: 0.43 | F81: 222 | G81: Zuppa bonne-femme | H81: 0.43 | I81: 222 | J81: 217 | K81: 1
A82: Suppe nach Pflanzer Art | B82: 0.3 | C82: 222 | D82: Potage cultivateur | E82: 0.3 | F82: 222 | G82: Zuppa del coltivatore | H82: 0.3 | I82: 222 | J82: 202 | K82: 1
A83: Gelberbsensuppe mit Speck | B83: 0.31 | C83: 213 | D83: Potage de pois jaunes au lard | E83: 0.31 | F83: 213 | G83: Zuppa di piselli gialle con speck | H83: 0.31 | I83: 213 | J83: 219 | K83: 1
A84: Grünerbsensuppe | B84: 0.21 | C84: 213 | D84: Potage de pois verts | E84: 0.21 | F84: 213 | G84: Zuppa di piselli verdi | H84: 0.21 | I84: 213 | J84: 215 | K84: 1
A85: Hafercremesuppe | B85: 0.2 | C85: 213 | D85: Crème d'avoine | E85: 0.2 | F85: 213 | G85: Crema d'avena | H85: 0.2 | I85: 213 | J85: 210 | K85: 1
A86: Indische Kichererbsen Suppe | B86: 0.44 | C86: 213 | D86: Potage de pois chiches | E86: 0.44 | F86: 213 | G86: Zuppa di ceci alla Indinese | H86: 0.44 | I86: 213 | J86: 217 | K86: 1
A87: Linsensuppe | B87: 0.24 | C87: 213 | D87: Potage aux lentilles | E87: 0.24 | F87: 213 | G87: Zuppa di lenti | H87: 0.24 | I87: 213 | J87: 215 | K87: 1
A88: Pürierte Blumenkohlsuppe | B88: 0.47 | C88: 219 | D88: Purée de chou-fleur | E88: 0.47 | F88: 219 | G88: Zuppa di cavolfiore | H88: 0.47 | I88: 219 | J88: 201 | K88: 1
A89: Pürierte Broccoli Suppe | B89: 0.43 | C89: 219 | D89: Purée de brocolis | E89: 0.43 | F89: 219 | G89: Zuppa di broccoli | H89: 0.43 | I89: 219 | J89: 215 | K89: 1
A90: Pürierte Fenchelsuppe | B90: 0.39 | C90: 219 | D90: Purée de fenouil | E90: 0.39 | F90: 219 | G90: Zuppa di finocchio | H90: 0.39 | I90: 219 | J90: 215 | K90: 1
A91: Pürierte Gemüsesuppe | B91: 0.37 | C91: 219 | D91: Purée de légumes | E91: 0.37 | F91: 219 | G91: Zuppa di verdure | H91: 0.37 | I91: 219 | J91: 193 | K91: 1
A92: Pürierte Kürbissuppe | B92: 0.39 | C92: 219 | D92: Purée de courges | E92: 0.39 | F92: 219 | G92: Zuppa di zucca | H92: 0.39 | I92: 219 | J92: 202 | K92: 1
A93: Pürierte Lauchsuppe | B93: 0.38 | C93: 219 | D93: Purée de poireaux | E93: 0.38 | F93: 219 | G93: Minestra di porri | H93: 0.38 | I93: 219 | J93: 215 | K93: 1
A94: Pürierte Rotkabissuppe | B94: 0.31 | C94: 219 | D94: Purée de chou rouges | E94: 0.31 | F94: 219 | G94: Minestra di kabis rosso | H94: 0.31 | I94: 219 | J94: 202 | K94: 1
A95: Pürierte Schwarzwurzelsuppe | B95: 0.47 | C95: 219 | D95: Purée de salsifis | E95: 0.47 | F95: 219 | G95: Zuppa di scorzonera | H95: 0.47 | I95: 219 | J95: 215 | K95: 1
A96: Pürierte Selleriesuppe | B96: 0.49 | C96: 219 | D96: Purée de céleri | E96: 0.49 | F96: 219 | G96: Zuppa di sedano | H96: 0.49 | I96: 219 | J96: 215 | K96: 1
A97: Kartoffelpüree Suppe | B97: 0.32 | C97: 219 | D97: Soupe de pommes de terre | E97: 0.32 | F97: 219 | G97: Zuppa di patate | H97: 0.32 | I97: 219 | J97: 214 | K97: 1
A98: Maispüreesuppe | B98: 0.19 | C98: 219 | D98: Soupe de mais | E98: 0.19 | F98: 219 | G98: Zuppa di mais | H98: 0.19 | I98: 219 | J98: 214 | K98: 1
A99: Marronipüreesuppe | B99: 0.9 | C99: 219 | D99: Soupe de marron | E99: 0.9 | F99: 219 | G99: Zuppa di castagne | H99: 0.9 | I99: 219 | J99: 214 | K99: 1
A100: Süsskartoffelpüreesuppe | B100: 0.43 | C100: 219 | D100: Soupe de patates douces | E100: 0.43 | F100: 219 | G100: Zuppa di patate dolce | H100: 0.43 | I100: 219 | J100: 193 | K100: 1
A101: Gazpacho | B101: 0.52 | C101: 210 | D101: Gazpacho | E101: 0.52 | F101: 210 | G101: Gazpacho | H101: 0.52 | I101: 210 | J101: 201 | K101: 1
A102: Kalte Gurkensuppe | B102: 0.37 | C102: 215 | D102: Soupe froide de concombre | E102: 0.37 | F102: 215 | G102: Minestra di cetrioli fredda | H102: 0.37 | I102: 215 | J102: 203 | K102: 1
A103: Melonenkaltschale | B103: 0.99 | C103: 217 | D103: Soupe froide de melon | E103: 0.99 | F103: 217 | G103: Crema fredda al melone | H103: 0.99 | I103: 217 | J103: 205 | K103: 1
A104: 3 Saucen | C104: Rezept # | D104: 3 Sauces | F104: Recette # | G104: 3 Salse | I104: Ricetta #
A105: Currysauce | B105: 0.72 | C105: 306 | D105: Sauce curry | E105: 0.72 | F105: 306 | G105: Salsa al curry | H105: 0.72 | I105: 306 | J105: 111 | K105: 1
A106: Tomatensauce | B106: 0.16 | C106: 311 | D106: Sauce tomates | E106: 0.16 | F106: 311 | G106: Salsa al pomodoro | H106: 0.16 | I106: 311 | J106: 77 | K106: 1
A107: Tomatensauce mit Thon | B107: 0.29 | C107: 311 | D107: Sauce tomates à thon | E107: 0.29 | F107: 311 | G107: Salsa al pomodoro e tonno | H107: 0.29 | I107: 311 | J107: 77 | K107: 1
A108: Tomatensauce all' arrabiata | B108: 0.23 | C108: 311 | D108: Sauce tomates piquante | E108: 0.23 | F108: 311 | G108: Salsa al pomodoro all' arrabbiata | H108: 0.23 | I108: 311 | J108: 81 | K108: 1
A109: Tomatensauce alla puttanesca | B109: 0.65 | C109: 311 | D109: Sauce tomates puttanesca | E109: 0.65 | F109: 311 | G109: Salsa al pomodoro alla puttanesca | H109: 0.65 | I109: 311 | J109: 79 | K109: 1
A110: Tomatensauce nach mexikanischer Art | B110: 0.3 | C110: 311 | D110: Sauce tomates mexicaine | E110: 0.3 | F110: 311 | G110: Salsa al pomodoro alla messicana | H110: 0.3 | I110: 311 | J110: 80 | K110: 1
A111: Tomatensauce Waluca | B111: 0.68 | C111: 311 | D111: Sauce aux tomate Waluca | E111: 0.68 | F111: 311 | G111: Salsa al pomodoro Waluca | H111: 0.68 | I111: 311 | J111: 93 | K111: 1
A112: Pfeffersauce | B112: 0.21 | C112: 301 | D112: Sauce aux poivre verts | E112: 0.21 | F112: 301 | G112: Salsa al pepe verde | H112: 0.21 | I112: 301 | J112: 66 | K112: 1
A113: Jägersauce | B113: 0.53 | C113: 301 | D113: Sauce Chasseur | E113: 0.53 | F113: 301 | G113: Salsa alla cacciatora | H113: 0.53 | I113: 301 | J113: 73 | K113: 1
A114: Rotweinsauce | B114: 0.13 | C114: 301 | D114: Sauce vin rouge | E114: 0.13 | F114: 301 | G114: Salsa al vino rosso | H114: 0.13 | I114: 301 | J114: 68 | K114: 1
A115: Senfsauce (braun) | B115: 0.07 | C115: 301 | D115: Sauce moutarde (brune) | E115: 0.07 | F115: 301 | G115: Salsa alla senape | H115: 0.07 | I115: 301 | J115: 78 | K115: 1
A116: Zwiebelsauce | B116: 0.18 | C116: 301 | D116: Sauce oignons | E116: 0.18 | F116: 301 | G116: Salsa alle cipolle | H116: 0.18 | I116: 301 | J116: 86 | K116: 1
A117: Champignonsauce | B117: 0.42 | C117: 302 | D117: Sauce champignons | E117: 0.42 | F117: 302 | G117: Salsa ai funghi | H117: 0.42 | I117: 302 | J117: 99 | K117: 1
A118: Käsesauce | B118: 0.34 | C118: 308 | D118: Sauce fromage (Mornay) | E118: 0.34 | F118: 308 | G118: Salsa al formaggio | H118: 0.34 | I118: 308 | J118: 68 | K118: 1
A119: Kräuterrahmsauce | B119: 0.19 | C119: 308 | D119: Sauce crème aux fines herbes | E119: 0.19 | F119: 308 | G119: Salsa alla crema con erba aromatiche | H119: 0.19 | I119: 308 | J119: 83 | K119: 1
A120: Meerrettichsauce | B120: 0.19 | C120: 308 | D120: Sauce au raifort | E120: 0.19 | F120: 308 | G120: Salsa al rafano | H120: 0.19 | I120: 308 | J120: 64 | K120: 1
A121: Milchsauce | B121: 0.13 | C121: 308 | D121: Sauce Béchamel | E121: 0.13 | F121: 308 | G121: Salsa besciamella | H121: 0.13 | I121: 308 | J121: 69 | K121: 1
A122: Rahmsauce | B122: 0.12 | C122: 308 | D122: Sauce à la crème | E122: 0.12 | F122: 308 | G122: Salsa alla crema | H122: 0.12 | I122: 308 | J122: 81 | K122: 1
A123: Senfsauce (hell) | B123: 0.16 | C123: 308 | D123: Sauce moutarde (blanche) | E123: 0.16 | F123: 308 | G123: Salsa alla senape | H123: 0.16 | I123: 308 | J123: 90 | K123: 1
A124: Cocktailsauce | B124: 0.23 | C124: 303 | D124: Sauce Cocktail | E124: 0.23 | F124: 303 | G124: Salsa Cocktail | H124: 0.23 | I124: 303 | J124: 70 | K124: 1
A125: Currymayonnaise | B125: 0.2 | C125: 305 | D125: Mayonnaise au curry | E125: 0.2 | F125: 305 | G125: Maionese al curry | H125: 0.2 | I125: 305 | J125: 57 | K125: 1
A126: Ketchup | B126: 0.15 | D126: Ketchup | E126: 0.15 | G126: Ketchup | H126: 0.15 | J126: 50 | K126: 1
A127: Knoblauchmayonnaise | B127: 0.18 | C127: 307 | D127: Mayonnaise à l'ail | E127: 0.18 | F127: 307 | G127: Maionese all'aglio | H127: 0.18 | I127: 307 | J127: 57 | K127: 1
A128: Kräutermayonnaise | B128: 0.24 | C128: 307 | D128: Mayonnaise aux fines herbes | E128: 0.24 | F128: 307 | G128: Maionese alle erbe | H128: 0.24 | I128: 307 | J128: 57 | K128: 1
A129: Kräutervinaigrette | B129: 0.18 | C129: 304 | D129: Vinaigrette aux fines herbes | E129: 0.18 | F129: 304 | G129: Maionese vinaigrette | H129: 0.18 | I129: 304 | J129: 51 | K129: 1
A130: Mayonnaise | B130: 0.15 | D130: Mayonnaise | E130: 0.15 | G130: Maionese | H130: 0.15 | J130: 50 | K130: 1
A131: Quarkmayonnaise | B131: 0.17 | C131: 305 | D131: Mayonnaise au séré | E131: 0.17 | F131: 305 | G131: Maionese al quark | H131: 0.17 | I131: 305 | J131: 55 | K131: 1
A132: Remouladensauce | B132: 0.34 | C132: 309 | D132: Sauce rémoulade | E132: 0.34 | F132: 309 | G132: Salsa remoulade | H132: 0.34 | I132: 309 | J132: 56 | K132: 1
A133: Salatsauce französisch | B133: 0.2 | D133: Sauce salade française | E133: 0.2 | G133: Salsa per insalata francese | H133: 0.2 | J133: 50 | K133: 1
A134: Salatsauce italienisch | B134: 0.2 | D134: Sauce salade italienne | E134: 0.2 | G134: Salsa per insalata italiana | H134: 0.2 | J134: 50 | K134: 1
A135: Senf mild | B135: 0.17 | D135: Moutarde | E135: 0.17 | G135: Senape | H135: 0.17 | J135: 50 | K135: 1
A136: Thousand Island Salatsauce | B136: 0.11 | C136: 303 | D136: Sauce Thousand Island | E136: 0.11 | F136: 303 | G136: Salsa per insalata thousand Island | H136: 0.11 | I136: 303 | J136: 51 | K136: 1
A137: 4 Fleischgerichte | C137: Rezept # | D137: 4 Mets de viande | F137: Recette # | G137: 4 Piatti a base di carne | I137: Ricetta #
A138: Chinapfanne mit Schweinsgeschnetzeltem | B138: 2.23 | C138: 402 | D138: Mets chinois, émincé porc | E138: 2.23 | F138: 402 | G138: Stufato cinese con maiale | H138: 2.23 | I138: 402 | J138: 236 | K138: 1
A139: Feuertopf mit Schwein | B139: 2.27 | C139: 404 | D139: Potée du diable au porc | E139: 2.27 | F139: 404 | G139: Stufato di maiale piccante | H139: 2.27 | I139: 404 | J139: 234 | K139: 1
A140: Fleischkäse aus dem Ofen CF 3 | B140: 2.16 | C140: 408 | D140: Fromage d'Italie au four CF 3 | E140: 2.16 | F140: 408 | G140: Fleischkäse al forno CF 3 | H140: 2.16 | I140: 408 | J140: 144 | K140: 1
A141: Geschnetzeltes Schwein mexikanische Art | B141: 1.93 | C141: 407 | D141: Emincé de porc à la mexicaine | E141: 1.93 | F141: 407 | G141: Sminuzzato di pollo alla messicana | H141: 1.93 | I141: 407 | J141: 251 | K141: 1
A142: Geschnetzeltes Schwein mit Kräutern | B142: 1.86 | C142: 406 | D142: Emincé de porc aux fines herbes | E142: 1.86 | F142: 406 | G142: Sminuzzato di maiala alle erbe aromatiche | H142: 1.86 | I142: 406 | J142: 221 | K142: 1
A143: Geschnetzeltes Schwein mit Peperoni | B143: 2.05 | C143: 406 | D143: Emincé de porc aux poivrons | E143: 2.05 | F143: 406 | G143: Sminuzzato di maiale ai peperoni | H143: 2.05 | I143: 406 | J143: 254 | K143: 1
A144: Geschnetzeltes Schwein mit Pilzen | B144: 2.05 | C144: 406 | D144: Emincé de porc aux champignons | E144: 2.05 | F144: 406 | G144: Sminuzzato di maiale ai funghi | H144: 2.05 | I144: 406 | J144: 234 | K144: 1
A145: Geschnetzeltes Schwein nach Berner Art | B145: 2.3 | C145: 406 | D145: Emincé de porc à la bernoise | E145: 2.3 | F145: 406 | G145: Sminuzzato di maiale alla bernese | H145: 2.3 | I145: 406 | J145: 242 | K145: 1
A146: Grosi's Cervelat Goulasch | B146: 2.34 | D146: Goulache de cervela Grand-mère | E146: 2.34 | G146: Gulasch di cervellate della nonna | H146: 2.34 | J146: 240 | K146: 1
A147: Hackbraten aus dem Ofen CF 3 | B147: 2.85 | C147: 408 | D147: Rôti haché de porc au four CF 3 | E147: 2.85 | F147: 408 | G147: Polpettone di maiale al forno CF 3 | H147: 2.85 | I147: 408 | J147: 120 | K147: 1
A148: Hausgemachter Schweinshackbraten | B148: 1.92 | D148: Rôti haché de porc maison | E148: 1.92 | G148: Polpettone casareccio di maiale | H148: 1.92 | J148: 161 | K148: 1
A149: Schinken im Brotteig | B149: 1.95 | C149: 1100 | D149: Jambon en croûte | E149: 1.95 | F149: 1100 | G149: Prosciutto in crosta | H149: 1.95 | I149: 1100 | J149: 219 | K149: 1
A150: Schweins Piccata | B150: 3.39 | C150: 413 | D150: Piccata de porc | E150: 3.39 | F150: 413 | G150: Piccata di maiale | H150: 3.39 | I150: 413 | J150: 169 | K150: 1
A151: Schweins Saftplätzli | B151: 2.91 | C151: 420 | D151: Carbonnade de porc | E151: 2.91 | F151: 420 | G151: Carbonata di maiale | H151: 2.91 | I151: 420 | J151: 218 | K151: 1
A152: Schweins Spare rips | B152: 5.27 | C152: 426 | D152: Spare rips de porc | E152: 5.27 | F152: 426 | G152: Costine di maiale | H152: 5.27 | I152: 426 | J152: 153 | K152: 1
A153: Schweinsbratwurst | B153: 2.52 | D153: Saucisse de porc | E153: 2.52 | G153: Salsicce di maiale | H153: 2.52 | J153: 167 | K153: 1
A154: Schweinshalsbraten | B154: 2.67 | D154: Rôti de porc | E154: 2.67 | G154: Arrosta di maiale | H154: 2.67 | J154: 226 | K154: 1
A155: Schweinskotelett mit Kräuterbutter | B155: 3.24 | D155: Côtelette de porc, beurre aux fines herbes | E155: 3.24 | G155: Castelletto di maiale, burro alla erbe aromatiche | H155: 3.24 | J155: 168 | K155: 1
A156: Schweinshaxe geschmort | B156: 2.91 | D156: Jarret de porc braisé | E156: 2.91 | G156: Ossobuco di maiale brasato | H156: 2.91 | J156: 244 | K156: 1
A157: Schweinspaprika Goulasch | B157: 2.4 | C157: 411 | D157: Goulache de porc au paprika | E157: 2.4 | F157: 411 | G157: Gulasch di maiale alla paprika | H157: 2.4 | I157: 411 | J157: 257 | K157: 1
A158: Schweinspfeffer nach Jäger Art | B158: 2.14 | C158: 412 | D158: Civet de porc chasseur | E158: 2.14 | F158: 412 | G158: Salmi di maiale alla cacciatora | H158: 2.14 | I158: 412 | J158: 226 | K158: 1
A159: Schweinsragout mexikanische Art | B159: 2 | C159: 416 | D159: Ragoût de porc à la mexicaine | E159: 2 | F159: 416 | G159: Spezzatino di maiale alla messicana | H159: 2 | I159: 416 | J159: 251 | K159: 1
A160: Schweinsragout nach Berner Art | B160: 2.36 | C160: 416 | D160: Ragoût de porc à la bernoise | E160: 2.36 | F160: 416 | G160: Spezzatino di maiale alla bernese | H160: 2.36 | I160: 416 | J160: 233 | K160: 1
A161: Voressen vom Schwein nach alter Art | B161: 2.18 | C161: 427 | D161: Blanquette de porc à l'ancienne | E161: 2.18 | F161: 427 | G161: Bianchetto di maiale all'antica | H161: 2.18 | I161: 427 | J161: 231 | K161: 1
A162: Chinapfanne mit Pouletgeschnetzeltem | B162: 3.34 | C162: 402 | D162: Mets chinois, poulet | E162: 3.34 | F162: 402 | G162: Stufato cinese con pollo | H162: 3.34 | I162: 402 | J162: 236 | K162: 1
A163: Feuertopf mit Poulet | B163: 3.38 | C163: 404 | D163: Potée du diable au poulet | E163: 3.38 | F163: 404 | G163: Stufato di pollo piccante | H163: 3.38 | I163: 404 | J163: 234 | K163: 1
A164: Geschnetzeltes Poulet mexikanische Art | B164: 3.04 | C164: 407 | D164: Emincé de poulet à la mexicaine | E164: 3.04 | F164: 407 | G164: Sminuzzato di pollo alla messicana | H164: 3.04 | I164: 407 | J164: 251 | K164: 1
A165: Geschnetzeltes Poulet mit Kräutern | B165: 2.97 | C165: 406 | D165: Emincé poulet aux fines herbes | E165: 2.97 | F165: 406 | G165: Sminuzzato di pollo alle erbe aromatiche | H165: 2.97 | I165: 406 | J165: 221 | K165: 1
A166: Geschnetzeltes Poulet mit Peperoni | B166: 3.16 | C166: 407 | D166: Emincé de poulet aux poivrons | E166: 3.16 | F166: 407 | G166: Sminuzzato di pollo ai peperoni | H166: 3.16 | I166: 407 | J166: 254 | K166: 1
A167: Geschnetzeltes Poulet mit Pilzen | B167: 3.16 | C167: 406/7 | D167: Emincé de poulet aux champignons | E167: 3.16 | F167: 406/7 | G167: Sminuzzato di pollo ai funghi | H167: 3.16 | I167: 406/7 | J167: 234 | K167: 1
A168: Geschnetzeltes Poulet nach Berner Art | B168: 3.19 | C168: 407 | D168: Emincé de poulet à la bernoise | E168: 3.19 | F168: 407 | G168: Sminuzzato di pollo alla bernese | H168: 3.19 | I168: 407 | J168: 242 | K168: 1
A169: Halbes Poulet gebraten mit Saucen | B169: 4.34 | D169: Demi poulet rôti et sauces | E169: 4.34 | G169: Mezzo pollo arrostito con salse | H169: 4.34 | J169: 243 | K169: 1
A170: Poulet mit Gemüse an Hoisin sauce | B170: 4.35 | D170: Poulet aux légumes Hoisin | E170: 4.35 | G170: Pollo con verdure Hoisin | H170: 4.35 | J170: 198 | K170: 1
A171: Poulet süss-sauer | B171: 3.2 | C171: 414 | D171: Poulet aigre-doux | E171: 3.2 | F171: 414 | G171: Pollo in agrodolce | H171: 3.2 | I171: 414 | J171: 238 | K171: 1
A172: Pouletgeschnetzeltes an Currysauce | B172: 1.71 | C172: 403 | D172: Emincé de poulet au curry | E172: 1.71 | F172: 403 | G172: Sminuzzato di pollo al curry | H172: 1.71 | I172: 403 | J172: 110 | K172: 1
A173: Pouletragout mexikanische Art | B173: 2.63 | C173: 416 | D173: Ragoût de poulet à la mexicaine | E173: 2.63 | F173: 416 | G173: Spezzatino di pollo alla messicana | H173: 2.63 | I173: 416 | J173: 251 | K173: 1
A174: Pouletragout nach Berner Art | B174: 2.86 | C174: 416 | D174: Ragoût de poulet à la bernoise | E174: 2.86 | F174: 416 | G174: Spezzatino di pollo alla bernese | H174: 2.86 | I174: 416 | J174: 233 | K174: 1
A175: Pouletvoressen nach alter Art | B175: 2.81 | C175: 427 | D175: Blanquette de poulet à l'ancienne | E175: 2.81 | F175: 427 | G175: Bianchetto di pollo all'antica | H175: 2.81 | I175: 427 | J175: 231 | K175: 1
A176: Pouletvoressen nach Emmentaler Art | B176: 2.44 | C176: 427 | D176: Blanquette de poulet à l'emmentaloise | E176: 2.44 | F176: 427 | G176: Bianchetto di pollo all'emmentalese | H176: 2.44 | I176: 427 | J176: 207 | K176: 1
A177: Chinapfanne mit Truthahngeschnetzeltem | B177: 3.45 | C177: 402 | D177: Mets chinois, dinde | E177: 3.45 | F177: 402 | G177: Stufato cinese con tacchino | H177: 3.45 | I177: 402 | J177: 236 | K177: 1
A178: Feuertopf mit Truthahn | B178: 3.48 | C178: 404 | D178: Potée au diable à la dinde | E178: 3.48 | F178: 404 | G178: Stufato di tacchino piccante | H178: 3.48 | I178: 404 | J178: 234 | K178: 1
A179: Geschnetzelter Truthahn mexikanische Art | B179: 3.14 | C179: 416 | D179: Emincé de dinde à la mexicaine | E179: 3.14 | F179: 416 | G179: Sminuzzato di tacchino alla messicana | H179: 3.14 | I179: 416 | J179: 251 | K179: 1
A180: Geschnetzelter Truthahn mit Kräutern | B180: 3.07 | C180: 406 | D180: Emincé de dinde aux fines herbes | E180: 3.07 | F180: 406 | G180: Sminuzzato di tacchino alle erbe aromatiche | H180: 3.07 | I180: 406 | J180: 221 | K180: 1
A181: Geschnetzelter Truthahn mit Peperoni | B181: 3.27 | C181: 407 | D181: Emincé de dinde aux poivrons | E181: 3.27 | F181: 407 | G181: Sminuzzato di tacchino ai peperoni | H181: 3.27 | I181: 407 | J181: 254 | K181: 1
A182: Geschnetzelter Truthahn mit Pilzen | B182: 3.27 | C182: 406 | D182: Emincé de dinde aux champignons | E182: 3.27 | F182: 406 | G182: Sminuzzato di tacchino ai funghi | H182: 3.27 | I182: 406 | J182: 234 | K182: 1
A183: Geschnetzelter Truthahn nach Berner Art | B183: 3.28 | C183: 416 | D183: Emincé de dinde à la bernoise | E183: 3.28 | F183: 416 | G183: Sminuzzato di tacchino alla bernese | H183: 3.28 | I183: 416 | J183: 242 | K183: 1
A184: Truthahn Piccata | B184: 5.63 | C184: 413 | D184: Piccata de dinde | E184: 5.63 | F184: 413 | G184: Piccata di tacchino | H184: 5.63 | I184: 413 | J184: 169 | K184: 1
A185: Truthahngeschnetzeltes an Currysauce | B185: 1.76 | C185: 403 | D185: Emincé de dinde au curry | E185: 1.76 | F185: 403 | G185: Sminuzzato di tacchino al curry | H185: 1.76 | I185: 403 | J185: 110 | K185: 1
A186: Truthahnragout mexikanische Art | B186: 3.31 | C186: 416 | D186: Ragoût de dinde à la mexicaine | E186: 3.31 | F186: 416 | G186: Spezzatino di tacchino alla messicana | H186: 3.31 | I186: 416 | J186: 251 | K186: 1
A187: Truthahnragout nach Berner Art | B187: 3.4 | C187: 416 | D187: Ragoût de dinde à la bernoise | E187: 3.4 | F187: 416 | G187: Spezzatino di tacchino alla bernese | H187: 3.4 | I187: 416 | J187: 233 | K187: 1
A188: Truthahnrollbraten | B188: 3.7 | C188: 422 | D188: Rôti de dinde roulé | E188: 3.7 | F188: 422 | G188: Arrosto di tacchino arrotolato | H188: 3.7 | I188: 422 | J188: 210 | K188: 1
A189: Truthahnvoressen nach alter Art | B189: 3.49 | C189: 427 | D189: Blanquette de dinde à l'ancienne | E189: 3.49 | F189: 427 | G189: Bianchetto di tacchino all'antica | H189: 3.49 | I189: 427 | J189: 231 | K189: 1
A190: Truthahnvoressen nach Emmentaler Art | B190: 3.12 | C190: 427 | D190: Blanquette de dinde à l'emmentaloise | E190: 3.12 | F190: 427 | G190: Bianchetto di tacchino all'emmentalese | H190: 3.12 | I190: 427 | J190: 207 | K190: 1
A191: Gefüllte Kalbsbrust glasiert | B191: 3.2 | C191: 422 | D191: Poitrine de veau farcie glacée | E191: 3.2 | F191: 422 | G191: Petto di vitello farcito e glassato | H191: 3.2 | I191: 422 | J191: 210 | K191: 1
A192: Geschnetzeltes Kalbfleisch mit Kräutern | B192: 4.03 | C192: 406 | D192: Emincé de veau aux fines herbes | E192: 4.03 | F192: 406 | G192: Sminuzzato di vitello alle erbe aromatiche | H192: 4.03 | I192: 406 | J192: 221 | K192: 1
A193: Geschnetzeltes Kalbfleisch mit Peperoni | B193: 4.23 | C193: 407 | D193: Emincé de veau aux poivrons | E193: 4.23 | F193: 407 | G193: Sminuzzato di vitello ai peperoni | H193: 4.23 | I193: 407 | J193: 254 | K193: 1
A194: Geschnetzeltes Kalbfleisch mit Pilzen | B194: 4.23 | C194: 406 | D194: Emincé de veau aux champignons | E194: 4.23 | F194: 406 | G194: Sminuzzato di vitello ai funghi | H194: 4.23 | I194: 406 | J194: 234 | K194: 1
A195: Geschnetzeltes Kalbfleisch nach Berner Art | B195: 4.04 | C195: 416 | D195: Emincé de veau à la bernoise | E195: 4.04 | F195: 416 | G195: Sminuzzato di vitello alla bernese | H195: 4.04 | I195: 416 | J195: 242 | K195: 1
A196: Kalbgeschnetzeltes an Currysauce | B196: 2.24 | C196: 403 | D196: Emincé de veau au curry | E196: 2.24 | F196: 403 | G196: Sminuzzato di vitello al curry | H196: 2.24 | I196: 403 | J196: 110 | K196: 1
A197: Kalbshaxe geschmort | B197: 3.99 | D197: Jarret de veau braisé | E197: 3.99 | F197: 416 | G197: Ossobuco di vitello brasato | H197: 3.99 | I197: 416 | J197: 244 | K197: 1
A198: Kalbsbrustrollbraten | B198: 3.2 | C198: 422 | D198: Poitrine de veau roulée glacée | E198: 3.2 | F198: 422 | G198: Petto di vitello arrotolato e glassato | H198: 3.2 | I198: 422 | J198: 210 | K198: 1
A199: Kalbsragout mexikanische Art | B199: 3.95 | C199: 416 | D199: Ragoût de veau à la mexicaine | E199: 3.95 | F199: 416 | G199: Spezzatino di vitello alla messicana | H199: 3.95 | I199: 416 | J199: 251 | K199: 1
A200: Kalbsragout nach Berner Art | B200: 3.92 | C200: 416 | D200: Ragoût de veau à la bernoise | E200: 3.92 | F200: 416 | G200: Spezzatino di vitello alla bernese | H200: 3.92 | I200: 416 | J200: 233 | K200: 1
A201: Kalbsvoressen nach alter Art | B201: 4.13 | C201: 427 | D201: Blanquette de veau à l'ancienne | E201: 4.13 | F201: 427 | G201: Bianchetto di vitello all'antica | H201: 4.13 | I201: 427 | J201: 231 | K201: 1
... 210 more rows

Sheet Vpf Art Genre Subs Tipi di suss
A1: Normalbestand | B1: 1
A2: Leistungsabtreten | B2: 0.75
A3: Fakultatives Nachtessen | B3: 0.3
A4: Sonntagswache | B4: 0.1
A5: Effectif normal | B5: 1
A6: Licenciement selon performance | B6: 0.75
A7: Souper facultatif | B7: 0.3
A8: Garde weekend | B8: 0.1
A9: Effetivo normale | B9: 1
A10: Congedo di prestazione | B10: 0.75
A11: Cena facoltativa | B11: 0.3
A12: Guardia | B12: 0.1
